{"text_format":"1","workbook":"xlsx","n_sheets":8,"sheets":["Stavba","01 334101 KL","01 334101 Rek","01 334101 Pol","02 334102 KL","02 334102 Rek","02 334102 Pol","OaVNS"],"not_rendered":{"charts":0,"images":0,"macros":0,"external_links":0,"defined_names":43,"comments":0,"pivot_tables":0},"unopened":[],"bounds":{"document_bytes":16777216,"sheet_cells":100000,"rows_first":2000,"rows_last":500,"rows_between":2000,"halvings":0,"cell_chars":16384,"cell_head_chars":4096},"cells_cut":0,"cells_raw":0,"read":"whole","date_system":"1900"}

{"sheet":"Stavba","index":0,"n_rows":40,"n_cols":10,"rows_kept":40,"cut":false,"hidden":false,"merged":[[18,8,18,9],[19,8,19,9],[20,8,20,9],[21,8,21,9],[22,8,22,9]]}
[]
[null,null,"Položkový rozpočet stavby",null,null,null,null,"Datum: ",{"$f":"TODAY()","v":"2023-04-03"}]
[null,null,null," "]
[]
[null,null,"Stavba :","3341","Přepojení ČSOV Hančova bouda Benecko"]
[]
[null,null,"Objednatel : ","Vodohospodářské sdružení Turnov",null,null,null,"IČO :","49295934"]
[null,null,null,"Antonína Dvořáka 287",null,null,null,"DIČ :","CZ49295934"]
[null,null,"51101","Turnov"]
[]
[null,null,"Zhotovitel : ",".",null,null,null,"IČO :"]
[null,null,null,null,null,null,null,"DIČ :"]
[]
[null,null,"Za zhotovitele :",null,null,null,null,"Za objednatele :"]
[]
[null,null,"_______________",null,null,null,null,"_______________"]
[]
[null,null,null,null,null,null,null,null,null,"Rozpočtové náklady"]
[null,"Základ pro DPH",null,15,"%",null,null,null,{"$f":"ROUND(G33,0)","v":0}]
[null,"DPH ",null,{"$f":"SazbaDPH1","v":15},"%",null,null,null,{"$f":"ROUND(I19*D20/100,0)","v":0}]
[null,"Základ pro DPH",null,21,"%",null,null,null,{"$f":"ROUND(H33,0)","v":80000}]
[null,"DPH ",null,{"$f":"SazbaDPH2","v":21},"%",null,null,null,{"$f":"ROUND(I21*D21/100,0)","v":16800}]
[null,"Cena celkem za stavbu",null,null,null,null,null,null,{"$f":"SUM(I19:I22)","v":96800}]
[]
[]
[null,"Rekapitulace stavebních objektů a provozních souborů"]
[]
[null,"Číslo a název objektu / provozního souboru",null,null,null,"Cena celkem",{"$f":"CONCATENATE(\"Základ DPH \",SazbaDPH1,\" %\")","v":"Základ DPH 15 %"},{"$f":"CONCATENATE(\"Základ DPH \",SazbaDPH2,\" %\")","v":"Základ DPH 21 %"},"DPH celkem","%"]
[null,"01","Gravitační stoka A, B",null,null,{"$f":"G29+H29+I29","v":0},0,{"$f":"SUM(H38)","v":0},{"$f":"(G29*SazbaDPH1)/100+(H29*SazbaDPH2)/100","v":0},{"$f":"IF(CelkemObjekty=0,\"\",F29/CelkemObjekty*100)","v":0}]
[null,"02","Podružný kanalizační řád B-1",null,null,{"$f":"G30+H30+I30","v":0},0,{"$f":"SUM(H39)","v":0},0,0]
[null,"OaVNS","Ostatní a vedlejší náklady stavby",null,null,0,0,{"$f":"SUM(OaVNS!G29)","v":0},0,0]
[null,"PR","Povinná rezerva",null,null,96800,0,80000,16800,100]
[null,"Celkem za stavbu",null,null,null,{"$f":"SUM(F29:F32)","v":96800},{"$f":"SUM(G29:G32)","v":0},{"$f":"SUM(H29:H32)","v":80000},{"$f":"SUM(I29:I32)","v":16800},{"$f":"IF(CelkemObjekty=0,\"\",F33/CelkemObjekty*100)","v":100}]
[]
[null,"Rekapitulace stavebních rozpočtů"]
[]
[null,"Číslo objektu","Číslo a název rozpočtu",null,null,"Cena celkem",{"$f":"CONCATENATE(\"Základ DPH \",SazbaDPH1,\" %\")","v":"Základ DPH 15 %"},{"$f":"CONCATENATE(\"Základ DPH \",SazbaDPH2,\" %\")","v":"Základ DPH 21 %"},"DPH celkem","%"]
[null,"01","3341/01 Gravitační stoka A, B",null,null,{"$f":"G38+H38+I38","v":0},0,{"$f":"SUM(T24+'01 334101 KL'!C23)","v":0},{"$f":"(G38*SazbaDPH1)/100+(H38*SazbaDPH2)/100","v":0},{"$f":"IF(CelkemObjekty=0,\"\",F38/CelkemObjekty*100)","v":0}]
[null,"02","3341/02 Podružný kanalizační řád B-1",null,null,{"$f":"G39+H39+I39","v":0},0,{"$f":"SUM('02 334102 KL'!C23)","v":0},0,0]
[null,"Celkem za stavbu",null,null,null,{"$f":"SUM(F38:F39)","v":0},{"$f":"SUM(G38:G39)","v":0},{"$f":"SUM(H38:H39)","v":0},{"$f":"SUM(I38:I39)","v":0},{"$f":"IF(CelkemObjekty=0,\"\",F40/CelkemObjekty*100)","v":0}]

{"sheet":"01 334101 KL","index":1,"n_rows":45,"n_cols":8,"rows_kept":45,"cut":false,"hidden":false,"merged":[[22,0,22,1],[7,2,7,4],[8,2,8,4],[9,2,9,4],[10,2,10,4],[11,2,11,4],[50,1,50,6],[29,5,29,6],[30,5,30,6],[31,5,31,6],[32,5,32,6],[33,5,33,6],[36,1,44,6],[45,1,45,6],[46,1,46,6],[47,1,47,6],[48,1,48,6],[49,1,49,6]]}
["POLOŽKOVÝ ROZPOČET"]
["Rozpočet",null,"3341/01","Gravitační stoka A, B",null,"JKSO ","827.21.A3"]
[]
["Objekt",null,null,null,null,"SKP "]
["01",null,"Gravitační stoka A, B",null,null,"Měrná jednotka","m"]
["Stavba",null,null,null,null,"Počet jednotek",184.79]
["3341",null,"Přepojení ČSOV Hančova bouda Benecko",null,null,"Náklady na m.j.",{"$f":"IF(G6=0,,ROUND((F30+F32)/G6,1))","v":0}]
["Projektant",null,"Vodohospodářské inženýrské služby a.s.",null,null,"Typ rozpočtu"]
["Zpracovatel projektu"]
["Objednatel",null,"Vodohospodářské sdružení Turnov"]
["Dodavatel",null,".",null,null,"Zakázkové číslo "]
["Rozpočtoval",null,null,null,null,"Počet listů"]
["ROZPOČTOVÉ NÁKLADY"]
["Základní rozpočtové náklady"]
[null,"HSV celkem",{"$f":"'01 334101 Rek'!E13","v":0}]
["Z","PSV celkem",{"$f":"'01 334101 Rek'!F13","v":0}]
["R","M práce celkem",{"$f":"'01 334101 Rek'!H13","v":0}]
["N","M dodávky celkem",{"$f":"'01 334101 Rek'!G13","v":0}]
["ZRN celkem",null,{"$f":"SUM(C15:C18)","v":0}]
[]
["HZS",null,{"$f":"'01 334101 Rek'!I13","v":0}]
["ZRN+HZS",null,{"$f":"C19+C21","v":0}]
["ZRN+ost.náklady+HZS",null,{"$f":"C22+G23","v":0}]
["Vypracoval",null,null,"Za zhotovitele",null,"Za objednatele"]
["Jméno :",null,null,"Jméno :",null,"Jméno :"]
["Datum :",null,null,"Datum :",null,"Datum :"]
[]
["Podpis :",null,null,"Podpis:",null,"Podpis:"]
[]
["Základ pro DPH",null,21,"%  ",null,{"$f":"C23-F32","v":0}]
["DPH",null,{"$f":"C30","v":21},"% ",null,{"$f":"ROUND(PRODUCT(F30,C31/100),0)","v":0}]
["Základ pro DPH",null,0,"% ",null,0]
["DPH",null,{"$f":"C32","v":0},"% ",null,{"$f":"ROUND(PRODUCT(F32,C33/100),0)","v":0}]
["CENA ZA OBJEKT CELKEM",null,null,null,null,{"$f":"ROUND(SUM(F30:F33),0)","v":0}]
[]
["Poznámka :",null,null,null,null,null,null," "]
[null,null,null,null,null,null,null," "]
[null,null,null,null,null,null,null," "]
[null,null,null,null,null,null,null," "]
[null,null,null,null,null,null,null," "]
[null,null,null,null,null,null,null," "]
[null,null,null,null,null,null,null," "]
[null,null,null,null,null,null,null," "]
[null,null,null,null,null,null,null," "]
[null,null,null,null,null,null,null," "]

{"sheet":"01 334101 Rek","index":2,"n_rows":13,"n_cols":9,"rows_kept":13,"cut":false,"hidden":false,"merged":[[0,0,0,1],[1,0,1,1],[1,6,1,8]]}
["Stavba :",null,"3341 Přepojení ČSOV Hančova bouda Benecko",null,null,null,"Rozpočet :","3341/01"]
["Objekt :",null,"01 Gravitační stoka A, B",null,null,null,"Gravitační stoka A, B"]
[]
["REKAPITULACE  STAVEBNÍCH  DÍLŮ"]
[]
[null,"Stavební díl",null,null,"HSV","PSV","Dodávka","Montáž","HZS"]
[{"$f":"'01 334101 Pol'!B7","v":"1"},{"$f":"'01 334101 Pol'!C7","v":"Zemní práce"},null,null,{"$f":"'01 334101 Pol'!BA282","v":0},{"$f":"'01 334101 Pol'!BB282","v":0},{"$f":"'01 334101 Pol'!BC282","v":0},{"$f":"'01 334101 Pol'!BD282","v":0},{"$f":"'01 334101 Pol'!BE282","v":0}]
[{"$f":"'01 334101 Pol'!B283","v":"2"},{"$f":"'01 334101 Pol'!C283","v":"Základy a zvláštní zakládání"},null,null,{"$f":"'01 334101 Pol'!BA294","v":0},{"$f":"'01 334101 Pol'!BB294","v":0},{"$f":"'01 334101 Pol'!BC294","v":0},{"$f":"'01 334101 Pol'!BD294","v":0},{"$f":"'01 334101 Pol'!BE294","v":0}]
[{"$f":"'01 334101 Pol'!B295","v":"45"},{"$f":"'01 334101 Pol'!C295","v":"Podkladní a vedlejší konstrukce"},null,null,{"$f":"'01 334101 Pol'!BA316","v":0},{"$f":"'01 334101 Pol'!BB316","v":0},{"$f":"'01 334101 Pol'!BC316","v":0},{"$f":"'01 334101 Pol'!BD316","v":0},{"$f":"'01 334101 Pol'!BE316","v":0}]
[{"$f":"'01 334101 Pol'!B317","v":"5"},{"$f":"'01 334101 Pol'!C317","v":"Komunikace"},null,null,{"$f":"'01 334101 Pol'!BA333","v":0},{"$f":"'01 334101 Pol'!BB333","v":0},{"$f":"'01 334101 Pol'!BC333","v":0},{"$f":"'01 334101 Pol'!BD333","v":0},{"$f":"'01 334101 Pol'!BE333","v":0}]
[{"$f":"'01 334101 Pol'!B334","v":"8"},{"$f":"'01 334101 Pol'!C334","v":"Trubní vedení"},null,null,{"$f":"'01 334101 Pol'!BA440","v":0},{"$f":"'01 334101 Pol'!BB440","v":0},{"$f":"'01 334101 Pol'!BC440","v":0},{"$f":"'01 334101 Pol'!BD440","v":0},{"$f":"'01 334101 Pol'!BE440","v":0}]
[{"$f":"'01 334101 Pol'!B441","v":"99"},{"$f":"'01 334101 Pol'!C441","v":"Staveništní přesun hmot"},null,null,{"$f":"'01 334101 Pol'!BA443","v":0},{"$f":"'01 334101 Pol'!BB443","v":0},{"$f":"'01 334101 Pol'!BC443","v":0},{"$f":"'01 334101 Pol'!BD443","v":0},{"$f":"'01 334101 Pol'!BE443","v":0}]
[null,"CELKEM  OBJEKT",null,null,{"$f":"SUM(E7:E12)","v":0},{"$f":"SUM(F7:F12)","v":0},{"$f":"SUM(G7:G12)","v":0},{"$f":"SUM(H7:H12)","v":0},{"$f":"SUM(I7:I12)","v":0}]

{"sheet":"01 334101 Pol","index":3,"n_rows":443,"n_cols":80,"rows_kept":443,"cut":false,"hidden":false,"merged":[[16,2,16,3],[17,2,17,3],[18,2,18,3],[19,2,19,3],[21,2,21,3],[23,2,23,3],[0,0,0,6],[2,0,2,1],[3,0,3,1],[3,4,3,6],[9,2,9,3],[10,2,10,3],[11,2,11,3],[13,2,13,3],[31,2,31,3],[32,2,32,3],[34,2,34,6],[35,2,35,3],[37,2,37,6],[38,2,38,3],[25,2,25,6],[26,2,26,3],[27,2,27,3],[28,2,28,3],[29,2,29,3],[30,2,30,3],[45,2,45,3],[46,2,46,3],[47,2,47,3],[48,2,48,3],[49,2,49,3],[50,2,50,3],[39,2,39,3],[40,2,40,3],[41,2,41,3],[42,2,42,3],[43,2,43,3],[44,2,44,3],[57,2,57,3],[58,2,58,3],[59,2,59,3],[60,2,60,3],[61,2,61,3],[62,2,62,3],[51,2,51,3],[52,2,52,3],[53,2,53,3],[54,2,54,3],[55,2,55,3],[56,2,56,3],[70,2,70,3],[71,2,71,3],[72,2,72,3],[73,2,73,3],[74,2,74,3],[75,2,75,3],[64,2,64,3],[65,2,65,3],[66,2,66,3],[67,2,67,3],[68,2,68,3],[69,2,69,3],[82,2,82,3],[83,2,83,3],[84,2,84,3],[85,2,85,3],[86,2,86,3],[87,2,87,3],[76,2,76,3],[77,2,77,3],[78,2,78,3],[79,2,79,3],[80,2,80,3],[81,2,81,3],[95,2,95,3],[96,2,96,3],[97,2,97,3],[98,2,98,3],[99,2,99,3],[100,2,100,3],[88,2,88,3],[90,2,90,6],[91,2,91,3],[92,2,92,3],[93,2,93,3],[94,2,94,3],[107,2,107,3],[108,2,108,3],[109,2,109,3],[110,2,110,3],[111,2,111,3],[112,2,112,3],[101,2,101,3],[102,2,102,3],[103,2,103,3],[104,2,104,3],[105,2,105,3],[106,2,106,3],[120,2,120,3],[121,2,121,3],[122,2,122,3],[123,2,123,3],[124,2,124,3],[125,2,125,3],[113,2,113,3],[114,2,114,3],[115,2,115,3],[117,2,117,3],[118,2,118,3],[119,2,119,3],[132,2,132,3],[133,2,133,3],[134,2,134,3],[135,2,135,3],[136,2,136,3],[137,2,137,3],[126,2,126,3],[127,2,127,3],[128,2,128,3],[129,2,129,3],[130,2,130,3],[131,2,131,3],[145,2,145,3],[146,2,146,3],[147,2,147,3],[148,2,148,3],[149,2,149,3],[150,2,150,3],[138,2,138,3],[139,2,139,3],[140,2,140,3],[141,2,141,3],[143,2,143,6],[144,2,144,3],[157,2,157,3],[158,2,158,3],[159,2,159,3],[160,2,160,3],[161,2,161,3],[162,2,162,3],[151,2,151,3],[152,2,152,3],[153,2,153,3],[154,2,154,3],[155,2,155,3],[156,2,156,3],[170,2,170,6],[171,2,171,6],[172,2,172,6],[173,2,173,3],[175,2,175,3],[176,2,176,3],[163,2,163,3],[164,2,164,3],[165,2,165,3],[166,2,166,3],[167,2,167,3],[168,2,168,3],[183,2,183,3],[184,2,184,3],[186,2,186,3],[187,2,187,3],[188,2,188,3],[189,2,189,3],[177,2,177,3],[178,2,178,3],[179,2,179,3],[180,2,180,3],[181,2,181,3],[182,2,182,3],[197,2,197,3],[198,2,198,3],[199,2,199,3],[200,2,200,3],[201,2,201,3],[202,2,202,3],[190,2,190,3],[191,2,191,3],[192,2,192,3],[193,2,193,3],[194,2,194,3],[196,2,196,3],[210,2,210,3],[211,2,211,3],[212,2,212,3],[213,2,213,3],[214,2,214,3],[215,2,215,3],[203,2,203,3],[204,2,204,3],[205,2,205,3],[207,2,207,3],[208,2,208,3],[209,2,209,3],[224,2,224,6],[225,2,225,3],[226,2,226,3],[227,2,227,3],[228,2,228,3],[217,2,217,3],[218,2,218,3],[219,2,219,3],[220,2,220,3],[221,2,221,3],[222,2,222,3],[235,2,235,3],[236,2,236,3],[237,2,237,3],[238,2,238,3],[239,2,239,3],[240,2,240,3],[229,2,229,3],[230,2,230,3],[231,2,231,3],[232,2,232,3],[233,2,233,3],[234,2,234,3],[247,2,247,3],[248,2,248,3],[249,2,249,3],[250,2,250,3],[252,2,252,3],[253,2,253,3],[241,2,241,3],[242,2,242,3],[243,2,243,3],[244,2,244,3],[245,2,245,3],[246,2,246,3],[262,2,262,3],[264,2,264,3],[268,2,268,6],[270,2,270,3],[272,2,272,3],[273,2,273,3],[255,2,255,3],[257,2,257,3],[258,2,258,3],[259,2,259,3],[260,2,260,3],[261,2,261,3],[284,2,284,6],[285,2,285,3],[286,2,286,3],[288,2,288,3],[289,2,289,3],[291,2,291,3],[292,2,292,3],[275,2,275,3],[276,2,276,3],[277,2,277,3],[278,2,278,3],[279,2,279,3],[280,2,280,3],[306,2,306,3],[308,2,308,3],[309,2,309,3],[310,2,310,3],[312,2,312,3],[313,2,313,3],[296,2,296,3],[297,2,297,3],[299,2,299,6],[300,2,300,3],[301,2,301,3],[302,2,302,3],[304,2,304,3],[305,2,305,3],[331,2,331,3],[335,2,335,6],[336,2,336,6],[337,2,337,3],[338,2,338,3],[339,2,339,3],[341,2,341,6],[342,2,342,3],[314,2,314,3],[318,2,318,3],[320,2,320,3],[321,2,321,3],[323,2,323,3],[325,2,325,3],[327,2,327,3],[329,2,329,3],[351,2,351,3],[352,2,352,3],[354,2,354,6],[355,2,355,6],[344,2,344,6],[345,2,345,6],[347,2,347,6],[348,2,348,6],[349,2,349,3],[350,2,350,3],[362,2,362,3],[363,2,363,3],[364,2,364,3],[366,2,366,3],[367,2,367,3],[368,2,368,3],[356,2,356,3],[358,2,358,6],[359,2,359,6],[360,2,360,6],[361,2,361,6],[377,2,377,6],[378,2,378,3],[379,2,379,3],[380,2,380,3],[381,2,381,3],[383,2,383,6],[370,2,370,6],[371,2,371,6],[372,2,372,3],[373,2,373,3],[374,2,374,3],[376,2,376,6],[391,2,391,3],[392,2,392,3],[393,2,393,3],[395,2,395,6],[396,2,396,6],[397,2,397,6],[384,2,384,6],[385,2,385,3],[386,2,386,3],[387,2,387,3],[389,2,389,6],[390,2,390,6],[406,2,406,6],[407,2,407,6],[408,2,408,3],[409,2,409,3],[410,2,410,3],[412,2,412,6],[398,2,398,6],[399,2,399,6],[402,2,402,6],[403,2,403,6],[404,2,404,6],[405,2,405,6],[420,2,420,3],[421,2,421,3],[423,2,423,3],[424,2,424,3],[425,2,425,3],[427,2,427,3],[413,2,413,6],[414,2,414,6],[416,2,416,6],[417,2,417,6],[419,2,419,3],[436,2,436,3],[437,2,437,3],[438,2,438,3],[428,2,428,3],[429,2,429,3],[431,2,431,3],[432,2,432,3],[433,2,433,3],[435,2,435,6]]}
["Položkový rozpočet "]
[]
["Stavba :",null,"3341 Přepojení ČSOV Hančova bouda Benecko",null,"Rozpočet:",{"$f":"'01 334101 Rek'!H1","v":"3341/01"}]
["Objekt :",null,"01 Gravitační stoka A, B",null,{"$f":"'01 334101 Rek'!G2","v":"Gravitační stoka A, B"}]
[]
["P.č.","Číslo položky","Název položky","MJ","množství","cena / MJ","celkem (Kč)","Jednotková hmotnost","Celková hmotnost","Jednotková dem.hmot.","Celková dem.hmot."]
["Díl:","1","Zemní práce",null,null,null,null,null,null,null,null,null,null,null,1]
[1,"111200001RA0","Odstranění křovin a stromů do 100 mm, spálení ","m2",20,null,{"$f":"E8*F8","v":0},5.0000000000000002E-5,{"$f":"E8*H8","v":1E-3},0,{"$f":"E8*J8","v":0},null,null,null,2,null,null,null,null,null,null,null,null,null,null,null,1,1,1,null,null,null,null,null,null,null,null,null,null,null,null,null,null,null,null,null,null,null,null,null,null,1,{"$f":"IF(AZ8=1,G8,0)","v":0},{"$f":"IF(AZ8=2,G8,0)","v":0},{"$f":"IF(AZ8=3,G8,0)","v":0},{"$f":"IF(AZ8=4,G8,0)","v":0},{"$f":"IF(AZ8=5,G8,0)","v":0},null,null,null,null,null,null,null,null,null,null,null,null,null,null,null,null,null,null,null,null,null,1,1]
[2,"113107520R00","Odstranění podkladu pl. 50 m2,kam.drcené tl.20 cm ","m2",79.5,null,{"$f":"E9*F9","v":0},0,{"$f":"E9*H9","v":0},-0.44,{"$f":"E9*J9","v":-34.979999999999997},null,null,null,2,null,null,null,null,null,null,null,null,null,null,null,1,1,1,null,null,null,null,null,null,null,null,null,null,null,null,null,null,null,null,null,null,null,null,null,null,1,{"$f":"IF(AZ9=1,G9,0)","v":0},{"$f":"IF(AZ9=2,G9,0)","v":0},{"$f":"IF(AZ9=3,G9,0)","v":0},{"$f":"IF(AZ9=4,G9,0)","v":0},{"$f":"IF(AZ9=5,G9,0)","v":0},null,null,null,null,null,null,null,null,null,null,null,null,null,null,null,null,null,null,null,null,null,1,1]
[null,null,"Napojení stoky:3,00*1,50",null,4.5,null,null,null,null,null,null,null,"Napojení stoky:3,00*1,50"]
[null,null,"Stoka (dílčí stěrkové povrchy):43,00",null,43,null,null,null,null,null,null,null,"Stoka (dílčí stěrkové povrchy):43,00"]
[null,null,"Zpevněné plochy:13,00+19,00",null,32,null,null,null,null,null,null,null,"Zpevněné plochy:13,00+19,00"]
[3,"113108310R00","Odstranění asfaltové vrstvy pl. do 50 m2, tl.10 cm ","m2",4.5,null,{"$f":"E13*F13","v":0},0,{"$f":"E13*H13","v":0},-0.22,{"$f":"E13*J13","v":-0.99},null,null,null,2,null,null,null,null,null,null,null,null,null,null,null,1,1,1,null,null,null,null,null,null,null,null,null,null,null,null,null,null,null,null,null,null,null,null,null,null,1,{"$f":"IF(AZ13=1,G13,0)","v":0},{"$f":"IF(AZ13=2,G13,0)","v":0},{"$f":"IF(AZ13=3,G13,0)","v":0},{"$f":"IF(AZ13=4,G13,0)","v":0},{"$f":"IF(AZ13=5,G13,0)","v":0},null,null,null,null,null,null,null,null,null,null,null,null,null,null,null,null,null,null,null,null,null,1,1]
[null,null,"Napojení stoky:3,00*1,50",null,4.5,null,null,null,null,null,null,null,"Napojení stoky:3,00*1,50"]
[4,"115101201R00","Čerpání vody na výšku do 10 m, přítok do 500 l/min ","h",50,null,{"$f":"E15*F15","v":0},0,{"$f":"E15*H15","v":0},0,{"$f":"E15*J15","v":0},null,null,null,2,null,null,null,null,null,null,null,null,null,null,null,1,1,1,null,null,null,null,null,null,null,null,null,null,null,null,null,null,null,null,null,null,null,null,null,null,1,{"$f":"IF(AZ15=1,G15,0)","v":0},{"$f":"IF(AZ15=2,G15,0)","v":0},{"$f":"IF(AZ15=3,G15,0)","v":0},{"$f":"IF(AZ15=4,G15,0)","v":0},{"$f":"IF(AZ15=5,G15,0)","v":0},null,null,null,null,null,null,null,null,null,null,null,null,null,null,null,null,null,null,null,null,null,1,1]
[5,"121100002RAA","Sejmutí ornice a uložení na deponii zpětný přesun, rozprostření v tl. 20 cm, osetí","m3",87.9,null,{"$f":"E16*F16","v":0},0,{"$f":"E16*H16","v":0},0,{"$f":"E16*J16","v":0},null,null,null,2,null,null,null,null,null,null,null,null,null,null,null,1,1,1,null,null,null,null,null,null,null,null,null,null,null,null,null,null,null,null,null,null,null,null,null,null,1,{"$f":"IF(AZ16=1,G16,0)","v":0},{"$f":"IF(AZ16=2,G16,0)","v":0},{"$f":"IF(AZ16=3,G16,0)","v":0},{"$f":"IF(AZ16=4,G16,0)","v":0},{"$f":"IF(AZ16=5,G16,0)","v":0},null,null,null,null,null,null,null,null,null,null,null,null,null,null,null,null,null,null,null,null,null,1,1]
[null,null,"Stoka \"A\" PVC DN250 Š1 až Š2 km 0,179.67 až km 0,184.79:",null,0,null,null,null,null,null,null,null,"Stoka \"A\" PVC DN250 Š1 až Š2 km 0,179.67 až km 0,184.79:"]
[null,null,"Udržovací práce - Stoka PVC DN250 nasunutá do ocelové chráničky mezi Š2 a Š3 km 0,152.00 až 0,179.67:",null,0,null,null,null,null,null,null,null,"Udržovací práce - Stoka PVC DN250 nasunutá do ocelové chráničky mezi Š2 a Š3 km 0,152.00 až 0,179.67:"]
[null,null,"Stoka \"B\" PVC DN250 Š2 až Š7 km 0,000 až 0,152.00:",null,0,null,null,null,null,null,null,null,"Stoka \"B\" PVC DN250 Š2 až Š7 km 0,000 až 0,152.00:"]
[null,null,"Ornice:146,50*3,00*0,20",null,87.9,null,null,null,null,null,null,null,"Ornice:146,50*3,00*0,20"]
[6,"122201102R00","Odkopávky nezapažené v hor. 3 do 1000 m3 ","m3",9.6,null,{"$f":"E21*F21","v":0},0,{"$f":"E21*H21","v":0},0,{"$f":"E21*J21","v":0},null,null,null,2,null,null,null,null,null,null,null,null,null,null,null,1,1,1,null,null,null,null,null,null,null,null,null,null,null,null,null,null,null,null,null,null,null,null,null,null,1,{"$f":"IF(AZ21=1,G21,0)","v":0},{"$f":"IF(AZ21=2,G21,0)","v":0},{"$f":"IF(AZ21=3,G21,0)","v":0},{"$f":"IF(AZ21=4,G21,0)","v":0},{"$f":"IF(AZ21=5,G21,0)","v":0},null,null,null,null,null,null,null,null,null,null,null,null,null,null,null,null,null,null,null,null,null,1,1]
[null,null,"Vybudování ZP:(13,00+19,00)*0,30",null,9.6,null,null,null,null,null,null,null,"Vybudování ZP:(13,00+19,00)*0,30"]
[7,"122201109R00","Příplatek za lepivost - odkopávky v hor. 3 ","m3",9.6,null,{"$f":"E23*F23","v":0},0,{"$f":"E23*H23","v":0},0,{"$f":"E23*J23","v":0},null,null,null,2,null,null,null,null,null,null,null,null,null,null,null,1,1,1,null,null,null,null,null,null,null,null,null,null,null,null,null,null,null,null,null,null,null,null,null,null,1,{"$f":"IF(AZ23=1,G23,0)","v":0},{"$f":"IF(AZ23=2,G23,0)","v":0},{"$f":"IF(AZ23=3,G23,0)","v":0},{"$f":"IF(AZ23=4,G23,0)","v":0},{"$f":"IF(AZ23=5,G23,0)","v":0},null,null,null,null,null,null,null,null,null,null,null,null,null,null,null,null,null,null,null,null,null,1,1]
[null,null,"Vybudování ZP:(13,00+19,00)*0,30",null,9.6,null,null,null,null,null,null,null,"Vybudování ZP:(13,00+19,00)*0,30"]
[8,"130001101RRX","Příplatek za ztížené hloubení v blízkosti vedení ","m3",39.012,null,{"$f":"E25*F25","v":0},0,{"$f":"E25*H25","v":0},0,{"$f":"E25*J25","v":0},null,null,null,2,null,null,null,null,null,null,null,null,null,null,null,1,1,1,null,null,null,null,null,null,null,null,null,null,null,null,null,null,null,null,null,null,null,null,null,null,1,{"$f":"IF(AZ25=1,G25,0)","v":0},{"$f":"IF(AZ25=2,G25,0)","v":0},{"$f":"IF(AZ25=3,G25,0)","v":0},{"$f":"IF(AZ25=4,G25,0)","v":0},{"$f":"IF(AZ25=5,G25,0)","v":0},null,null,null,null,null,null,null,null,null,null,null,null,null,null,null,null,null,null,null,null,null,1,1]
[null,null,"Včetně případných nutných dokopávem a ručního výkopu podél sousedících inženýrských sítí",null,null,null,null,null,null,null,null,"Včetně případných nutných dokopávem a ručního výkopu podél sousedících inženýrských sítí",null,null,3]
[null,null,"Stoka \"A\" PVC DN250 Š1 až Š2 km 0,179.67 až km 0,184.79:",null,0,null,null,null,null,null,null,null,"Stoka \"A\" PVC DN250 Š1 až Š2 km 0,179.67 až km 0,184.79:"]
[null,null,"Udržovací práce - Stoka PVC DN250 nasunutá do ocelové chráničky mezi Š2 a Š3 km 0,152.00 až 0,179.67:",null,0,null,null,null,null,null,null,null,"Udržovací práce - Stoka PVC DN250 nasunutá do ocelové chráničky mezi Š2 a Š3 km 0,152.00 až 0,179.67:"]
[null,null,"Stoka \"B\" PVC DN250 Š2 až Š7 km 0,000 až 0,152.00:",null,0,null,null,null,null,null,null,null,"Stoka \"B\" PVC DN250 Š2 až Š7 km 0,000 až 0,152.00:"]
[null,null,"Začátek provozního součtu",null,0,null,null,null,null,null,null,null,"Začátek provozního součtu"]
[null,null,"Výkopy:325,1004",null,325.10039999999998,null,null,null,null,null,null,null,"Výkopy:325,1004"]
[null,null,"Konec provozního součtu",null,325.10039999999998,null,null,null,null,null,null,null,"Konec provozního součtu"]
[null,null,"V hornině tř. 3 - 5 - 12%:325,1004*0,12",null,39.012,null,null,null,null,null,null,null,"V hornině tř. 3 - 5 - 12%:325,1004*0,12"]
[9,"130901123RT3","Bourání konstrukcí ze železobetonu ve vykopávkách bagrem s kladivem","m3",2.2155999999999998,null,{"$f":"E34*F34","v":0},0,{"$f":"E34*H34","v":0},0,{"$f":"E34*J34","v":0},null,null,null,2,null,null,null,null,null,null,null,null,null,null,null,1,1,1,null,null,null,null,null,null,null,null,null,null,null,null,null,null,null,null,null,null,null,null,null,null,1,{"$f":"IF(AZ34=1,G34,0)","v":0},{"$f":"IF(AZ34=2,G34,0)","v":0},{"$f":"IF(AZ34=3,G34,0)","v":0},{"$f":"IF(AZ34=4,G34,0)","v":0},{"$f":"IF(AZ34=5,G34,0)","v":0},null,null,null,null,null,null,null,null,null,null,null,null,null,null,null,null,null,null,null,null,null,1,1]
[null,null,"Položka obsahuje odstranění materiálu obklopujícího betonové a železobetonové konstrukce v míře nutné pro vyzvednutí, rozpojení konstrukcí, uchopení a vyzvednutí konstrukce z výkopu a uložení na dopravní prostředek včetně odvozu na skládku zhotovitele a poplatek za skládku.",null,null,null,null,null,null,null,null,"Položka obsahuje odstranění materiálu obklopujícího betonové a železobetonové konstrukce v míře nutné pro vyzvednutí, rozpojení konstrukcí, uchopení a vyzvednutí konstrukce z výkopu a uložení na dopravní prostředek včetně odvozu na skládku zhotovitele a poplatek za skládku.",null,null,3]
[null,null,"Odstranění stávající šachty ČSOV:2,2156",null,2.2155999999999998,null,null,null,null,null,null,null,"Odstranění stávající šachty ČSOV:2,2156"]
[10,"132201212R00","Hloubení rýh š.do 200 cm hor.3 do 1000m3,STROJNĚ ","m3",146.29519999999999,null,{"$f":"E37*F37","v":0},0,{"$f":"E37*H37","v":0},0,{"$f":"E37*J37","v":0},null,null,null,2,null,null,null,null,null,null,null,null,null,null,null,1,1,1,null,null,null,null,null,null,null,null,null,null,null,null,null,null,null,null,null,null,null,null,null,null,1,{"$f":"IF(AZ37=1,G37,0)","v":0},{"$f":"IF(AZ37=2,G37,0)","v":0},{"$f":"IF(AZ37=3,G37,0)","v":0},{"$f":"IF(AZ37=4,G37,0)","v":0},{"$f":"IF(AZ37=5,G37,0)","v":0},null,null,null,null,null,null,null,null,null,null,null,null,null,null,null,null,null,null,null,null,null,1,1]
[null,null,"Položka obsahuje hloubení rýh traktorbagrem, naložení výkopku na dopravní prostředek pro svislé, nebo vodorovné přemístění, popř. přemístění výkopku do 3 m (po povrchu území), případné zajištění rypadel polštáři, udržování pracoviště a ochranu výkopiště proti stékání srážkové vody z okolního terénu i s jejím odvodněním, nebo odvedením, přesekání a odstranění kořenů ve výkopišti, odstranění napadávek, urovnání dna výkopu.",null,null,null,null,null,null,null,null,"Položka obsahuje hloubení rýh traktorbagrem, naložení výkopku na dopravní prostředek pro svislé, nebo vodorovné přemístění, popř. přemístění výkopku do 3 m (po povrchu území), případné zajištění rypadel polštáři, udržování pracoviště a ochranu výkopiště proti stékání srážkové vody z okolního terénu i s jejím odvodněním, nebo odvedením, přesekání a odstranění kořenů ve výkopišti, odstranění napadávek, urovnání dna výkopu.",null,null,3]
[null,null,"Začátek provozního součtu",null,0,null,null,null,null,null,null,null,"Začátek provozního součtu"]
[null,null,"Stoka \"A\" PVC DN250 Š1 až Š2 km 0,179.67 až km 0,184.79:",null,0,null,null,null,null,null,null,null,"Stoka \"A\" PVC DN250 Š1 až Š2 km 0,179.67 až km 0,184.79:"]
[null,null,"Udržovací práce - Stoka PVC DN250 nasunutá do ocelové chráničky mezi Š2 a Š3 km 0,152.00 až 0,179.67:",null,0,null,null,null,null,null,null,null,"Udržovací práce - Stoka PVC DN250 nasunutá do ocelové chráničky mezi Š2 a Š3 km 0,152.00 až 0,179.67:"]
[null,null,"Stoka \"B\" PVC DN250 Š2 až Š7 km 0,000 až 0,152.00:",null,0,null,null,null,null,null,null,null,"Stoka \"B\" PVC DN250 Š2 až Š7 km 0,000 až 0,152.00:"]
[null,null,"Prostor pro napojení Š7:1,50*3,00*1,67",null,7.5149999999999997,null,null,null,null,null,null,null,"Prostor pro napojení Š7:1,50*3,00*1,67"]
[null,null,"5,55*1,20*(1,67+2,81)/2",null,14.9184,null,null,null,null,null,null,null,"5,55*1,20*(1,67+2,81)/2"]
[null,null,"(7,66-5,55)*1,20*(2,81+2,54)/2",null,6.7731000000000003,null,null,null,null,null,null,null,"(7,66-5,55)*1,20*(2,81+2,54)/2"]
[null,null,"(11,59-7,66)*1,00*(2,54+1,85)/2",null,8.6264000000000003,null,null,null,null,null,null,null,"(11,59-7,66)*1,00*(2,54+1,85)/2"]
[null,null,"(24,16-11,59)*1,00*(1,85+1,65)/2",null,21.997499999999999,null,null,null,null,null,null,null,"(24,16-11,59)*1,00*(1,85+1,65)/2"]
[null,null,"(104,46-24,16)*1,00*(1,65+2,00)/2",null,146.54750000000001,null,null,null,null,null,null,null,"(104,46-24,16)*1,00*(1,65+2,00)/2"]
[null,null,"(109,91-104,46)*1,20*(1,66+3,22)/2",null,15.957599999999999,null,null,null,null,null,null,null,"(109,91-104,46)*1,20*(1,66+3,22)/2"]
[null,null,"(112,81-109,91)*1,20*(3,22+3,17)/2",null,11.118600000000001,null,null,null,null,null,null,null,"(112,81-109,91)*1,20*(3,22+3,17)/2"]
[null,null,"(123,09-112,81)*1,00*(2,25+1,60)/2",null,19.789000000000001,null,null,null,null,null,null,null,"(123,09-112,81)*1,00*(2,25+1,60)/2"]
[null,null,"(141,35-123,09)*1,00*(1,60+2,37)/2",null,36.246099999999998,null,null,null,null,null,null,null,"(141,35-123,09)*1,00*(1,60+2,37)/2"]
[null,null,"(152,00-141,35)*1,00*(2,37+1,75)/2",null,21.939,null,null,null,null,null,null,null,"(152,00-141,35)*1,00*(2,37+1,75)/2"]
[null,null,"Startovací jáma:5,00*2,00*2,20",null,22,null,null,null,null,null,null,null,"Startovací jáma:5,00*2,00*2,20"]
[null,null,"Cílová jáma:2,00*2,00*2,20",null,8.8000000000000007,null,null,null,null,null,null,null,"Cílová jáma:2,00*2,00*2,20"]
[null,null,"(185,79-179,67)*1,00*(2,14+2,15)/2",null,13.1274,null,null,null,null,null,null,null,"(185,79-179,67)*1,00*(2,14+2,15)/2"]
[null,null,"Prohloubení pro RŠ:1,60*1,60*0,20*5",null,2.56,null,null,null,null,null,null,null,"Prohloubení pro RŠ:1,60*1,60*0,20*5"]
[null,null,"Rozšíření pro RŠ:1,60*(1,60-1,20)*(2,65+3,17)",null,3.7248000000000001,null,null,null,null,null,null,null,"Rozšíření pro RŠ:1,60*(1,60-1,20)*(2,65+3,17)"]
[null,null,"1,60*(1,60-1,00)*(1,85+2,15)",null,3.84,null,null,null,null,null,null,null,"1,60*(1,60-1,00)*(1,85+2,15)"]
[null,null,"Odpočet objemu ornice:-31,6800",null,-31.68,null,null,null,null,null,null,null,"Odpočet objemu ornice:-31,6800"]
[null,null,"Odpočet objemu komunikací a štěrkových ploch:-8,7000",null,-8.6999999999999993,null,null,null,null,null,null,null,"Odpočet objemu komunikací a štěrkových ploch:-8,7000"]
[null,null,"Konec provozního součtu",null,325.10040000000009,null,null,null,null,null,null,null,"Konec provozního součtu"]
[null,null,"V hornině tř. 3 - 45%:325,1004*0,45",null,146.29519999999999,null,null,null,null,null,null,null,"V hornině tř. 3 - 45%:325,1004*0,45"]
[11,"132201219R00","Přípl.za lepivost,hloubení rýh 200cm,hor.3,STROJNĚ ","m3",73.147599999999997,null,{"$f":"E64*F64","v":0},0,{"$f":"E64*H64","v":0},0,{"$f":"E64*J64","v":0},null,null,null,2,null,null,null,null,null,null,null,null,null,null,null,1,1,1,null,null,null,null,null,null,null,null,null,null,null,null,null,null,null,null,null,null,null,null,null,null,1,{"$f":"IF(AZ64=1,G64,0)","v":0},{"$f":"IF(AZ64=2,G64,0)","v":0},{"$f":"IF(AZ64=3,G64,0)","v":0},{"$f":"IF(AZ64=4,G64,0)","v":0},{"$f":"IF(AZ64=5,G64,0)","v":0},null,null,null,null,null,null,null,null,null,null,null,null,null,null,null,null,null,null,null,null,null,1,1]
[null,null,"Začátek provozního součtu",null,0,null,null,null,null,null,null,null,"Začátek provozního součtu"]
[null,null,"Stoka \"A\" PVC DN250 Š1 až Š2 km 0,179.67 až km 0,184.79:",null,0,null,null,null,null,null,null,null,"Stoka \"A\" PVC DN250 Š1 až Š2 km 0,179.67 až km 0,184.79:"]
[null,null,"Udržovací práce - Stoka PVC DN250 nasunutá do ocelové chráničky mezi Š2 a Š3 km 0,152.00 až 0,179.67:",null,0,null,null,null,null,null,null,null,"Udržovací práce - Stoka PVC DN250 nasunutá do ocelové chráničky mezi Š2 a Š3 km 0,152.00 až 0,179.67:"]
[null,null,"Stoka \"B\" PVC DN250 Š2 až Š7 km 0,000 až 0,152.00:",null,0,null,null,null,null,null,null,null,"Stoka \"B\" PVC DN250 Š2 až Š7 km 0,000 až 0,152.00:"]
[null,null,"Prostor pro napojení Š7:1,50*3,00*1,67",null,7.5149999999999997,null,null,null,null,null,null,null,"Prostor pro napojení Š7:1,50*3,00*1,67"]
[null,null,"5,55*1,20*(1,67+2,81)/2",null,14.9184,null,null,null,null,null,null,null,"5,55*1,20*(1,67+2,81)/2"]
[null,null,"(7,66-5,55)*1,20*(2,81+2,54)/2",null,6.7731000000000003,null,null,null,null,null,null,null,"(7,66-5,55)*1,20*(2,81+2,54)/2"]
[null,null,"(11,59-7,66)*1,00*(2,54+1,85)/2",null,8.6264000000000003,null,null,null,null,null,null,null,"(11,59-7,66)*1,00*(2,54+1,85)/2"]
[null,null,"(24,16-11,59)*1,00*(1,85+1,65)/2",null,21.997499999999999,null,null,null,null,null,null,null,"(24,16-11,59)*1,00*(1,85+1,65)/2"]
[null,null,"(104,46-24,16)*1,00*(1,65+2,00)/2",null,146.54750000000001,null,null,null,null,null,null,null,"(104,46-24,16)*1,00*(1,65+2,00)/2"]
[null,null,"(109,91-104,46)*1,20*(1,66+3,22)/2",null,15.957599999999999,null,null,null,null,null,null,null,"(109,91-104,46)*1,20*(1,66+3,22)/2"]
[null,null,"(112,81-109,91)*1,20*(3,22+3,17)/2",null,11.118600000000001,null,null,null,null,null,null,null,"(112,81-109,91)*1,20*(3,22+3,17)/2"]
[null,null,"(123,09-112,81)*1,00*(2,25+1,60)/2",null,19.789000000000001,null,null,null,null,null,null,null,"(123,09-112,81)*1,00*(2,25+1,60)/2"]
[null,null,"(141,35-123,09)*1,00*(1,60+2,37)/2",null,36.246099999999998,null,null,null,null,null,null,null,"(141,35-123,09)*1,00*(1,60+2,37)/2"]
[null,null,"(152,00-141,35)*1,00*(2,37+1,75)/2",null,21.939,null,null,null,null,null,null,null,"(152,00-141,35)*1,00*(2,37+1,75)/2"]
[null,null,"Startovací jáma:5,00*2,00*2,20",null,22,null,null,null,null,null,null,null,"Startovací jáma:5,00*2,00*2,20"]
[null,null,"Cílová jáma:2,00*2,00*2,20",null,8.8000000000000007,null,null,null,null,null,null,null,"Cílová jáma:2,00*2,00*2,20"]
[null,null,"(185,79-179,67)*1,00*(2,14+2,15)/2",null,13.1274,null,null,null,null,null,null,null,"(185,79-179,67)*1,00*(2,14+2,15)/2"]
[null,null,"Prohloubení pro RŠ:1,60*1,60*0,20*5",null,2.56,null,null,null,null,null,null,null,"Prohloubení pro RŠ:1,60*1,60*0,20*5"]
[null,null,"Rozšíření pro RŠ:1,60*(1,60-1,20)*(2,65+3,17)",null,3.7248000000000001,null,null,null,null,null,null,null,"Rozšíření pro RŠ:1,60*(1,60-1,20)*(2,65+3,17)"]
[null,null,"1,60*(1,60-1,00)*(1,85+2,15)",null,3.84,null,null,null,null,null,null,null,"1,60*(1,60-1,00)*(1,85+2,15)"]
[null,null,"Odpočet objemu ornice:-31,6800",null,-31.68,null,null,null,null,null,null,null,"Odpočet objemu ornice:-31,6800"]
[null,null,"Odpočet objemu komunikací a štěrkových ploch:-8,7000",null,-8.6999999999999993,null,null,null,null,null,null,null,"Odpočet objemu komunikací a štěrkových ploch:-8,7000"]
[null,null,"Konec provozního součtu",null,325.10040000000009,null,null,null,null,null,null,null,"Konec provozního součtu"]
[null,null,"V hornině tř. 3 - 45%:325,1004*0,45*0,5",null,73.147599999999997,null,null,null,null,null,null,null,"V hornině tř. 3 - 45%:325,1004*0,45*0,5"]
[12,"132301212R00","Hloubení rýh š.do 200 cm hor.4 do 1000 m3, STROJNĚ ","m3",146.29519999999999,null,{"$f":"E90*F90","v":0},0,{"$f":"E90*H90","v":0},0,{"$f":"E90*J90","v":0},null,null,null,2,null,null,null,null,null,null,null,null,null,null,null,1,1,1,null,null,null,null,null,null,null,null,null,null,null,null,null,null,null,null,null,null,null,null,null,null,1,{"$f":"IF(AZ90=1,G90,0)","v":0},{"$f":"IF(AZ90=2,G90,0)","v":0},{"$f":"IF(AZ90=3,G90,0)","v":0},{"$f":"IF(AZ90=4,G90,0)","v":0},{"$f":"IF(AZ90=5,G90,0)","v":0},null,null,null,null,null,null,null,null,null,null,null,null,null,null,null,null,null,null,null,null,null,1,1]
[null,null,"Položka obsahuje hloubení rýh traktorbagrem, naložení výkopku na dopravní prostředek pro svislé, nebo vodorovné přemístění, popř. přemístění výkopku do 3 m (po povrchu území), případné zajištění rypadel polštáři, udržování pracoviště a ochranu výkopiště proti stékání srážkové vody z okolního terénu i s jejím odvodněním, nebo odvedením, přesekání a odstranění kořenů ve výkopišti, odstranění napadávek, urovnání dna výkopu.",null,null,null,null,null,null,null,null,"Položka obsahuje hloubení rýh traktorbagrem, naložení výkopku na dopravní prostředek pro svislé, nebo vodorovné přemístění, popř. přemístění výkopku do 3 m (po povrchu území), případné zajištění rypadel polštáři, udržování pracoviště a ochranu výkopiště proti stékání srážkové vody z okolního terénu i s jejím odvodněním, nebo odvedením, přesekání a odstranění kořenů ve výkopišti, odstranění napadávek, urovnání dna výkopu.",null,null,3]
[null,null,"Začátek provozního součtu",null,0,null,null,null,null,null,null,null,"Začátek provozního součtu"]
[null,null,"Stoka \"A\" PVC DN250 Š1 až Š2 km 0,179.67 až km 0,184.79:",null,0,null,null,null,null,null,null,null,"Stoka \"A\" PVC DN250 Š1 až Š2 km 0,179.67 až km 0,184.79:"]
[null,null,"Udržovací práce - Stoka PVC DN250 nasunutá do ocelové chráničky mezi Š2 a Š3 km 0,152.00 až 0,179.67:",null,0,null,null,null,null,null,null,null,"Udržovací práce - Stoka PVC DN250 nasunutá do ocelové chráničky mezi Š2 a Š3 km 0,152.00 až 0,179.67:"]
[null,null,"Stoka \"B\" PVC DN250 Š2 až Š7 km 0,000 až 0,152.00:",null,0,null,null,null,null,null,null,null,"Stoka \"B\" PVC DN250 Š2 až Š7 km 0,000 až 0,152.00:"]
[null,null,"Prostor pro napojení Š7:1,50*3,00*1,67",null,7.5149999999999997,null,null,null,null,null,null,null,"Prostor pro napojení Š7:1,50*3,00*1,67"]
[null,null,"5,55*1,20*(1,67+2,81)/2",null,14.9184,null,null,null,null,null,null,null,"5,55*1,20*(1,67+2,81)/2"]
[null,null,"(7,66-5,55)*1,20*(2,81+2,54)/2",null,6.7731000000000003,null,null,null,null,null,null,null,"(7,66-5,55)*1,20*(2,81+2,54)/2"]
[null,null,"(11,59-7,66)*1,00*(2,54+1,85)/2",null,8.6264000000000003,null,null,null,null,null,null,null,"(11,59-7,66)*1,00*(2,54+1,85)/2"]
[null,null,"(24,16-11,59)*1,00*(1,85+1,65)/2",null,21.997499999999999,null,null,null,null,null,null,null,"(24,16-11,59)*1,00*(1,85+1,65)/2"]
[null,null,"(104,46-24,16)*1,00*(1,65+2,00)/2",null,146.54750000000001,null,null,null,null,null,null,null,"(104,46-24,16)*1,00*(1,65+2,00)/2"]
[null,null,"(109,91-104,46)*1,20*(1,66+3,22)/2",null,15.957599999999999,null,null,null,null,null,null,null,"(109,91-104,46)*1,20*(1,66+3,22)/2"]
[null,null,"(112,81-109,91)*1,20*(3,22+3,17)/2",null,11.118600000000001,null,null,null,null,null,null,null,"(112,81-109,91)*1,20*(3,22+3,17)/2"]
[null,null,"(123,09-112,81)*1,00*(2,25+1,60)/2",null,19.789000000000001,null,null,null,null,null,null,null,"(123,09-112,81)*1,00*(2,25+1,60)/2"]
[null,null,"(141,35-123,09)*1,00*(1,60+2,37)/2",null,36.246099999999998,null,null,null,null,null,null,null,"(141,35-123,09)*1,00*(1,60+2,37)/2"]
[null,null,"(152,00-141,35)*1,00*(2,37+1,75)/2",null,21.939,null,null,null,null,null,null,null,"(152,00-141,35)*1,00*(2,37+1,75)/2"]
[null,null,"Startovací jáma:5,00*2,00*2,20",null,22,null,null,null,null,null,null,null,"Startovací jáma:5,00*2,00*2,20"]
[null,null,"Cílová jáma:2,00*2,00*2,20",null,8.8000000000000007,null,null,null,null,null,null,null,"Cílová jáma:2,00*2,00*2,20"]
[null,null,"(185,79-179,67)*1,00*(2,14+2,15)/2",null,13.1274,null,null,null,null,null,null,null,"(185,79-179,67)*1,00*(2,14+2,15)/2"]
[null,null,"Prohloubení pro RŠ:1,60*1,60*0,20*5",null,2.56,null,null,null,null,null,null,null,"Prohloubení pro RŠ:1,60*1,60*0,20*5"]
[null,null,"Rozšíření pro RŠ:1,60*(1,60-1,20)*(2,65+3,17)",null,3.7248000000000001,null,null,null,null,null,null,null,"Rozšíření pro RŠ:1,60*(1,60-1,20)*(2,65+3,17)"]
[null,null,"1,60*(1,60-1,00)*(1,85+2,15)",null,3.84,null,null,null,null,null,null,null,"1,60*(1,60-1,00)*(1,85+2,15)"]
[null,null,"Odpočet objemu ornice:-31,6800",null,-31.68,null,null,null,null,null,null,null,"Odpočet objemu ornice:-31,6800"]
[null,null,"Odpočet objemu komunikací a štěrkových ploch:-8,7000",null,-8.6999999999999993,null,null,null,null,null,null,null,"Odpočet objemu komunikací a štěrkových ploch:-8,7000"]
[null,null,"Konec provozního součtu",null,325.10040000000009,null,null,null,null,null,null,null,"Konec provozního součtu"]
[null,null,"V hornině tř. 4 - 45%:325,1004*0,45",null,146.29519999999999,null,null,null,null,null,null,null,"V hornině tř. 4 - 45%:325,1004*0,45"]
[13,"132301219R00","Přípl.za lepivost,hloubení rýh 200cm,hor.4,STROJNĚ ","m3",73.147599999999997,null,{"$f":"E117*F117","v":0},0,{"$f":"E117*H117","v":0},0,{"$f":"E117*J117","v":0},null,null,null,2,null,null,null,null,null,null,null,null,null,null,null,1,1,1,null,null,null,null,null,null,null,null,null,null,null,null,null,null,null,null,null,null,null,null,null,null,1,{"$f":"IF(AZ117=1,G117,0)","v":0},{"$f":"IF(AZ117=2,G117,0)","v":0},{"$f":"IF(AZ117=3,G117,0)","v":0},{"$f":"IF(AZ117=4,G117,0)","v":0},{"$f":"IF(AZ117=5,G117,0)","v":0},null,null,null,null,null,null,null,null,null,null,null,null,null,null,null,null,null,null,null,null,null,1,1]
[null,null,"Začátek provozního součtu",null,0,null,null,null,null,null,null,null,"Začátek provozního součtu"]
[null,null,"Stoka \"A\" PVC DN250 Š1 až Š2 km 0,179.67 až km 0,184.79:",null,0,null,null,null,null,null,null,null,"Stoka \"A\" PVC DN250 Š1 až Š2 km 0,179.67 až km 0,184.79:"]
[null,null,"Udržovací práce - Stoka PVC DN250 nasunutá do ocelové chráničky mezi Š2 a Š3 km 0,152.00 až 0,179.67:",null,0,null,null,null,null,null,null,null,"Udržovací práce - Stoka PVC DN250 nasunutá do ocelové chráničky mezi Š2 a Š3 km 0,152.00 až 0,179.67:"]
[null,null,"Stoka \"B\" PVC DN250 Š2 až Š7 km 0,000 až 0,152.00:",null,0,null,null,null,null,null,null,null,"Stoka \"B\" PVC DN250 Š2 až Š7 km 0,000 až 0,152.00:"]
[null,null,"Prostor pro napojení Š7:1,50*3,00*1,67",null,7.5149999999999997,null,null,null,null,null,null,null,"Prostor pro napojení Š7:1,50*3,00*1,67"]
[null,null,"5,55*1,20*(1,67+2,81)/2",null,14.9184,null,null,null,null,null,null,null,"5,55*1,20*(1,67+2,81)/2"]
[null,null,"(7,66-5,55)*1,20*(2,81+2,54)/2",null,6.7731000000000003,null,null,null,null,null,null,null,"(7,66-5,55)*1,20*(2,81+2,54)/2"]
[null,null,"(11,59-7,66)*1,00*(2,54+1,85)/2",null,8.6264000000000003,null,null,null,null,null,null,null,"(11,59-7,66)*1,00*(2,54+1,85)/2"]
[null,null,"(24,16-11,59)*1,00*(1,85+1,65)/2",null,21.997499999999999,null,null,null,null,null,null,null,"(24,16-11,59)*1,00*(1,85+1,65)/2"]
[null,null,"(104,46-24,16)*1,00*(1,65+2,00)/2",null,146.54750000000001,null,null,null,null,null,null,null,"(104,46-24,16)*1,00*(1,65+2,00)/2"]
[null,null,"(109,91-104,46)*1,20*(1,66+3,22)/2",null,15.957599999999999,null,null,null,null,null,null,null,"(109,91-104,46)*1,20*(1,66+3,22)/2"]
[null,null,"(112,81-109,91)*1,20*(3,22+3,17)/2",null,11.118600000000001,null,null,null,null,null,null,null,"(112,81-109,91)*1,20*(3,22+3,17)/2"]
[null,null,"(123,09-112,81)*1,00*(2,25+1,60)/2",null,19.789000000000001,null,null,null,null,null,null,null,"(123,09-112,81)*1,00*(2,25+1,60)/2"]
[null,null,"(141,35-123,09)*1,00*(1,60+2,37)/2",null,36.246099999999998,null,null,null,null,null,null,null,"(141,35-123,09)*1,00*(1,60+2,37)/2"]
[null,null,"(152,00-141,35)*1,00*(2,37+1,75)/2",null,21.939,null,null,null,null,null,null,null,"(152,00-141,35)*1,00*(2,37+1,75)/2"]
[null,null,"Startovací jáma:5,00*2,00*2,20",null,22,null,null,null,null,null,null,null,"Startovací jáma:5,00*2,00*2,20"]
[null,null,"Cílová jáma:2,00*2,00*2,20",null,8.8000000000000007,null,null,null,null,null,null,null,"Cílová jáma:2,00*2,00*2,20"]
[null,null,"(185,79-179,67)*1,00*(2,14+2,15)/2",null,13.1274,null,null,null,null,null,null,null,"(185,79-179,67)*1,00*(2,14+2,15)/2"]
[null,null,"Prohloubení pro RŠ:1,60*1,60*0,20*5",null,2.56,null,null,null,null,null,null,null,"Prohloubení pro RŠ:1,60*1,60*0,20*5"]
[null,null,"Rozšíření pro RŠ:1,60*(1,60-1,20)*(2,65+3,17)",null,3.7248000000000001,null,null,null,null,null,null,null,"Rozšíření pro RŠ:1,60*(1,60-1,20)*(2,65+3,17)"]
[null,null,"1,60*(1,60-1,00)*(1,85+2,15)",null,3.84,null,null,null,null,null,null,null,"1,60*(1,60-1,00)*(1,85+2,15)"]
[null,null,"Odpočet objemu ornice:-31,6800",null,-31.68,null,null,null,null,null,null,null,"Odpočet objemu ornice:-31,6800"]
[null,null,"Odpočet objemu komunikací a štěrkových ploch:-8,7000",null,-8.6999999999999993,null,null,null,null,null,null,null,"Odpočet objemu komunikací a štěrkových ploch:-8,7000"]
[null,null,"Konec provozního součtu",null,325.10040000000009,null,null,null,null,null,null,null,"Konec provozního součtu"]
[null,null,"V hornině tř. 4 - 45%:325,1004*0,45*0,5",null,73.147599999999997,null,null,null,null,null,null,null,"V hornině tř. 4 - 45%:325,1004*0,45*0,5"]
[14,"132401211R00","Hloubení rýh šířky do 200 cm v hor.5, STROJNĚ ","m3",32.51,null,{"$f":"E143*F143","v":0},0,{"$f":"E143*H143","v":0},0,{"$f":"E143*J143","v":0},null,null,null,2,null,null,null,null,null,null,null,null,null,null,null,1,1,1,null,null,null,null,null,null,null,null,null,null,null,null,null,null,null,null,null,null,null,null,null,null,1,{"$f":"IF(AZ143=1,G143,0)","v":0},{"$f":"IF(AZ143=2,G143,0)","v":0},{"$f":"IF(AZ143=3,G143,0)","v":0},{"$f":"IF(AZ143=4,G143,0)","v":0},{"$f":"IF(AZ143=5,G143,0)","v":0},null,null,null,null,null,null,null,null,null,null,null,null,null,null,null,null,null,null,null,null,null,1,1]
[null,null,"Položka obsahuje hloubení jámy kolovým rypadlem s rozrývacím zubem, naložení výkopku na dopravní prostředek pro svislé, nebo vodorovné přemístění, popř. přemístění výkopku do 3 m (po povrchu území), případné zajištění rypadel polštáři, udržování pracoviště a ochranu výkopiště proti stékání srážkové vody z okolního terénu i s jejím odvodněním, nebo odvedením, přesekání a odstranění kořenů ve výkopišti, odstranění napadávek, urovnání dna výkopu. Položka se používá bez ohledu na těžené množství.",null,null,null,null,null,null,null,null,"Položka obsahuje hloubení jámy kolovým rypadlem s rozrývacím zubem, naložení výkopku na dopravní prostředek pro svislé, nebo vodorovné přemístění, popř. přemístění výkopku do 3 m (po povrchu území), případné zajištění rypadel polštáři, udržování pracoviště a ochranu výkopiště proti stékání srážkové vody z okolního terénu i s jejím odvodněním, nebo odvedením, přesekání a odstranění kořenů ve výkopišti, odstranění napadávek, urovnání dna výkopu. Položka se používá bez ohledu na těžené množství.",null,null,3]
[null,null,"Začátek provozního součtu",null,0,null,null,null,null,null,null,null,"Začátek provozního součtu"]
[null,null,"Stoka \"A\" PVC DN250 Š1 až Š2 km 0,179.67 až km 0,184.79:",null,0,null,null,null,null,null,null,null,"Stoka \"A\" PVC DN250 Š1 až Š2 km 0,179.67 až km 0,184.79:"]
[null,null,"Udržovací práce - Stoka PVC DN250 nasunutá do ocelové chráničky mezi Š2 a Š3 km 0,152.00 až 0,179.67:",null,0,null,null,null,null,null,null,null,"Udržovací práce - Stoka PVC DN250 nasunutá do ocelové chráničky mezi Š2 a Š3 km 0,152.00 až 0,179.67:"]
[null,null,"Stoka \"B\" PVC DN250 Š2 až Š7 km 0,000 až 0,152.00:",null,0,null,null,null,null,null,null,null,"Stoka \"B\" PVC DN250 Š2 až Š7 km 0,000 až 0,152.00:"]
[null,null,"Prostor pro napojení Š7:1,50*3,00*1,67",null,7.5149999999999997,null,null,null,null,null,null,null,"Prostor pro napojení Š7:1,50*3,00*1,67"]
[null,null,"5,55*1,20*(1,67+2,81)/2",null,14.9184,null,null,null,null,null,null,null,"5,55*1,20*(1,67+2,81)/2"]
[null,null,"(7,66-5,55)*1,20*(2,81+2,54)/2",null,6.7731000000000003,null,null,null,null,null,null,null,"(7,66-5,55)*1,20*(2,81+2,54)/2"]
[null,null,"(11,59-7,66)*1,00*(2,54+1,85)/2",null,8.6264000000000003,null,null,null,null,null,null,null,"(11,59-7,66)*1,00*(2,54+1,85)/2"]
[null,null,"(24,16-11,59)*1,00*(1,85+1,65)/2",null,21.997499999999999,null,null,null,null,null,null,null,"(24,16-11,59)*1,00*(1,85+1,65)/2"]
[null,null,"(104,46-24,16)*1,00*(1,65+2,00)/2",null,146.54750000000001,null,null,null,null,null,null,null,"(104,46-24,16)*1,00*(1,65+2,00)/2"]
[null,null,"(109,91-104,46)*1,20*(1,66+3,22)/2",null,15.957599999999999,null,null,null,null,null,null,null,"(109,91-104,46)*1,20*(1,66+3,22)/2"]
[null,null,"(112,81-109,91)*1,20*(3,22+3,17)/2",null,11.118600000000001,null,null,null,null,null,null,null,"(112,81-109,91)*1,20*(3,22+3,17)/2"]
[null,null,"(123,09-112,81)*1,00*(2,25+1,60)/2",null,19.789000000000001,null,null,null,null,null,null,null,"(123,09-112,81)*1,00*(2,25+1,60)/2"]
[null,null,"(141,35-123,09)*1,00*(1,60+2,37)/2",null,36.246099999999998,null,null,null,null,null,null,null,"(141,35-123,09)*1,00*(1,60+2,37)/2"]
[null,null,"(152,00-141,35)*1,00*(2,37+1,75)/2",null,21.939,null,null,null,null,null,null,null,"(152,00-141,35)*1,00*(2,37+1,75)/2"]
[null,null,"Startovací jáma:5,00*2,00*2,20",null,22,null,null,null,null,null,null,null,"Startovací jáma:5,00*2,00*2,20"]
[null,null,"Cílová jáma:2,00*2,00*2,20",null,8.8000000000000007,null,null,null,null,null,null,null,"Cílová jáma:2,00*2,00*2,20"]
[null,null,"(185,79-179,67)*1,00*(2,14+2,15)/2",null,13.1274,null,null,null,null,null,null,null,"(185,79-179,67)*1,00*(2,14+2,15)/2"]
[null,null,"Prohloubení pro RŠ:1,60*1,60*0,20*5",null,2.56,null,null,null,null,null,null,null,"Prohloubení pro RŠ:1,60*1,60*0,20*5"]
[null,null,"Rozšíření pro RŠ:1,60*(1,60-1,20)*(2,65+3,17)",null,3.7248000000000001,null,null,null,null,null,null,null,"Rozšíření pro RŠ:1,60*(1,60-1,20)*(2,65+3,17)"]
[null,null,"1,60*(1,60-1,00)*(1,85+2,15)",null,3.84,null,null,null,null,null,null,null,"1,60*(1,60-1,00)*(1,85+2,15)"]
[null,null,"Odpočet objemu ornice:-31,6800",null,-31.68,null,null,null,null,null,null,null,"Odpočet objemu ornice:-31,6800"]
[null,null,"Odpočet objemu komunikací a štěrkových ploch:-8,7000",null,-8.6999999999999993,null,null,null,null,null,null,null,"Odpočet objemu komunikací a štěrkových ploch:-8,7000"]
[null,null,"Konec provozního součtu",null,325.10040000000009,null,null,null,null,null,null,null,"Konec provozního součtu"]
[null,null,"V hornině tř. 5 - 10%:325,1004*0,1",null,32.51,null,null,null,null,null,null,null,"V hornině tř. 5 - 10%:325,1004*0,1"]
[15,"141741118R00","Protlak z ocel. trub beraněný, v hor.1-4, D 377 mm ","m",26.43,null,{"$f":"E170*F170","v":0},5.0000000000000001E-4,{"$f":"E170*H170","v":1.3214999999999999E-2},0,{"$f":"E170*J170","v":0},null,null,null,2,null,null,null,null,null,null,null,null,null,null,null,1,1,1,null,null,null,null,null,null,null,null,null,null,null,null,null,null,null,null,null,null,null,null,null,null,1,{"$f":"IF(AZ170=1,G170,0)","v":0},{"$f":"IF(AZ170=2,G170,0)","v":0},{"$f":"IF(AZ170=3,G170,0)","v":0},{"$f":"IF(AZ170=4,G170,0)","v":0},{"$f":"IF(AZ170=5,G170,0)","v":0},null,null,null,null,null,null,null,null,null,null,null,null,null,null,null,null,null,null,null,null,null,1,1]
[null,null,"Dodávka trub se oceňuje ve specifikaci. Ztratné se doporučuje ve výši 10 %.",null,null,null,null,null,null,null,null,"Dodávka trub se oceňuje ve specifikaci. Ztratné se doporučuje ve výši 10 %.",null,null,3]
[null,null,"Položka obsahuje náklady na spojování protlačovaných trub, úpravu čela potrubí pro protlačení, odstranění horniny z protlačovaných trub stlačeným vzduchem, vodorovné přemístění výkopku z protlačovaného potrubí a svislé přemístění výkopku z montážní jámy na přilehlý terén.",null,null,null,null,null,null,null,null,"Položka obsahuje náklady na spojování protlačovaných trub, úpravu čela potrubí pro protlačení, odstranění horniny z protlačovaných trub stlačeným vzduchem, vodorovné přemístění výkopku z protlačovaného potrubí a svislé přemístění výkopku z montážní jámy na přilehlý terén.",null,null,3]
[null,null,"Položka neobsahuje zemní práce pro startovací a vytahovací jámy, případné roubení, čerpání vody, montáž vedení do chráničky a případné zřízení opěrné konstrukce pro zatlačovací zařízení, úpravu dna startovací jámy kamenivem ani silničními panely.",null,null,null,null,null,null,null,null,"Položka neobsahuje zemní práce pro startovací a vytahovací jámy, případné roubení, čerpání vody, montáž vedení do chráničky a případné zřízení opěrné konstrukce pro zatlačovací zařízení, úpravu dna startovací jámy kamenivem ani silničními panely.",null,null,3]
[null,null,"Chránička DN350 od km 0,152.62 do km 0,179.05:179,05-152,62",null,26.43,null,null,null,null,null,null,null,"Chránička DN350 od km 0,152.62 do km 0,179.05:179,05-152,62"]
[16,"151101101R00","Pažení a rozepření stěn rýh - příložné - hl.do 2 m ","m2",529.31299999999999,null,{"$f":"E175*F175","v":0},9.8999999999999999E-4,{"$f":"E175*H175","v":0.52401986999999994},0,{"$f":"E175*J175","v":0},null,null,null,2,null,null,null,null,null,null,null,null,null,null,null,1,1,1,null,null,null,null,null,null,null,null,null,null,null,null,null,null,null,null,null,null,null,null,null,null,1,{"$f":"IF(AZ175=1,G175,0)","v":0},{"$f":"IF(AZ175=2,G175,0)","v":0},{"$f":"IF(AZ175=3,G175,0)","v":0},{"$f":"IF(AZ175=4,G175,0)","v":0},{"$f":"IF(AZ175=5,G175,0)","v":0},null,null,null,null,null,null,null,null,null,null,null,null,null,null,null,null,null,null,null,null,null,1,1]
[null,null,"Stoka \"A\" PVC DN250 Š1 až Š2 km 0,179.67 až km 0,184.79:",null,0,null,null,null,null,null,null,null,"Stoka \"A\" PVC DN250 Š1 až Š2 km 0,179.67 až km 0,184.79:"]
[null,null,"Udržovací práce - Stoka PVC DN250 nasunutá do ocelové chráničky mezi Š2 a Š3 km 0,152.00 až 0,179.67:",null,0,null,null,null,null,null,null,null,"Udržovací práce - Stoka PVC DN250 nasunutá do ocelové chráničky mezi Š2 a Š3 km 0,152.00 až 0,179.67:"]
[null,null,"Stoka \"B\" PVC DN250 Š2 až Š7 km 0,000 až 0,152.00:",null,0,null,null,null,null,null,null,null,"Stoka \"B\" PVC DN250 Š2 až Š7 km 0,000 až 0,152.00:"]
[null,null,"Prostor pro napojení Š7:3,00*1,67*2",null,10.02,null,null,null,null,null,null,null,"Prostor pro napojení Š7:3,00*1,67*2"]
[null,null,"(24,16-11,59)*(1,85+1,65)/2*2",null,43.994999999999997,null,null,null,null,null,null,null,"(24,16-11,59)*(1,85+1,65)/2*2"]
[null,null,"(104,46-24,16)*(1,65+2,00)/2*2",null,293.09500000000003,null,null,null,null,null,null,null,"(104,46-24,16)*(1,65+2,00)/2*2"]
[null,null,"(123,09-112,81)*(2,25+1,60)/2*2",null,39.578000000000003,null,null,null,null,null,null,null,"(123,09-112,81)*(2,25+1,60)/2*2"]
[null,null,"(141,35-123,09)*(1,60+2,37)/2*2",null,72.492199999999997,null,null,null,null,null,null,null,"(141,35-123,09)*(1,60+2,37)/2*2"]
[null,null,"(152,00-141,35)*(2,37+1,75)/2*2",null,43.878,null,null,null,null,null,null,null,"(152,00-141,35)*(2,37+1,75)/2*2"]
[null,null,"(185,79-179,67)*(2,14+2,15)/2*2",null,26.254799999999999,null,null,null,null,null,null,null,"(185,79-179,67)*(2,14+2,15)/2*2"]
[17,"151101102R00","Pažení a rozepření stěn rýh - příložné - hl.do 4 m ","m2",104.4682,null,{"$f":"E186*F186","v":0},8.5999999999999998E-4,{"$f":"E186*H186","v":8.9842651999999995E-2},0,{"$f":"E186*J186","v":0},null,null,null,2,null,null,null,null,null,null,null,null,null,null,null,1,1,1,null,null,null,null,null,null,null,null,null,null,null,null,null,null,null,null,null,null,null,null,null,null,1,{"$f":"IF(AZ186=1,G186,0)","v":0},{"$f":"IF(AZ186=2,G186,0)","v":0},{"$f":"IF(AZ186=3,G186,0)","v":0},{"$f":"IF(AZ186=4,G186,0)","v":0},{"$f":"IF(AZ186=5,G186,0)","v":0},null,null,null,null,null,null,null,null,null,null,null,null,null,null,null,null,null,null,null,null,null,1,1]
[null,null,"Stoka \"A\" PVC DN250 Š1 až Š2 km 0,179.67 až km 0,184.79:",null,0,null,null,null,null,null,null,null,"Stoka \"A\" PVC DN250 Š1 až Š2 km 0,179.67 až km 0,184.79:"]
[null,null,"Udržovací práce - Stoka PVC DN250 nasunutá do ocelové chráničky mezi Š2 a Š3 km 0,152.00 až 0,179.67:",null,0,null,null,null,null,null,null,null,"Udržovací práce - Stoka PVC DN250 nasunutá do ocelové chráničky mezi Š2 a Š3 km 0,152.00 až 0,179.67:"]
[null,null,"Stoka \"B\" PVC DN250 Š2 až Š7 km 0,000 až 0,152.00:",null,0,null,null,null,null,null,null,null,"Stoka \"B\" PVC DN250 Š2 až Š7 km 0,000 až 0,152.00:"]
[null,null,"(7,66-5,55)*(2,81+2,54)/2*2",null,11.288500000000001,null,null,null,null,null,null,null,"(7,66-5,55)*(2,81+2,54)/2*2"]
[null,null,"(11,59-7,66)*(2,54+1,85)/2*2",null,17.252700000000001,null,null,null,null,null,null,null,"(11,59-7,66)*(2,54+1,85)/2*2"]
[null,null,"(109,91-104,46)*(1,66+3,22)/2*2",null,26.596,null,null,null,null,null,null,null,"(109,91-104,46)*(1,66+3,22)/2*2"]
[null,null,"(112,81-109,91)*(3,22+3,17)/2*2",null,18.530999999999999,null,null,null,null,null,null,null,"(112,81-109,91)*(3,22+3,17)/2*2"]
[null,null,"Startovací jáma:5,00*2,20*2",null,22,null,null,null,null,null,null,null,"Startovací jáma:5,00*2,20*2"]
[null,null,"Cílová jáma:2,00*2,20*2",null,8.8000000000000007,null,null,null,null,null,null,null,"Cílová jáma:2,00*2,20*2"]
[18,"151101111R00","Odstranění pažení stěn rýh - příložné - hl. do 2 m ","m2",529.31299999999999,null,{"$f":"E196*F196","v":0},0,{"$f":"E196*H196","v":0},0,{"$f":"E196*J196","v":0},null,null,null,2,null,null,null,null,null,null,null,null,null,null,null,1,1,1,null,null,null,null,null,null,null,null,null,null,null,null,null,null,null,null,null,null,null,null,null,null,1,{"$f":"IF(AZ196=1,G196,0)","v":0},{"$f":"IF(AZ196=2,G196,0)","v":0},{"$f":"IF(AZ196=3,G196,0)","v":0},{"$f":"IF(AZ196=4,G196,0)","v":0},{"$f":"IF(AZ196=5,G196,0)","v":0},null,null,null,null,null,null,null,null,null,null,null,null,null,null,null,null,null,null,null,null,null,1,1]
[null,null,"Stoka \"A\" PVC DN250 Š1 až Š2 km 0,179.67 až km 0,184.79:",null,0,null,null,null,null,null,null,null,"Stoka \"A\" PVC DN250 Š1 až Š2 km 0,179.67 až km 0,184.79:"]
[null,null,"Udržovací práce - Stoka PVC DN250 nasunutá do ocelové chráničky mezi Š2 a Š3 km 0,152.00 až 0,179.67:",null,0,null,null,null,null,null,null,null,"Udržovací práce - Stoka PVC DN250 nasunutá do ocelové chráničky mezi Š2 a Š3 km 0,152.00 až 0,179.67:"]
[null,null,"Stoka \"B\" PVC DN250 Š2 až Š7 km 0,000 až 0,152.00:",null,0,null,null,null,null,null,null,null,"Stoka \"B\" PVC DN250 Š2 až Š7 km 0,000 až 0,152.00:"]
[null,null,"Prostor pro napojení Š7:3,00*1,67*2",null,10.02,null,null,null,null,null,null,null,"Prostor pro napojení Š7:3,00*1,67*2"]
[null,null,"(24,16-11,59)*(1,85+1,65)/2*2",null,43.994999999999997,null,null,null,null,null,null,null,"(24,16-11,59)*(1,85+1,65)/2*2"]
[null,null,"(104,46-24,16)*(1,65+2,00)/2*2",null,293.09500000000003,null,null,null,null,null,null,null,"(104,46-24,16)*(1,65+2,00)/2*2"]
[null,null,"(123,09-112,81)*(2,25+1,60)/2*2",null,39.578000000000003,null,null,null,null,null,null,null,"(123,09-112,81)*(2,25+1,60)/2*2"]
[null,null,"(141,35-123,09)*(1,60+2,37)/2*2",null,72.492199999999997,null,null,null,null,null,null,null,"(141,35-123,09)*(1,60+2,37)/2*2"]
[null,null,"(152,00-141,35)*(2,37+1,75)/2*2",null,43.878,null,null,null,null,null,null,null,"(152,00-141,35)*(2,37+1,75)/2*2"]
[null,null,"(185,79-179,67)*(2,14+2,15)/2*2",null,26.254799999999999,null,null,null,null,null,null,null,"(185,79-179,67)*(2,14+2,15)/2*2"]
[19,"151101112R00","Odstranění pažení stěn rýh - příložné - hl. do 4 m ","m2",104.4682,null,{"$f":"E207*F207","v":0},0,{"$f":"E207*H207","v":0},0,{"$f":"E207*J207","v":0},null,null,null,2,null,null,null,null,null,null,null,null,null,null,null,1,1,1,null,null,null,null,null,null,null,null,null,null,null,null,null,null,null,null,null,null,null,null,null,null,1,{"$f":"IF(AZ207=1,G207,0)","v":0},{"$f":"IF(AZ207=2,G207,0)","v":0},{"$f":"IF(AZ207=3,G207,0)","v":0},{"$f":"IF(AZ207=4,G207,0)","v":0},{"$f":"IF(AZ207=5,G207,0)","v":0},null,null,null,null,null,null,null,null,null,null,null,null,null,null,null,null,null,null,null,null,null,1,1]
[null,null,"Stoka \"A\" PVC DN250 Š1 až Š2 km 0,179.67 až km 0,184.79:",null,0,null,null,null,null,null,null,null,"Stoka \"A\" PVC DN250 Š1 až Š2 km 0,179.67 až km 0,184.79:"]
[null,null,"Udržovací práce - Stoka PVC DN250 nasunutá do ocelové chráničky mezi Š2 a Š3 km 0,152.00 až 0,179.67:",null,0,null,null,null,null,null,null,null,"Udržovací práce - Stoka PVC DN250 nasunutá do ocelové chráničky mezi Š2 a Š3 km 0,152.00 až 0,179.67:"]
[null,null,"Stoka \"B\" PVC DN250 Š2 až Š7 km 0,000 až 0,152.00:",null,0,null,null,null,null,null,null,null,"Stoka \"B\" PVC DN250 Š2 až Š7 km 0,000 až 0,152.00:"]
[null,null,"(7,66-5,55)*(2,81+2,54)/2*2",null,11.288500000000001,null,null,null,null,null,null,null,"(7,66-5,55)*(2,81+2,54)/2*2"]
[null,null,"(11,59-7,66)*(2,54+1,85)/2*2",null,17.252700000000001,null,null,null,null,null,null,null,"(11,59-7,66)*(2,54+1,85)/2*2"]
[null,null,"(109,91-104,46)*(1,66+3,22)/2*2",null,26.596,null,null,null,null,null,null,null,"(109,91-104,46)*(1,66+3,22)/2*2"]
[null,null,"(112,81-109,91)*(3,22+3,17)/2*2",null,18.530999999999999,null,null,null,null,null,null,null,"(112,81-109,91)*(3,22+3,17)/2*2"]
[null,null,"Startovací jáma:5,00*2,20*2",null,22,null,null,null,null,null,null,null,"Startovací jáma:5,00*2,20*2"]
[null,null,"Cílová jáma:2,00*2,20*2",null,8.8000000000000007,null,null,null,null,null,null,null,"Cílová jáma:2,00*2,20*2"]
[20,"162701105RSZ","Vodorovné přemístění výkopku z hor.1-7 na skládku zhotovitele","m3",186.994,null,{"$f":"E217*F217","v":0},0,{"$f":"E217*H217","v":0},0,{"$f":"E217*J217","v":0},null,null,null,2,null,null,null,null,null,null,null,null,null,null,null,1,1,1,null,null,null,null,null,null,null,null,null,null,null,null,null,null,null,null,null,null,null,null,null,null,1,{"$f":"IF(AZ217=1,G217,0)","v":0},{"$f":"IF(AZ217=2,G217,0)","v":0},{"$f":"IF(AZ217=3,G217,0)","v":0},{"$f":"IF(AZ217=4,G217,0)","v":0},{"$f":"IF(AZ217=5,G217,0)","v":0},null,null,null,null,null,null,null,null,null,null,null,null,null,null,null,null,null,null,null,null,null,1,1]
[null,null,"Stoka \"A\" PVC DN250 Š1 až Š2 km 0,179.67 až km 0,184.79:",null,0,null,null,null,null,null,null,null,"Stoka \"A\" PVC DN250 Š1 až Š2 km 0,179.67 až km 0,184.79:"]
[null,null,"Udržovací práce - Stoka PVC DN250 nasunutá do ocelové chráničky mezi Š2 a Š3 km 0,152.00 až 0,179.67:",null,0,null,null,null,null,null,null,null,"Udržovací práce - Stoka PVC DN250 nasunutá do ocelové chráničky mezi Š2 a Š3 km 0,152.00 až 0,179.67:"]
[null,null,"Stoka \"B\" PVC DN250 Š2 až Š7 km 0,000 až 0,152.00:",null,0,null,null,null,null,null,null,null,"Stoka \"B\" PVC DN250 Š2 až Š7 km 0,000 až 0,152.00:"]
[null,null,"Výkopy:325,1004",null,325.10039999999998,null,null,null,null,null,null,null,"Výkopy:325,1004"]
[null,null,"Odpočet zásypů zeminou:-147,7064",null,-147.7064,null,null,null,null,null,null,null,"Odpočet zásypů zeminou:-147,7064"]
[null,null,"Odkopávky:(13,00+19,00)*0,30",null,9.6,null,null,null,null,null,null,null,"Odkopávky:(13,00+19,00)*0,30"]
[21,"174101101R00","Zásyp jam, rýh, šachet se zhutněním ","m3",201.18520000000001,null,{"$f":"E224*F224","v":0},0,{"$f":"E224*H224","v":0},0,{"$f":"E224*J224","v":0},null,null,null,2,null,null,null,null,null,null,null,null,null,null,null,1,1,1,null,null,null,null,null,null,null,null,null,null,null,null,null,null,null,null,null,null,null,null,null,null,1,{"$f":"IF(AZ224=1,G224,0)","v":0},{"$f":"IF(AZ224=2,G224,0)","v":0},{"$f":"IF(AZ224=3,G224,0)","v":0},{"$f":"IF(AZ224=4,G224,0)","v":0},{"$f":"IF(AZ224=5,G224,0)","v":0},null,null,null,null,null,null,null,null,null,null,null,null,null,null,null,null,null,null,null,null,null,1,1]
[null,null,"Položka obsahuje strojní přemístění materiálu pro zásyp ze vzdálenosti do 10 m od okraje zásypu.",null,null,null,null,null,null,null,null,"Položka obsahuje strojní přemístění materiálu pro zásyp ze vzdálenosti do 10 m od okraje zásypu.",null,null,3]
[null,null,"Zásypy zeminou:147,7064",null,147.7064,null,null,null,null,null,null,null,"Zásypy zeminou:147,7064"]
[null,null,"Začátek provozního součtu",null,0,null,null,null,null,null,null,null,"Začátek provozního součtu"]
[null,null,"Stoka \"A\" PVC DN250 Š1 až Š2 km 0,179.67 až km 0,184.79:",null,0,null,null,null,null,null,null,null,"Stoka \"A\" PVC DN250 Š1 až Š2 km 0,179.67 až km 0,184.79:"]
[null,null,"Udržovací práce - Stoka PVC DN250 nasunutá do ocelové chráničky mezi Š2 a Š3 km 0,152.00 až 0,179.67:",null,0,null,null,null,null,null,null,null,"Udržovací práce - Stoka PVC DN250 nasunutá do ocelové chráničky mezi Š2 a Š3 km 0,152.00 až 0,179.67:"]
[null,null,"Stoka \"B\" PVC DN250 Š2 až Š7 km 0,000 až 0,152.00:",null,0,null,null,null,null,null,null,null,"Stoka \"B\" PVC DN250 Š2 až Š7 km 0,000 až 0,152.00:"]
[null,null,"5,55*1,20*(1,67+2,81)/2",null,14.9184,null,null,null,null,null,null,null,"5,55*1,20*(1,67+2,81)/2"]
[null,null,"(7,66-5,55)*1,20*(2,81+2,54)/2",null,6.7731000000000003,null,null,null,null,null,null,null,"(7,66-5,55)*1,20*(2,81+2,54)/2"]
[null,null,"(11,59-7,66)*1,00*(2,54+1,85)/2",null,8.6264000000000003,null,null,null,null,null,null,null,"(11,59-7,66)*1,00*(2,54+1,85)/2"]
[null,null,"(24,16-11,59)*1,00*(1,85+1,65)/2",null,21.997499999999999,null,null,null,null,null,null,null,"(24,16-11,59)*1,00*(1,85+1,65)/2"]
[null,null,"(104,46-24,16)*1,00*(1,65+2,00)/2",null,146.54750000000001,null,null,null,null,null,null,null,"(104,46-24,16)*1,00*(1,65+2,00)/2"]
[null,null,"(109,91-104,46)*1,20*(1,66+3,22)/2",null,15.957599999999999,null,null,null,null,null,null,null,"(109,91-104,46)*1,20*(1,66+3,22)/2"]
[null,null,"(112,81-109,91)*1,20*(3,22+3,17)/2",null,11.118600000000001,null,null,null,null,null,null,null,"(112,81-109,91)*1,20*(3,22+3,17)/2"]
[null,null,"(123,09-112,81)*1,00*(2,25+1,60)/2",null,19.789000000000001,null,null,null,null,null,null,null,"(123,09-112,81)*1,00*(2,25+1,60)/2"]
[null,null,"(141,35-123,09)*1,00*(1,60+2,37)/2",null,36.246099999999998,null,null,null,null,null,null,null,"(141,35-123,09)*1,00*(1,60+2,37)/2"]
[null,null,"Prohloubení pro RŠ:1,60*1,60*0,20*2",null,1.024,null,null,null,null,null,null,null,"Prohloubení pro RŠ:1,60*1,60*0,20*2"]
[null,null,"Odpočet objemu ornice:-31,6800",null,-31.68,null,null,null,null,null,null,null,"Odpočet objemu ornice:-31,6800"]
[null,null,"Odpočet lože, potrubí a obsypů:-10,46*1,20*(0,10+0,25+0,30)",null,-8.1587999999999994,null,null,null,null,null,null,null,"Odpočet lože, potrubí a obsypů:-10,46*1,20*(0,10+0,25+0,30)"]
[null,null,"-130,89*1,00*(0,10+0,25+0,30)",null,-85.078500000000005,null,null,null,null,null,null,null,"-130,89*1,00*(0,10+0,25+0,30)"]
[null,null,"Odpočet objemu RŠ:-10,3744",null,-10.3744,null,null,null,null,null,null,null,"Odpočet objemu RŠ:-10,3744"]
[null,null,"Konec provozního součtu",null,147.70650000000003,null,null,null,null,null,null,null,"Konec provozního součtu"]
[null,null,"Zásyp ŠD fr. 0-63 mm:53,4788",null,53.4788,null,null,null,null,null,null,null,"Zásyp ŠD fr. 0-63 mm:53,4788"]
[null,null,"Začátek provozního součtu",null,0,null,null,null,null,null,null,null,"Začátek provozního součtu"]
[null,null,"Výkopy v prostoru komunikací a ZP:325,1004-251,3182",null,73.782200000000003,null,null,null,null,null,null,null,"Výkopy v prostoru komunikací a ZP:325,1004-251,3182"]
[null,null,"Odpočet lože, potrubí a obsypů:-15,50*1,00*(0,10+0,25+0,30)",null,-10.074999999999999,null,null,null,null,null,null,null,"Odpočet lože, potrubí a obsypů:-15,50*1,00*(0,10+0,25+0,30)"]
[null,null,"Odpočet objemu RŠ:-10,2284",null,-10.228400000000001,null,null,null,null,null,null,null,"Odpočet objemu RŠ:-10,2284"]
[null,null,"Konec provozního součtu",null,53.4788,null,null,null,null,null,null,null,"Konec provozního součtu"]
[22,"175101101R00","Obsyp potrubí bez prohození sypaniny ","m3",78.703400000000002,null,{"$f":"E252*F252","v":0},0,{"$f":"E252*H252","v":0},0,{"$f":"E252*J252","v":0},null,null,null,2,null,null,null,null,null,null,null,null,null,null,null,1,1,1,null,null,null,null,null,null,null,null,null,null,null,null,null,null,null,null,null,null,null,null,null,null,1,{"$f":"IF(AZ252=1,G252,0)","v":0},{"$f":"IF(AZ252=2,G252,0)","v":0},{"$f":"IF(AZ252=3,G252,0)","v":0},{"$f":"IF(AZ252=4,G252,0)","v":0},{"$f":"IF(AZ252=5,G252,0)","v":0},null,null,null,null,null,null,null,null,null,null,null,null,null,null,null,null,null,null,null,null,null,1,1]
[null,null,"Stoka \"A\" PVC DN250 Š1 až Š2 km 0,179.67 až km 0,184.79:5,12*(1,00*(0,25+0,30)-0,125^2*Pi)",null,2.5647000000000002,null,null,null,null,null,null,null,"Stoka \"A\" PVC DN250 Š1 až Š2 km 0,179.67 až km 0,184.79:5,12*(1,00*(0,25+0,30)-0,125^2*Pi)"]
[null,null,"Stoka \"B\" PVC DN250 Š2 až Š7 km 0,000 až 0,152.00:152,00*(1,00*(0,25+0,30)-0,125^2*Pi)",null,76.1387,null,null,null,null,null,null,null,"Stoka \"B\" PVC DN250 Š2 až Š7 km 0,000 až 0,152.00:152,00*(1,00*(0,25+0,30)-0,125^2*Pi)"]
[23,"181101102R00","Úprava pláně v zářezech v hor. 1-4, se zhutněním ","m2",32,null,{"$f":"E255*F255","v":0},0,{"$f":"E255*H255","v":0},0,{"$f":"E255*J255","v":0},null,null,null,2,null,null,null,null,null,null,null,null,null,null,null,1,1,1,null,null,null,null,null,null,null,null,null,null,null,null,null,null,null,null,null,null,null,null,null,null,1,{"$f":"IF(AZ255=1,G255,0)","v":0},{"$f":"IF(AZ255=2,G255,0)","v":0},{"$f":"IF(AZ255=3,G255,0)","v":0},{"$f":"IF(AZ255=4,G255,0)","v":0},{"$f":"IF(AZ255=5,G255,0)","v":0},null,null,null,null,null,null,null,null,null,null,null,null,null,null,null,null,null,null,null,null,null,1,1]
[null,null,"Zpevněné plochy:13,00+19,00",null,32,null,null,null,null,null,null,null,"Zpevněné plochy:13,00+19,00"]
[24,"199000002R00","Poplatek za skládku horniny 1- 7 č. dle katal. odpadů 17 05 04","m3",186.994,null,{"$f":"E257*F257","v":0},0,{"$f":"E257*H257","v":0},0,{"$f":"E257*J257","v":0},null,null,null,2,null,null,null,null,null,null,null,null,null,null,null,1,1,1,null,null,null,null,null,null,null,null,null,null,null,null,null,null,null,null,null,null,null,null,null,null,1,{"$f":"IF(AZ257=1,G257,0)","v":0},{"$f":"IF(AZ257=2,G257,0)","v":0},{"$f":"IF(AZ257=3,G257,0)","v":0},{"$f":"IF(AZ257=4,G257,0)","v":0},{"$f":"IF(AZ257=5,G257,0)","v":0},null,null,null,null,null,null,null,null,null,null,null,null,null,null,null,null,null,null,null,null,null,1,1]
[null,null,"Stoka \"A\" PVC DN250 Š1 až Š2 km 0,179.67 až km 0,184.79:",null,0,null,null,null,null,null,null,null,"Stoka \"A\" PVC DN250 Š1 až Š2 km 0,179.67 až km 0,184.79:"]
[null,null,"Udržovací práce - Stoka PVC DN250 nasunutá do ocelové chráničky mezi Š2 a Š3 km 0,152.00 až 0,179.67:",null,0,null,null,null,null,null,null,null,"Udržovací práce - Stoka PVC DN250 nasunutá do ocelové chráničky mezi Š2 a Š3 km 0,152.00 až 0,179.67:"]
[null,null,"Stoka \"B\" PVC DN250 Š2 až Š7 km 0,000 až 0,152.00:",null,0,null,null,null,null,null,null,null,"Stoka \"B\" PVC DN250 Š2 až Š7 km 0,000 až 0,152.00:"]
[null,null,"Výkopy:325,1004",null,325.10039999999998,null,null,null,null,null,null,null,"Výkopy:325,1004"]
[null,null,"Odpočet zásypů zeminou:-147,7064",null,-147.7064,null,null,null,null,null,null,null,"Odpočet zásypů zeminou:-147,7064"]
[null,null,"Odkopávky:(13,00+19,00)*0,30",null,9.6,null,null,null,null,null,null,null,"Odkopávky:(13,00+19,00)*0,30"]
[25,"919735112R00","Řezání stávajícího živičného krytu tl. 5 - 10 cm ","m",6,null,{"$f":"E264*F264","v":0},0,{"$f":"E264*H264","v":0},0,{"$f":"E264*J264","v":0},null,null,null,2,null,null,null,null,null,null,null,null,null,null,null,1,1,1,null,null,null,null,null,null,null,null,null,null,null,null,null,null,null,null,null,null,null,null,null,null,1,{"$f":"IF(AZ264=1,G264,0)","v":0},{"$f":"IF(AZ264=2,G264,0)","v":0},{"$f":"IF(AZ264=3,G264,0)","v":0},{"$f":"IF(AZ264=4,G264,0)","v":0},{"$f":"IF(AZ264=5,G264,0)","v":0},null,null,null,null,null,null,null,null,null,null,null,null,null,null,null,null,null,null,null,null,null,1,1]
[null,null,"Napojení stoky:3,00+2*1,50",null,6,null,null,null,null,null,null,null,"Napojení stoky:3,00+2*1,50"]
[26,"979082113RSZ","Vodorovná doprava suti po suchu na skládku zhotovitele","t",35.97,null,{"$f":"E266*F266","v":0},0,{"$f":"E266*H266","v":0},0,{"$f":"E266*J266","v":0},null,null,null,2,null,null,null,null,null,null,null,null,null,null,null,1,1,1,null,null,null,null,null,null,null,null,null,null,null,null,null,null,null,null,null,null,null,null,null,null,1,{"$f":"IF(AZ266=1,G266,0)","v":0},{"$f":"IF(AZ266=2,G266,0)","v":0},{"$f":"IF(AZ266=3,G266,0)","v":0},{"$f":"IF(AZ266=4,G266,0)","v":0},{"$f":"IF(AZ266=5,G266,0)","v":0},null,null,null,null,null,null,null,null,null,null,null,null,null,null,null,null,null,null,null,null,null,1,1]
[27,"979089001R00","Poplatek za skládku stavební suti štěrky z komunikací, skupina odpadu 010408","t",34.979999999999997,null,{"$f":"E267*F267","v":0},0,{"$f":"E267*H267","v":0},0,{"$f":"E267*J267","v":0},null,null,null,2,null,null,null,null,null,null,null,null,null,null,null,1,1,1,null,null,null,null,null,null,null,null,null,null,null,null,null,null,null,null,null,null,null,null,null,null,1,{"$f":"IF(AZ267=1,G267,0)","v":0},{"$f":"IF(AZ267=2,G267,0)","v":0},{"$f":"IF(AZ267=3,G267,0)","v":0},{"$f":"IF(AZ267=4,G267,0)","v":0},{"$f":"IF(AZ267=5,G267,0)","v":0},null,null,null,null,null,null,null,null,null,null,null,null,null,null,null,null,null,null,null,null,null,1,1]
[28,"979999995R00","Poplatek za reciklaci asfaltu, kusovost do 1600cm2 skupina 170302","t",0.99,null,{"$f":"E268*F268","v":0},0,{"$f":"E268*H268","v":0},0,{"$f":"E268*J268","v":0},null,null,null,2,null,null,null,null,null,null,null,null,null,null,null,1,1,1,null,null,null,null,null,null,null,null,null,null,null,null,null,null,null,null,null,null,null,null,null,null,1,{"$f":"IF(AZ268=1,G268,0)","v":0},{"$f":"IF(AZ268=2,G268,0)","v":0},{"$f":"IF(AZ268=3,G268,0)","v":0},{"$f":"IF(AZ268=4,G268,0)","v":0},{"$f":"IF(AZ268=5,G268,0)","v":0},null,null,null,null,null,null,null,null,null,null,null,null,null,null,null,null,null,null,null,null,null,1,1]
[null,null,"Položka je určena pro suť o velikosti kusu do 30x30 cm (technologický materiál určený k recyklaci).",null,null,null,null,null,null,null,null,"Položka je určena pro suť o velikosti kusu do 30x30 cm (technologický materiál určený k recyklaci).",null,null,3]
[29,"14235915.R","Trubka bezešvá hladká 11353.1  D 377x10,0 mm","m",29.073,null,{"$f":"E270*F270","v":0},9.0499999999999997E-2,{"$f":"E270*H270","v":2.6311065},null,{"$f":"E270*J270","v":0},null,null,null,2,null,null,null,null,null,null,null,null,null,null,null,3,1,"14235915.R",null,null,null,null,null,null,null,null,null,null,null,null,null,null,null,null,null,null,null,null,null,null,1,{"$f":"IF(AZ270=1,G270,0)","v":0},{"$f":"IF(AZ270=2,G270,0)","v":0},{"$f":"IF(AZ270=3,G270,0)","v":0},{"$f":"IF(AZ270=4,G270,0)","v":0},{"$f":"IF(AZ270=5,G270,0)","v":0},null,null,null,null,null,null,null,null,null,null,null,null,null,null,null,null,null,null,null,null,null,3,1]
[null,null,"Chránička DN350 od km 0,152.62 do km 0,179.05:(179,05-152,62)*1,1",null,29.073,null,null,null,null,null,null,null,"Chránička DN350 od km 0,152.62 do km 0,179.05:(179,05-152,62)*1,1"]
[30,"58337330.R","Štěrkopísek frakce 0-22 A","t",156.83459999999999,null,{"$f":"E272*F272","v":0},1,{"$f":"E272*H272","v":156.83459999999999},null,{"$f":"E272*J272","v":0},null,null,null,2,null,null,null,null,null,null,null,null,null,null,null,3,1,"58337330.R",null,null,null,null,null,null,null,null,null,null,null,null,null,null,null,null,null,null,null,null,null,null,1,{"$f":"IF(AZ272=1,G272,0)","v":0},{"$f":"IF(AZ272=2,G272,0)","v":0},{"$f":"IF(AZ272=3,G272,0)","v":0},{"$f":"IF(AZ272=4,G272,0)","v":0},{"$f":"IF(AZ272=5,G272,0)","v":0},null,null,null,null,null,null,null,null,null,null,null,null,null,null,null,null,null,null,null,null,null,3,1]
[null,null,"Stoka \"A\" PVC DN250 Š1 až Š2 km 0,179.67 až km 0,184.79:5,12*(1,00*(0,25+0,30)-0,125^2*Pi)*1,973*1,01",null,5.1106999999999996,null,null,null,null,null,null,null,"Stoka \"A\" PVC DN250 Š1 až Š2 km 0,179.67 až km 0,184.79:5,12*(1,00*(0,25+0,30)-0,125^2*Pi)*1,973*1,01"]
[null,null,"Stoka \"B\" PVC DN250 Š2 až Š7 km 0,000 až 0,152.00:152,00*(1,00*(0,25+0,30)-0,125^2*Pi)*1,973*1,01",null,151.72389999999999,null,null,null,null,null,null,null,"Stoka \"B\" PVC DN250 Š2 až Š7 km 0,000 až 0,152.00:152,00*(1,00*(0,25+0,30)-0,125^2*Pi)*1,973*1,01"]
[31,"58344197R","Štěrkodrtě frakce 0-63 A","t",101.1675,null,{"$f":"E275*F275","v":0},1,{"$f":"E275*H275","v":101.1675},null,{"$f":"E275*J275","v":0},null,null,null,2,null,null,null,null,null,null,null,null,null,null,null,3,1,"58344197R",null,null,null,null,null,null,null,null,null,null,null,null,null,null,null,null,null,null,null,null,null,null,1,{"$f":"IF(AZ275=1,G275,0)","v":0},{"$f":"IF(AZ275=2,G275,0)","v":0},{"$f":"IF(AZ275=3,G275,0)","v":0},{"$f":"IF(AZ275=4,G275,0)","v":0},{"$f":"IF(AZ275=5,G275,0)","v":0},null,null,null,null,null,null,null,null,null,null,null,null,null,null,null,null,null,null,null,null,null,3,1]
[null,null,"Zásyp ŠD fr. 0-63 mm:53,4788*1,873*1,01",null,101.1675,null,null,null,null,null,null,null,"Zásyp ŠD fr. 0-63 mm:53,4788*1,873*1,01"]
[null,null,"Začátek provozního součtu",null,0,null,null,null,null,null,null,null,"Začátek provozního součtu"]
[null,null,"Výkopy v prostoru komunikací a ZP:325,1004-251,3182",null,73.782200000000003,null,null,null,null,null,null,null,"Výkopy v prostoru komunikací a ZP:325,1004-251,3182"]
[null,null,"Odpočet lože, potrubí a obsypů:-15,50*1,00*(0,10+0,25+0,30)",null,-10.074999999999999,null,null,null,null,null,null,null,"Odpočet lože, potrubí a obsypů:-15,50*1,00*(0,10+0,25+0,30)"]
[null,null,"Odpočet objemu RŠ:-10,2284",null,-10.228400000000001,null,null,null,null,null,null,null,"Odpočet objemu RŠ:-10,2284"]
[null,null,"Konec provozního součtu",null,53.4788,null,null,null,null,null,null,null,"Konec provozního součtu"]
[null,"Celkem za","1 Zemní práce",null,null,null,{"$f":"SUM(G7:G281)","v":0},null,{"$f":"SUM(I7:I281)","v":261.26128402199998},null,{"$f":"SUM(K7:K281)","v":-35.97},null,null,null,4,null,null,null,null,null,null,null,null,null,null,null,null,null,null,null,null,null,null,null,null,null,null,null,null,null,null,null,null,null,null,null,null,null,null,null,null,null,{"$f":"SUM(BA7:BA281)","v":0},{"$f":"SUM(BB7:BB281)","v":0},{"$f":"SUM(BC7:BC281)","v":0},{"$f":"SUM(BD7:BD281)","v":0},{"$f":"SUM(BE7:BE281)","v":0}]
["Díl:","2","Základy a zvláštní zakládání",null,null,null,null,null,null,null,null,null,null,null,1]
[32,"212810010RAC","Trativody z PVC drenážních flexibilních trubek lože štěrkopísek a obsyp kamenivo, trubky d 100 mm","m",157.12,null,{"$f":"E284*F284","v":0},0.43651000000000001,{"$f":"E284*H284","v":68.584451200000004},0,{"$f":"E284*J284","v":0},null,null,null,2,null,null,null,null,null,null,null,null,null,null,null,1,1,1,null,null,null,null,null,null,null,null,null,null,null,null,null,null,null,null,null,null,null,null,null,null,1,{"$f":"IF(AZ284=1,G284,0)","v":0},{"$f":"IF(AZ284=2,G284,0)","v":0},{"$f":"IF(AZ284=3,G284,0)","v":0},{"$f":"IF(AZ284=4,G284,0)","v":0},{"$f":"IF(AZ284=5,G284,0)","v":0},null,null,null,null,null,null,null,null,null,null,null,null,null,null,null,null,null,null,null,null,null,1,1]
[null,null,"Součástí položky je i výkop pro drenáž včetně odvozu zeminy na skládku a poplatku za skládku zeminy.",null,null,null,null,null,null,null,null,"Součástí položky je i výkop pro drenáž včetně odvozu zeminy na skládku a poplatku za skládku zeminy.",null,null,3]
[null,null,"Stoka \"A\" PVC DN250 Š1 až Š2 km 0,179.67 až km 0,184.79:5,12",null,5.12,null,null,null,null,null,null,null,"Stoka \"A\" PVC DN250 Š1 až Š2 km 0,179.67 až km 0,184.79:5,12"]
[null,null,"Stoka \"B\" PVC DN250 Š2 až Š7 km 0,000 až 0,152.00:152,00",null,152,null,null,null,null,null,null,null,"Stoka \"B\" PVC DN250 Š2 až Š7 km 0,000 až 0,152.00:152,00"]
[33,"212971110R00","Opláštění trativodů z geotext., do sklonu 1:2,5 ","m2",157.12,null,{"$f":"E288*F288","v":0},1.8000000000000001E-4,{"$f":"E288*H288","v":2.8281600000000004E-2},0,{"$f":"E288*J288","v":0},null,null,null,2,null,null,null,null,null,null,null,null,null,null,null,1,1,1,null,null,null,null,null,null,null,null,null,null,null,null,null,null,null,null,null,null,null,null,null,null,1,{"$f":"IF(AZ288=1,G288,0)","v":0},{"$f":"IF(AZ288=2,G288,0)","v":0},{"$f":"IF(AZ288=3,G288,0)","v":0},{"$f":"IF(AZ288=4,G288,0)","v":0},{"$f":"IF(AZ288=5,G288,0)","v":0},null,null,null,null,null,null,null,null,null,null,null,null,null,null,null,null,null,null,null,null,null,1,1]
[null,null,"Stoka \"A\" PVC DN250 Š1 až Š2 km 0,179.67 až km 0,184.79:5,12*1,00",null,5.12,null,null,null,null,null,null,null,"Stoka \"A\" PVC DN250 Š1 až Š2 km 0,179.67 až km 0,184.79:5,12*1,00"]
[null,null,"Stoka \"B\" PVC DN250 Š2 až Š7 km 0,000 až 0,152.00:152,00*1,00",null,152,null,null,null,null,null,null,null,"Stoka \"B\" PVC DN250 Š2 až Š7 km 0,000 až 0,152.00:152,00*1,00"]
[34,"67390503.R","Geotextilie netkaná 300 g/m2","m2",188.54400000000001,null,{"$f":"E291*F291","v":0},2.9999999999999997E-4,{"$f":"E291*H291","v":5.6563200000000001E-2},null,{"$f":"E291*J291","v":0},null,null,null,2,null,null,null,null,null,null,null,null,null,null,null,3,1,"67390503.R",null,null,null,null,null,null,null,null,null,null,null,null,null,null,null,null,null,null,null,null,null,null,1,{"$f":"IF(AZ291=1,G291,0)","v":0},{"$f":"IF(AZ291=2,G291,0)","v":0},{"$f":"IF(AZ291=3,G291,0)","v":0},{"$f":"IF(AZ291=4,G291,0)","v":0},{"$f":"IF(AZ291=5,G291,0)","v":0},null,null,null,null,null,null,null,null,null,null,null,null,null,null,null,null,null,null,null,null,null,3,1]
[null,null,"Stoka \"A\" PVC DN250 Š1 až Š2 km 0,179.67 až km 0,184.79:5,12*1,00*1,2",null,6.1440000000000001,null,null,null,null,null,null,null,"Stoka \"A\" PVC DN250 Š1 až Š2 km 0,179.67 až km 0,184.79:5,12*1,00*1,2"]
[null,null,"Stoka \"B\" PVC DN250 Š2 až Š7 km 0,000 až 0,152.00:152,00*1,00*1,2",null,182.4,null,null,null,null,null,null,null,"Stoka \"B\" PVC DN250 Š2 až Š7 km 0,000 až 0,152.00:152,00*1,00*1,2"]
[null,"Celkem za","2 Základy a zvláštní zakládání",null,null,null,{"$f":"SUM(G283:G293)","v":0},null,{"$f":"SUM(I283:I293)","v":68.669296000000003},null,{"$f":"SUM(K283:K293)","v":0},null,null,null,4,null,null,null,null,null,null,null,null,null,null,null,null,null,null,null,null,null,null,null,null,null,null,null,null,null,null,null,null,null,null,null,null,null,null,null,null,null,{"$f":"SUM(BA283:BA293)","v":0},{"$f":"SUM(BB283:BB293)","v":0},{"$f":"SUM(BC283:BC293)","v":0},{"$f":"SUM(BD283:BD293)","v":0},{"$f":"SUM(BE283:BE293)","v":0}]
["Díl:","45","Podkladní a vedlejší konstrukce",null,null,null,null,null,null,null,null,null,null,null,1]
[35,"451572111R00","Lože pod potrubí z kameniva těženého 0 - 4 mm ","m3",15.712,null,{"$f":"E296*F296","v":0},0.43051,{"$f":"E296*H296","v":6.7641731199999997},0,{"$f":"E296*J296","v":0},null,null,null,2,null,null,null,null,null,null,null,null,null,null,null,1,1,1,null,null,null,null,null,null,null,null,null,null,null,null,null,null,null,null,null,null,null,null,null,null,1,{"$f":"IF(AZ296=1,G296,0)","v":0},{"$f":"IF(AZ296=2,G296,0)","v":0},{"$f":"IF(AZ296=3,G296,0)","v":0},{"$f":"IF(AZ296=4,G296,0)","v":0},{"$f":"IF(AZ296=5,G296,0)","v":0},null,null,null,null,null,null,null,null,null,null,null,null,null,null,null,null,null,null,null,null,null,1,1]
[null,null,"Stoka \"A\" PVC DN250 Š1 až Š2 km 0,179.67 až km 0,184.79:5,12*1,00*0,10",null,0.51200000000000001,null,null,null,null,null,null,null,"Stoka \"A\" PVC DN250 Š1 až Š2 km 0,179.67 až km 0,184.79:5,12*1,00*0,10"]
[null,null,"Stoka \"B\" PVC DN250 Š2 až Š7 km 0,000 až 0,152.00:152,00*1,00*0,10",null,15.2,null,null,null,null,null,null,null,"Stoka \"B\" PVC DN250 Š2 až Š7 km 0,000 až 0,152.00:152,00*1,00*0,10"]
[36,"452112111R00","Osazení beton. prstenců pod poklopy,výšky do100 mm ","kus",1,null,{"$f":"E299*F299","v":0},6.6E-3,{"$f":"E299*H299","v":6.6E-3},0,{"$f":"E299*J299","v":0},null,null,null,2,null,null,null,null,null,null,null,null,null,null,null,1,1,1,null,null,null,null,null,null,null,null,null,null,null,null,null,null,null,null,null,null,null,null,null,null,1,{"$f":"IF(AZ299=1,G299,0)","v":0},{"$f":"IF(AZ299=2,G299,0)","v":0},{"$f":"IF(AZ299=3,G299,0)","v":0},{"$f":"IF(AZ299=4,G299,0)","v":0},{"$f":"IF(AZ299=5,G299,0)","v":0},null,null,null,null,null,null,null,null,null,null,null,null,null,null,null,null,null,null,null,null,null,1,1]
[null,null,"Volba položky se řídí výškou prstence nebo rámu. V položkách nejsou zakalkulovány náklady na dodávku betonových výrobků;",null,null,null,null,null,null,null,null,"Volba položky se řídí výškou prstence nebo rámu. V položkách nejsou zakalkulovány náklady na dodávku betonových výrobků;",null,null,3]
[null,null,"Stoka \"A\" PVC DN250 Š1 až Š2 km 0,179.67 až km 0,184.79:",null,0,null,null,null,null,null,null,null,"Stoka \"A\" PVC DN250 Š1 až Š2 km 0,179.67 až km 0,184.79:"]
[null,null,"Stoka \"B\" PVC DN250 Š2 až Š7 km 0,000 až 0,152.00:",null,0,null,null,null,null,null,null,null,"Stoka \"B\" PVC DN250 Š2 až Š7 km 0,000 až 0,152.00:"]
[null,null,"VP H100:1",null,1,null,null,null,null,null,null,null,"VP H100:1"]
[37,"452112121R00","Osazení beton. prstenců pod poklopy,výšky do200 mm ","kus",1,null,{"$f":"E304*F304","v":0},6.6E-3,{"$f":"E304*H304","v":6.6E-3},0,{"$f":"E304*J304","v":0},null,null,null,2,null,null,null,null,null,null,null,null,null,null,null,1,1,1,null,null,null,null,null,null,null,null,null,null,null,null,null,null,null,null,null,null,null,null,null,null,1,{"$f":"IF(AZ304=1,G304,0)","v":0},{"$f":"IF(AZ304=2,G304,0)","v":0},{"$f":"IF(AZ304=3,G304,0)","v":0},{"$f":"IF(AZ304=4,G304,0)","v":0},{"$f":"IF(AZ304=5,G304,0)","v":0},null,null,null,null,null,null,null,null,null,null,null,null,null,null,null,null,null,null,null,null,null,1,1]
[null,null,"Stoka \"A\" PVC DN250 Š1 až Š2 km 0,179.67 až km 0,184.79:",null,0,null,null,null,null,null,null,null,"Stoka \"A\" PVC DN250 Š1 až Š2 km 0,179.67 až km 0,184.79:"]
[null,null,"Stoka \"B\" PVC DN250 Š2 až Š7 km 0,000 až 0,152.00:",null,0,null,null,null,null,null,null,null,"Stoka \"B\" PVC DN250 Š2 až Š7 km 0,000 až 0,152.00:"]
[null,null,"VP H120:1",null,1,null,null,null,null,null,null,null,"VP H120:1"]
[38,"59224348.B.R","Prstenec vyrovn šachetní TBW-Q.1 100/600/120","kus",1.01,null,{"$f":"E308*F308","v":0},6.8000000000000005E-2,{"$f":"E308*H308","v":6.8680000000000005E-2},null,{"$f":"E308*J308","v":0},null,null,null,2,null,null,null,null,null,null,null,null,null,null,null,3,1,"59224348.B.R",null,null,null,null,null,null,null,null,null,null,null,null,null,null,null,null,null,null,null,null,null,null,1,{"$f":"IF(AZ308=1,G308,0)","v":0},{"$f":"IF(AZ308=2,G308,0)","v":0},{"$f":"IF(AZ308=3,G308,0)","v":0},{"$f":"IF(AZ308=4,G308,0)","v":0},{"$f":"IF(AZ308=5,G308,0)","v":0},null,null,null,null,null,null,null,null,null,null,null,null,null,null,null,null,null,null,null,null,null,3,1]
[null,null,"Stoka \"A\" PVC DN250 Š1 až Š2 km 0,179.67 až km 0,184.79:",null,0,null,null,null,null,null,null,null,"Stoka \"A\" PVC DN250 Š1 až Š2 km 0,179.67 až km 0,184.79:"]
[null,null,"Stoka \"B\" PVC DN250 Š2 až Š7 km 0,000 až 0,152.00:",null,0,null,null,null,null,null,null,null,"Stoka \"B\" PVC DN250 Š2 až Š7 km 0,000 až 0,152.00:"]
[null,null,"VP H100:1*1,01",null,1.01,null,null,null,null,null,null,null,"VP H100:1*1,01"]
[39,"59224349.B.R","Prstenec vyrovn šachetní TBW-Q.1 120/600/120","kus",1.01,null,{"$f":"E312*F312","v":0},8.1000000000000003E-2,{"$f":"E312*H312","v":8.1810000000000008E-2},null,{"$f":"E312*J312","v":0},null,null,null,2,null,null,null,null,null,null,null,null,null,null,null,3,1,"59224349.B.R",null,null,null,null,null,null,null,null,null,null,null,null,null,null,null,null,null,null,null,null,null,null,1,{"$f":"IF(AZ312=1,G312,0)","v":0},{"$f":"IF(AZ312=2,G312,0)","v":0},{"$f":"IF(AZ312=3,G312,0)","v":0},{"$f":"IF(AZ312=4,G312,0)","v":0},{"$f":"IF(AZ312=5,G312,0)","v":0},null,null,null,null,null,null,null,null,null,null,null,null,null,null,null,null,null,null,null,null,null,3,1]
[null,null,"Stoka \"A\" PVC DN250 Š1 až Š2 km 0,179.67 až km 0,184.79:",null,0,null,null,null,null,null,null,null,"Stoka \"A\" PVC DN250 Š1 až Š2 km 0,179.67 až km 0,184.79:"]
[null,null,"Stoka \"B\" PVC DN250 Š2 až Š7 km 0,000 až 0,152.00:",null,0,null,null,null,null,null,null,null,"Stoka \"B\" PVC DN250 Š2 až Š7 km 0,000 až 0,152.00:"]
[null,null,"VP H120:1*1,01",null,1.01,null,null,null,null,null,null,null,"VP H120:1*1,01"]
[null,"Celkem za","45 Podkladní a vedlejší konstrukce",null,null,null,{"$f":"SUM(G295:G315)","v":0},null,{"$f":"SUM(I295:I315)","v":6.9278631199999987},null,{"$f":"SUM(K295:K315)","v":0},null,null,null,4,null,null,null,null,null,null,null,null,null,null,null,null,null,null,null,null,null,null,null,null,null,null,null,null,null,null,null,null,null,null,null,null,null,null,null,null,null,{"$f":"SUM(BA295:BA315)","v":0},{"$f":"SUM(BB295:BB315)","v":0},{"$f":"SUM(BC295:BC315)","v":0},{"$f":"SUM(BD295:BD315)","v":0},{"$f":"SUM(BE295:BE315)","v":0}]
["Díl:","5","Komunikace",null,null,null,null,null,null,null,null,null,null,null,1]
[40,"564851111RT4","Podklad ze štěrkodrti po zhutnění tloušťky 15 cm štěrkodrť frakce 0-63 mm","m2",32,null,{"$f":"E318*F318","v":0},0.378,{"$f":"E318*H318","v":12.096},0,{"$f":"E318*J318","v":0},null,null,null,2,null,null,null,null,null,null,null,null,null,null,null,1,1,1,null,null,null,null,null,null,null,null,null,null,null,null,null,null,null,null,null,null,null,null,null,null,1,{"$f":"IF(AZ318=1,G318,0)","v":0},{"$f":"IF(AZ318=2,G318,0)","v":0},{"$f":"IF(AZ318=3,G318,0)","v":0},{"$f":"IF(AZ318=4,G318,0)","v":0},{"$f":"IF(AZ318=5,G318,0)","v":0},null,null,null,null,null,null,null,null,null,null,null,null,null,null,null,null,null,null,null,null,null,1,1]
[null,null,"Zpevněné plochy:13,00+19,00",null,32,null,null,null,null,null,null,null,"Zpevněné plochy:13,00+19,00"]
[41,"566903111R00","Vyspravení podkladu po překopech kam.hrubě drceným ","t",17.793500000000002,null,{"$f":"E320*F320","v":0},1.1000000000000001,{"$f":"E320*H320","v":19.572850000000003},0,{"$f":"E320*J320","v":0},null,null,null,2,null,null,null,null,null,null,null,null,null,null,null,1,1,1,null,null,null,null,null,null,null,null,null,null,null,null,null,null,null,null,null,null,null,null,null,null,1,{"$f":"IF(AZ320=1,G320,0)","v":0},{"$f":"IF(AZ320=2,G320,0)","v":0},{"$f":"IF(AZ320=3,G320,0)","v":0},{"$f":"IF(AZ320=4,G320,0)","v":0},{"$f":"IF(AZ320=5,G320,0)","v":0},null,null,null,null,null,null,null,null,null,null,null,null,null,null,null,null,null,null,null,null,null,1,1]
[null,null,"Napojení stoky:3,00*1,50*0,20*1,873",null,1.6857,null,null,null,null,null,null,null,"Napojení stoky:3,00*1,50*0,20*1,873"]
[null,null,"Stoka (dílčí stěrkové povrchy):43,00*0,20*1,873",null,16.107800000000001,null,null,null,null,null,null,null,"Stoka (dílčí stěrkové povrchy):43,00*0,20*1,873"]
[42,"566904111R00","Vyspravení podkladu po překopech kam.obal.asfaltem ","t",1.125,null,{"$f":"E323*F323","v":0},1,{"$f":"E323*H323","v":1.125},0,{"$f":"E323*J323","v":0},null,null,null,2,null,null,null,null,null,null,null,null,null,null,null,1,1,1,null,null,null,null,null,null,null,null,null,null,null,null,null,null,null,null,null,null,null,null,null,null,1,{"$f":"IF(AZ323=1,G323,0)","v":0},{"$f":"IF(AZ323=2,G323,0)","v":0},{"$f":"IF(AZ323=3,G323,0)","v":0},{"$f":"IF(AZ323=4,G323,0)","v":0},{"$f":"IF(AZ323=5,G323,0)","v":0},null,null,null,null,null,null,null,null,null,null,null,null,null,null,null,null,null,null,null,null,null,1,1]
[null,null,"Napojení stoky:3,00*1,50*0,10*2,5",null,1.125,null,null,null,null,null,null,null,"Napojení stoky:3,00*1,50*0,10*2,5"]
[43,"567132115R00","Podklad z kameniva zpev.cementem SC C8/10 tl.20 cm ","m2",32,null,{"$f":"E325*F325","v":0},0.51085999999999998,{"$f":"E325*H325","v":16.347519999999999},0,{"$f":"E325*J325","v":0},null,null,null,2,null,null,null,null,null,null,null,null,null,null,null,1,1,1,null,null,null,null,null,null,null,null,null,null,null,null,null,null,null,null,null,null,null,null,null,null,1,{"$f":"IF(AZ325=1,G325,0)","v":0},{"$f":"IF(AZ325=2,G325,0)","v":0},{"$f":"IF(AZ325=3,G325,0)","v":0},{"$f":"IF(AZ325=4,G325,0)","v":0},{"$f":"IF(AZ325=5,G325,0)","v":0},null,null,null,null,null,null,null,null,null,null,null,null,null,null,null,null,null,null,null,null,null,1,1]
[null,null,"Zpevněné plochy:13,00+19,00",null,32,null,null,null,null,null,null,null,"Zpevněné plochy:13,00+19,00"]
[44,"573231125R00","Postřik spojovací z KAE, množství zb.asf 0,5 kg/m2 ","m2",32,null,{"$f":"E327*F327","v":0},6.0999999999999997E-4,{"$f":"E327*H327","v":1.9519999999999999E-2},0,{"$f":"E327*J327","v":0},null,null,null,2,null,null,null,null,null,null,null,null,null,null,null,1,1,1,null,null,null,null,null,null,null,null,null,null,null,null,null,null,null,null,null,null,null,null,null,null,1,{"$f":"IF(AZ327=1,G327,0)","v":0},{"$f":"IF(AZ327=2,G327,0)","v":0},{"$f":"IF(AZ327=3,G327,0)","v":0},{"$f":"IF(AZ327=4,G327,0)","v":0},{"$f":"IF(AZ327=5,G327,0)","v":0},null,null,null,null,null,null,null,null,null,null,null,null,null,null,null,null,null,null,null,null,null,1,1]
[null,null,"Zpevněné plochy:13,00+19,00",null,32,null,null,null,null,null,null,null,"Zpevněné plochy:13,00+19,00"]
[45,"577141112RT3","Beton asfalt. ACO 11+,nebo ACO 16+,do 3 m, tl.5 cm plochy  do 200 m2","m2",32,null,{"$f":"E329*F329","v":0},0.12966,{"$f":"E329*H329","v":4.1491199999999999},0,{"$f":"E329*J329","v":0},null,null,null,2,null,null,null,null,null,null,null,null,null,null,null,1,1,1,null,null,null,null,null,null,null,null,null,null,null,null,null,null,null,null,null,null,null,null,null,null,1,{"$f":"IF(AZ329=1,G329,0)","v":0},{"$f":"IF(AZ329=2,G329,0)","v":0},{"$f":"IF(AZ329=3,G329,0)","v":0},{"$f":"IF(AZ329=4,G329,0)","v":0},{"$f":"IF(AZ329=5,G329,0)","v":0},null,null,null,null,null,null,null,null,null,null,null,null,null,null,null,null,null,null,null,null,null,1,1]
[null,null,"Zpevněné plochy:13,00+19,00",null,32,null,null,null,null,null,null,null,"Zpevněné plochy:13,00+19,00"]
[46,"577141122RT3","Beton asfalt. ACL 16+ ložný, š. do 3 m, tl. 5 cm plochy do 200 m2","m2",32,null,{"$f":"E331*F331","v":0},0.12966,{"$f":"E331*H331","v":4.1491199999999999},0,{"$f":"E331*J331","v":0},null,null,null,2,null,null,null,null,null,null,null,null,null,null,null,1,1,1,null,null,null,null,null,null,null,null,null,null,null,null,null,null,null,null,null,null,null,null,null,null,1,{"$f":"IF(AZ331=1,G331,0)","v":0},{"$f":"IF(AZ331=2,G331,0)","v":0},{"$f":"IF(AZ331=3,G331,0)","v":0},{"$f":"IF(AZ331=4,G331,0)","v":0},{"$f":"IF(AZ331=5,G331,0)","v":0},null,null,null,null,null,null,null,null,null,null,null,null,null,null,null,null,null,null,null,null,null,1,1]
[null,null,"Zpevněné plochy:13,00+19,00",null,32,null,null,null,null,null,null,null,"Zpevněné plochy:13,00+19,00"]
[null,"Celkem za","5 Komunikace",null,null,null,{"$f":"SUM(G317:G332)","v":0},null,{"$f":"SUM(I317:I332)","v":57.459130000000002},null,{"$f":"SUM(K317:K332)","v":0},null,null,null,4,null,null,null,null,null,null,null,null,null,null,null,null,null,null,null,null,null,null,null,null,null,null,null,null,null,null,null,null,null,null,null,null,null,null,null,null,null,{"$f":"SUM(BA317:BA332)","v":0},{"$f":"SUM(BB317:BB332)","v":0},{"$f":"SUM(BC317:BC332)","v":0},{"$f":"SUM(BD317:BD332)","v":0},{"$f":"SUM(BE317:BE332)","v":0}]
["Díl:","8","Trubní vedení",null,null,null,null,null,null,null,null,null,null,null,1]
[47,"871373121R00","Montáž trub z plastu, gumový kroužek, DN 300 ","m",184.79,null,{"$f":"E335*F335","v":0},1.0000000000000001E-5,{"$f":"E335*H335","v":1.8479E-3},0,{"$f":"E335*J335","v":0},null,null,null,2,null,null,null,null,null,null,null,null,null,null,null,1,1,1,null,null,null,null,null,null,null,null,null,null,null,null,null,null,null,null,null,null,null,null,null,null,1,{"$f":"IF(AZ335=1,G335,0)","v":0},{"$f":"IF(AZ335=2,G335,0)","v":0},{"$f":"IF(AZ335=3,G335,0)","v":0},{"$f":"IF(AZ335=4,G335,0)","v":0},{"$f":"IF(AZ335=5,G335,0)","v":0},null,null,null,null,null,null,null,null,null,null,null,null,null,null,null,null,null,null,null,null,null,1,1]
[null,null,"V položce je uvažováno s jedním spojem na 6 m potrubí. Položka je určena pro montáž potrubí z kanalizačních trub z plastu těsněných gumovým kroužkem v otevřeném výkopu ve sklonu do 20 %.",null,null,null,null,null,null,null,null,"V položce je uvažováno s jedním spojem na 6 m potrubí. Položka je určena pro montáž potrubí z kanalizačních trub z plastu těsněných gumovým kroužkem v otevřeném výkopu ve sklonu do 20 %.",null,null,3]
[null,null,"V položce montáže potrubí nejsou zakalkulovány náklady na dodání trub; tyto náklady se oceňují ve specifikaci.",null,null,null,null,null,null,null,null,"V položce montáže potrubí nejsou zakalkulovány náklady na dodání trub; tyto náklady se oceňují ve specifikaci.",null,null,3]
[null,null,"Stoka \"A\" PVC DN250 Š1 až Š2 km 0,179.67 až km 0,184.79:5,12",null,5.12,null,null,null,null,null,null,null,"Stoka \"A\" PVC DN250 Š1 až Š2 km 0,179.67 až km 0,184.79:5,12"]
[null,null,"Udržovací práce - Stoka PVC DN250 nasunutá do ocelové chráničky mezi Š2 a Š3 km 0,152.00 až 0,179.67:27,67",null,27.67,null,null,null,null,null,null,null,"Udržovací práce - Stoka PVC DN250 nasunutá do ocelové chráničky mezi Š2 a Š3 km 0,152.00 až 0,179.67:27,67"]
[null,null,"Stoka \"B\" PVC DN250 Š2 až Š7 km 0,000 až 0,152.00:152,00",null,152,null,null,null,null,null,null,null,"Stoka \"B\" PVC DN250 Š2 až Š7 km 0,000 až 0,152.00:152,00"]
[48,"871373121RRR","Příplatek za nasunutí trub z plastu do chráničky, Potrubí DN250, Chránička DN350","m",27.67,null,{"$f":"E341*F341","v":0},1.0000000000000001E-5,{"$f":"E341*H341","v":2.7670000000000006E-4},0,{"$f":"E341*J341","v":0},null,null,null,2,null,null,null,null,null,null,null,null,null,null,null,1,1,1,null,null,null,null,null,null,null,null,null,null,null,null,null,null,null,null,null,null,null,null,null,null,1,{"$f":"IF(AZ341=1,G341,0)","v":0},{"$f":"IF(AZ341=2,G341,0)","v":0},{"$f":"IF(AZ341=3,G341,0)","v":0},{"$f":"IF(AZ341=4,G341,0)","v":0},{"$f":"IF(AZ341=5,G341,0)","v":0},null,null,null,null,null,null,null,null,null,null,null,null,null,null,null,null,null,null,null,null,null,1,1]
[null,null,"V položce je uvažováno s nasunutím potrubí do ocelové chráničky včetně dodávky a montáže vymezovacích prvků po 1,5 m a zakončení chráničky manžetou",null,null,null,null,null,null,null,null,"V položce je uvažováno s nasunutím potrubí do ocelové chráničky včetně dodávky a montáže vymezovacích prvků po 1,5 m a zakončení chráničky manžetou",null,null,3]
[null,null,"Udržovací práce - Stoka PVC DN250 nasunutá do ocelové chráničky mezi Š2 a Š3 km 0,152.00 až 0,179.67:27,67",null,27.67,null,null,null,null,null,null,null,"Udržovací práce - Stoka PVC DN250 nasunutá do ocelové chráničky mezi Š2 a Š3 km 0,152.00 až 0,179.67:27,67"]
[49,"877375121RRR","Výřez a montáž ŠD na stáv.potrubí DN 250 vč. dodávky propojovacích tvarovek","kus",1,null,{"$f":"E344*F344","v":0},1.435E-2,{"$f":"E344*H344","v":1.435E-2},0,{"$f":"E344*J344","v":0},null,null,null,2,null,null,null,null,null,null,null,null,null,null,null,1,1,1,null,null,null,null,null,null,null,null,null,null,null,null,null,null,null,null,null,null,null,null,null,null,1,{"$f":"IF(AZ344=1,G344,0)","v":0},{"$f":"IF(AZ344=2,G344,0)","v":0},{"$f":"IF(AZ344=3,G344,0)","v":0},{"$f":"IF(AZ344=4,G344,0)","v":0},{"$f":"IF(AZ344=5,G344,0)","v":0},null,null,null,null,null,null,null,null,null,null,null,null,null,null,null,null,null,null,null,null,null,1,1]
[null,null,"Položka je určena pro výřez a montáž šachtového dna na stávající potrubí z kanalizačních trub z tvrdého PVC pro dodatečné osazení.",null,null,null,null,null,null,null,null,"Položka je určena pro výřez a montáž šachtového dna na stávající potrubí z kanalizačních trub z tvrdého PVC pro dodatečné osazení.",null,null,3]
[null,null,"V položce jsou zakalkulovány i náklady na dodání propojovacích tvarovek.",null,null,null,null,null,null,null,null,"V položce jsou zakalkulovány i náklady na dodání propojovacích tvarovek.",null,null,3]
[50,"877375180RRR","Propojení stávajícího potrubí na novou RŠ vč. dodávky propojovacích tvarovek","kus",4,null,{"$f":"E347*F347","v":0},1.435E-2,{"$f":"E347*H347","v":5.74E-2},0,{"$f":"E347*J347","v":0},null,null,null,2,null,null,null,null,null,null,null,null,null,null,null,1,1,1,null,null,null,null,null,null,null,null,null,null,null,null,null,null,null,null,null,null,null,null,null,null,1,{"$f":"IF(AZ347=1,G347,0)","v":0},{"$f":"IF(AZ347=2,G347,0)","v":0},{"$f":"IF(AZ347=3,G347,0)","v":0},{"$f":"IF(AZ347=4,G347,0)","v":0},{"$f":"IF(AZ347=5,G347,0)","v":0},null,null,null,null,null,null,null,null,null,null,null,null,null,null,null,null,null,null,null,null,null,1,1]
[null,null,"Položka je určena pro napojení stávajícího potrubí DN100-300 na novou RŠ ",null,null,null,null,null,null,null,null,"Položka je určena pro napojení stávajícího potrubí DN100-300 na novou RŠ ",null,null,3]
[null,null,"V položce jsou zakalkulovány i náklady na dodání propojovacích tvarovek a případné vyvrtání otvorů do betonových skruží nebo dna nové RŠ.",null,null,null,null,null,null,null,null,"V položce jsou zakalkulovány i náklady na dodání propojovacích tvarovek a případné vyvrtání otvorů do betonových skruží nebo dna nové RŠ.",null,null,3]
[null,null,"Stávající potrubí:",null,0,null,null,null,null,null,null,null,"Stávající potrubí:"]
[null,null,"KT DN300:1",null,1,null,null,null,null,null,null,null,"KT DN300:1"]
[null,null,"PVC DN150:2",null,2,null,null,null,null,null,null,null,"PVC DN150:2"]
[null,null,"PVC DN100:1",null,1,null,null,null,null,null,null,null,"PVC DN100:1"]
[51,"877379999RRR","Demontáž technologie stávající ČSOV ","soubor",1,null,{"$f":"E354*F354","v":0},1.435E-2,{"$f":"E354*H354","v":1.435E-2},0,{"$f":"E354*J354","v":0},null,null,null,2,null,null,null,null,null,null,null,null,null,null,null,1,1,1,null,null,null,null,null,null,null,null,null,null,null,null,null,null,null,null,null,null,null,null,null,null,1,{"$f":"IF(AZ354=1,G354,0)","v":0},{"$f":"IF(AZ354=2,G354,0)","v":0},{"$f":"IF(AZ354=3,G354,0)","v":0},{"$f":"IF(AZ354=4,G354,0)","v":0},{"$f":"IF(AZ354=5,G354,0)","v":0},null,null,null,null,null,null,null,null,null,null,null,null,null,null,null,null,null,null,null,null,null,1,1]
[null,null,"Položka je určena pro demontáž stávajícítechnologie ČSOV včetně likvidace, odvozu na skládku.",null,null,null,null,null,null,null,null,"Položka je určena pro demontáž stávajícítechnologie ČSOV včetně likvidace, odvozu na skládku.",null,null,3]
[null,null,"Součástí položky ja i vyčerpání kalů z nádrže a vydezinfikování před její vybourání.",null,null,null,null,null,null,null,null,"Součástí položky ja i vyčerpání kalů z nádrže a vydezinfikování před její vybourání.",null,null,3]
[null,null,"Stávající technologie ČSOV:1",null,1,null,null,null,null,null,null,null,"Stávající technologie ČSOV:1"]
[52,"892601154R00","Čištění kanalizační stoky do DN 500, nad 100 m ","m",184.79,null,{"$f":"E358*F358","v":0},0,{"$f":"E358*H358","v":0},0,{"$f":"E358*J358","v":0},null,null,null,2,null,null,null,null,null,null,null,null,null,null,null,1,1,1,null,null,null,null,null,null,null,null,null,null,null,null,null,null,null,null,null,null,null,null,null,null,1,{"$f":"IF(AZ358=1,G358,0)","v":0},{"$f":"IF(AZ358=2,G358,0)","v":0},{"$f":"IF(AZ358=3,G358,0)","v":0},{"$f":"IF(AZ358=4,G358,0)","v":0},{"$f":"IF(AZ358=5,G358,0)","v":0},null,null,null,null,null,null,null,null,null,null,null,null,null,null,null,null,null,null,null,null,null,1,1]
[null,null,"V položce je zakalkulováno:",null,null,null,null,null,null,null,null,"V položce je zakalkulováno:",null,null,3]
[null,null,"a) otevření a uzavření revizních šachet a čisticích kusů",null,null,null,null,null,null,null,null,"a) otevření a uzavření revizních šachet a čisticích kusů",null,null,3]
[null,null,"b) natažení vysokotlakých hadic k místu odkud se bude kanalizace čistit",null,null,null,null,null,null,null,null,"b) natažení vysokotlakých hadic k místu odkud se bude kanalizace čistit",null,null,3]
[null,null,"c) vyčištění potrubí tlakovou vodou nebo motorovým pérem.",null,null,null,null,null,null,null,null,"c) vyčištění potrubí tlakovou vodou nebo motorovým pérem.",null,null,3]
[null,null,"Stoka \"A\" PVC DN250 Š1 až Š2 km 0,179.67 až km 0,184.79:5,12",null,5.12,null,null,null,null,null,null,null,"Stoka \"A\" PVC DN250 Š1 až Š2 km 0,179.67 až km 0,184.79:5,12"]
[null,null,"Udržovací práce - Stoka PVC DN250 nasunutá do ocelové chráničky mezi Š2 a Š3 km 0,152.00 až 0,179.67:27,67",null,27.67,null,null,null,null,null,null,null,"Udržovací práce - Stoka PVC DN250 nasunutá do ocelové chráničky mezi Š2 a Š3 km 0,152.00 až 0,179.67:27,67"]
[null,null,"Stoka \"B\" PVC DN250 Š2 až Š7 km 0,000 až 0,152.00:152,00",null,152,null,null,null,null,null,null,null,"Stoka \"B\" PVC DN250 Š2 až Š7 km 0,000 až 0,152.00:152,00"]
[53,"892855114R00","Kontrola kanalizace TV kamerou do 200 m ","m",184.79,null,{"$f":"E366*F366","v":0},0,{"$f":"E366*H366","v":0},0,{"$f":"E366*J366","v":0},null,null,null,2,null,null,null,null,null,null,null,null,null,null,null,1,1,1,null,null,null,null,null,null,null,null,null,null,null,null,null,null,null,null,null,null,null,null,null,null,1,{"$f":"IF(AZ366=1,G366,0)","v":0},{"$f":"IF(AZ366=2,G366,0)","v":0},{"$f":"IF(AZ366=3,G366,0)","v":0},{"$f":"IF(AZ366=4,G366,0)","v":0},{"$f":"IF(AZ366=5,G366,0)","v":0},null,null,null,null,null,null,null,null,null,null,null,null,null,null,null,null,null,null,null,null,null,1,1]
[null,null,"Stoka \"A\" PVC DN250 Š1 až Š2 km 0,179.67 až km 0,184.79:5,12",null,5.12,null,null,null,null,null,null,null,"Stoka \"A\" PVC DN250 Š1 až Š2 km 0,179.67 až km 0,184.79:5,12"]
[null,null,"Udržovací práce - Stoka PVC DN250 nasunutá do ocelové chráničky mezi Š2 a Š3 km 0,152.00 až 0,179.67:27,67",null,27.67,null,null,null,null,null,null,null,"Udržovací práce - Stoka PVC DN250 nasunutá do ocelové chráničky mezi Š2 a Š3 km 0,152.00 až 0,179.67:27,67"]
[null,null,"Stoka \"B\" PVC DN250 Š2 až Š7 km 0,000 až 0,152.00:152,00",null,152,null,null,null,null,null,null,null,"Stoka \"B\" PVC DN250 Š2 až Š7 km 0,000 až 0,152.00:152,00"]
[54,"894421111RT1","Osazení betonových dílců šachet skruže rovné, na kroužek, do 0,5 t","kus",2,null,{"$f":"E370*F370","v":0},0,{"$f":"E370*H370","v":0},0,{"$f":"E370*J370","v":0},null,null,null,2,null,null,null,null,null,null,null,null,null,null,null,1,1,1,null,null,null,null,null,null,null,null,null,null,null,null,null,null,null,null,null,null,null,null,null,null,1,{"$f":"IF(AZ370=1,G370,0)","v":0},{"$f":"IF(AZ370=2,G370,0)","v":0},{"$f":"IF(AZ370=3,G370,0)","v":0},{"$f":"IF(AZ370=4,G370,0)","v":0},{"$f":"IF(AZ370=5,G370,0)","v":0},null,null,null,null,null,null,null,null,null,null,null,null,null,null,null,null,null,null,null,null,null,1,1]
[null,null,"Položka je určena pro osazení betonových dílců šachet dle DIN 4034, skruže rovné na kroužek, hmotnost do 0,5 t.",null,null,null,null,null,null,null,null,"Položka je určena pro osazení betonových dílců šachet dle DIN 4034, skruže rovné na kroužek, hmotnost do 0,5 t.",null,null,3]
[null,null,"V položce nejsou zakalkulovány náklady na dodání betonových dílců; dílce se oceňují ve specifikaci.",null,null,null,null,null,null,null,null,"V položce nejsou zakalkulovány náklady na dodání betonových dílců; dílce se oceňují ve specifikaci.",null,null,3]
[null,null,"Stoka \"A\" PVC DN250 Š1 až Š2 km 0,179.67 až km 0,184.79:",null,0,null,null,null,null,null,null,null,"Stoka \"A\" PVC DN250 Š1 až Š2 km 0,179.67 až km 0,184.79:"]
[null,null,"Stoka \"B\" PVC DN250 Š2 až Š7 km 0,000 až 0,152.00:",null,0,null,null,null,null,null,null,null,"Stoka \"B\" PVC DN250 Š2 až Š7 km 0,000 až 0,152.00:"]
[null,null,"Skruž H250:2",null,2,null,null,null,null,null,null,null,"Skruž H250:2"]
[55,"894421112RT1","Osazení betonových dílců šachet skruže rovné, na kroužek, do 1,4 t","kus",8,null,{"$f":"E376*F376","v":0},0,{"$f":"E376*H376","v":0},0,{"$f":"E376*J376","v":0},null,null,null,2,null,null,null,null,null,null,null,null,null,null,null,1,1,1,null,null,null,null,null,null,null,null,null,null,null,null,null,null,null,null,null,null,null,null,null,null,1,{"$f":"IF(AZ376=1,G376,0)","v":0},{"$f":"IF(AZ376=2,G376,0)","v":0},{"$f":"IF(AZ376=3,G376,0)","v":0},{"$f":"IF(AZ376=4,G376,0)","v":0},{"$f":"IF(AZ376=5,G376,0)","v":0},null,null,null,null,null,null,null,null,null,null,null,null,null,null,null,null,null,null,null,null,null,1,1]
[null,null,"Položka je určena pro osazení betonových dílců šachet dle DIN 4034, skruže rovné na kroužek, hmotnost přes 0,5 do 1,4 t.",null,null,null,null,null,null,null,null,"Položka je určena pro osazení betonových dílců šachet dle DIN 4034, skruže rovné na kroužek, hmotnost přes 0,5 do 1,4 t.",null,null,3]
[null,null,"V položce nejsou zakalkulovány náklady na dodání betonových dílců; dílce se oceňují ve specifikaci.",null,null,null,null,null,null,null,null,"V položce nejsou zakalkulovány náklady na dodání betonových dílců; dílce se oceňují ve specifikaci.",null,null,3]
[null,null,"Stoka \"A\" PVC DN250 Š1 až Š2 km 0,179.67 až km 0,184.79:",null,0,null,null,null,null,null,null,null,"Stoka \"A\" PVC DN250 Š1 až Š2 km 0,179.67 až km 0,184.79:"]
[null,null,"Stoka \"B\" PVC DN250 Š2 až Š7 km 0,000 až 0,152.00:",null,0,null,null,null,null,null,null,null,"Stoka \"B\" PVC DN250 Š2 až Š7 km 0,000 až 0,152.00:"]
[null,null,"Skruž H500:5",null,5,null,null,null,null,null,null,null,"Skruž H500:5"]
[null,null,"Skruž H1000:3",null,3,null,null,null,null,null,null,null,"Skruž H1000:3"]
[56,"894422111RT1","Osazení betonových dílců šachet skruže přechodové, na kroužek","kus",7,null,{"$f":"E383*F383","v":0},0,{"$f":"E383*H383","v":0},0,{"$f":"E383*J383","v":0},null,null,null,2,null,null,null,null,null,null,null,null,null,null,null,1,1,1,null,null,null,null,null,null,null,null,null,null,null,null,null,null,null,null,null,null,null,null,null,null,1,{"$f":"IF(AZ383=1,G383,0)","v":0},{"$f":"IF(AZ383=2,G383,0)","v":0},{"$f":"IF(AZ383=3,G383,0)","v":0},{"$f":"IF(AZ383=4,G383,0)","v":0},{"$f":"IF(AZ383=5,G383,0)","v":0},null,null,null,null,null,null,null,null,null,null,null,null,null,null,null,null,null,null,null,null,null,1,1]
[null,null,"Položka je určena pro osazení betonových dílců šachet dle DIN 4034, skruže přechodové na kroužek.",null,null,null,null,null,null,null,null,"Položka je určena pro osazení betonových dílců šachet dle DIN 4034, skruže přechodové na kroužek.",null,null,3]
[null,null,"V položce nejsou zakalkulovány náklady na dodání betonových dílců",null,null,null,null,null,null,null,null,"V položce nejsou zakalkulovány náklady na dodání betonových dílců",null,null,3]
[null,null,"Stoka \"A\" PVC DN250 Š1 až Š2 km 0,179.67 až km 0,184.79:",null,0,null,null,null,null,null,null,null,"Stoka \"A\" PVC DN250 Š1 až Š2 km 0,179.67 až km 0,184.79:"]
[null,null,"Stoka \"B\" PVC DN250 Š2 až Š7 km 0,000 až 0,152.00:",null,0,null,null,null,null,null,null,null,"Stoka \"B\" PVC DN250 Š2 až Š7 km 0,000 až 0,152.00:"]
[null,null,"Kńus H600:7",null,7,null,null,null,null,null,null,null,"Kńus H600:7"]
[57,"894423111RT1","Osazení betonových dílců šachet do 2,0 t šachtová dna, na kroužek, do 2,0 t","kus",7,null,{"$f":"E389*F389","v":0},0,{"$f":"E389*H389","v":0},0,{"$f":"E389*J389","v":0},null,null,null,2,null,null,null,null,null,null,null,null,null,null,null,1,1,1,null,null,null,null,null,null,null,null,null,null,null,null,null,null,null,null,null,null,null,null,null,null,1,{"$f":"IF(AZ389=1,G389,0)","v":0},{"$f":"IF(AZ389=2,G389,0)","v":0},{"$f":"IF(AZ389=3,G389,0)","v":0},{"$f":"IF(AZ389=4,G389,0)","v":0},{"$f":"IF(AZ389=5,G389,0)","v":0},null,null,null,null,null,null,null,null,null,null,null,null,null,null,null,null,null,null,null,null,null,1,1]
[null,null,"Položka je určena pro osazení betonových dílců šachet dle DIN 4034, šachtová dna na kroužek, hmotnost do 2,0 t. včetně dodávky a provedení podkladního betonového lože.",null,null,null,null,null,null,null,null,"Položka je určena pro osazení betonových dílců šachet dle DIN 4034, šachtová dna na kroužek, hmotnost do 2,0 t. včetně dodávky a provedení podkladního betonového lože.",null,null,3]
[null,null,"V položce nejsou zakalkulovány náklady na dodání betonových dílců;",null,null,null,null,null,null,null,null,"V položce nejsou zakalkulovány náklady na dodání betonových dílců;",null,null,3]
[null,null,"Stoka \"A\" PVC DN250 Š1 až Š2 km 0,179.67 až km 0,184.79:",null,0,null,null,null,null,null,null,null,"Stoka \"A\" PVC DN250 Š1 až Š2 km 0,179.67 až km 0,184.79:"]
[null,null,"Stoka \"B\" PVC DN250 Š2 až Š7 km 0,000 až 0,152.00:",null,0,null,null,null,null,null,null,null,"Stoka \"B\" PVC DN250 Š2 až Š7 km 0,000 až 0,152.00:"]
[null,null,"ŠD pro PVC DN250:7",null,7,null,null,null,null,null,null,null,"ŠD pro PVC DN250:7"]
[58,"894423199RRX","Příplatek za vytvoření spadiště na DN250 do H1,2 m ","kus",1,null,{"$f":"E395*F395","v":0},0,{"$f":"E395*H395","v":0},0,{"$f":"E395*J395","v":0},null,null,null,2,null,null,null,null,null,null,null,null,null,null,null,1,1,1,null,null,null,null,null,null,null,null,null,null,null,null,null,null,null,null,null,null,null,null,null,null,1,{"$f":"IF(AZ395=1,G395,0)","v":0},{"$f":"IF(AZ395=2,G395,0)","v":0},{"$f":"IF(AZ395=3,G395,0)","v":0},{"$f":"IF(AZ395=4,G395,0)","v":0},{"$f":"IF(AZ395=5,G395,0)","v":0},null,null,null,null,null,null,null,null,null,null,null,null,null,null,null,null,null,null,null,null,null,1,1]
[null,null,"Součástí položky je:",null,null,null,null,null,null,null,null,"Součástí položky je:",null,null,3]
[null,null,"- dodávka a osazení PVC tvarovek dle PD",null,null,null,null,null,null,null,null,"- dodávka a osazení PVC tvarovek dle PD",null,null,3]
[null,null,"- obetonování potrubí",null,null,null,null,null,null,null,null,"- obetonování potrubí",null,null,3]
[null,null,"- vyvrtání otvoru do šachtové skruže včetně zednického zapravení",null,null,null,null,null,null,null,null,"- vyvrtání otvoru do šachtové skruže včetně zednického zapravení",null,null,3]
[null,null,"- dodávka a montáž šachtové ložky pro potrubí DN250 včetně zednického zapavení",null,null,null,null,null,null,null,null,"- dodávka a montáž šachtové ložky pro potrubí DN250 včetně zednického zapavení",null,null,3]
[59,"899103111R00","Osazení poklopu s rámem do 150 kg ","kus",7,null,{"$f":"E401*F401","v":0},7.0200000000000002E-3,{"$f":"E401*H401","v":4.9140000000000003E-2},0,{"$f":"E401*J401","v":0},null,null,null,2,null,null,null,null,null,null,null,null,null,null,null,1,1,1,null,null,null,null,null,null,null,null,null,null,null,null,null,null,null,null,null,null,null,null,null,null,1,{"$f":"IF(AZ401=1,G401,0)","v":0},{"$f":"IF(AZ401=2,G401,0)","v":0},{"$f":"IF(AZ401=3,G401,0)","v":0},{"$f":"IF(AZ401=4,G401,0)","v":0},{"$f":"IF(AZ401=5,G401,0)","v":0},null,null,null,null,null,null,null,null,null,null,null,null,null,null,null,null,null,null,null,null,null,1,1]
[60,"286111923.A","Trubka kanalizační PVC QUANTUM SN 12 DN 250","kus",192.2706,null,{"$f":"E402*F402","v":0},8.2000000000000007E-3,{"$f":"E402*H402","v":1.5766189200000003},null,{"$f":"E402*J402","v":0},null,null,null,2,null,null,null,null,null,null,null,null,null,null,null,3,1,"286111923.A",null,null,null,null,null,null,null,null,null,null,null,null,null,null,null,null,null,null,null,null,null,null,1,{"$f":"IF(AZ402=1,G402,0)","v":0},{"$f":"IF(AZ402=2,G402,0)","v":0},{"$f":"IF(AZ402=3,G402,0)","v":0},{"$f":"IF(AZ402=4,G402,0)","v":0},{"$f":"IF(AZ402=5,G402,0)","v":0},null,null,null,null,null,null,null,null,null,null,null,null,null,null,null,null,null,null,null,null,null,3,1]
[null,null,"Jedná  se  o  plnostěnné kanalizační trubky DN 150 – DN 400, min. SN 12 kN/m2 , zvenčí  i  zevnitř  hladké. Jsou  opatřeny hrdlem,  v  němž  je  vložen vysoce  elastický  jazýčkový  kroužek.  konce  trubek  (dříků)  jsou opatřeny  zkosením  pod  úhlem  15°.  Způsob  použití  trubek  je  „U“  dle  normy  ČSN  EN  1401-1, tj. mimo budovy. Spolehlivá  funkce  těsnění  je  jištěna  výztužným  kroužkem  z  elastomeru.  Je  tak  zamezeno  vypad-nutí nebo vytlačení kroužku při manipulaci a montáži. Tento systém zaručuje při správné montáži ",null,null,null,null,null,null,null,null,"Jedná  se  o  plnostěnné kanalizační trubky DN 150 – DN 400, min. SN 12 kN/m2 , zvenčí  i  zevnitř  hladké. Jsou  opatřeny hrdlem,  v  němž  je  vložen vysoce  elastický  jazýčkový  kroužek.  konce  trubek  (dříků)  jsou opatřeny  zkosením  pod  úhlem  15°.  Způsob  použití  trubek  je  „U“  dle  normy  ČSN  EN  1401-1, tj. mimo budovy. Spolehlivá  funkce  těsnění  je  jištěna  výztužným  kroužkem  z  elastomeru.  Je  tak  zamezeno  vypad-nutí nebo vytlačení kroužku při manipulaci a montáži. Tento systém zaručuje při správné montáži ",null,null,3]
[null,null,"dokonalou  těsnost  do  výšky  vodního  sloupce  5  metrů.",null,null,null,null,null,null,null,null,"dokonalou  těsnost  do  výšky  vodního  sloupce  5  metrů.",null,null,3]
[null,null,"Teplota při pokládce: min. -10 °C, max. 50 °C",null,null,null,null,null,null,null,null,"Teplota při pokládce: min. -10 °C, max. 50 °C",null,null,3]
[null,null,"Max. teplota média: trvale do 40 °C, krátkodobě do 60 °C",null,null,null,null,null,null,null,null,"Max. teplota média: trvale do 40 °C, krátkodobě do 60 °C",null,null,3]
[null,null,"Orientační výška krytí: min. 0,5 m, max. 10 m",null,null,null,null,null,null,null,null,"Orientační výška krytí: min. 0,5 m, max. 10 m",null,null,3]
[null,null,"Max. rychlost média: 12 m/s",null,null,null,null,null,null,null,null,"Max. rychlost média: 12 m/s",null,null,3]
[null,null,"Stoka \"A\" PVC DN250 Š1 až Š2 km 0,179.67 až km 0,184.79:5,12*1,03",null,5.2736000000000001,null,null,null,null,null,null,null,"Stoka \"A\" PVC DN250 Š1 až Š2 km 0,179.67 až km 0,184.79:5,12*1,03"]
[null,null,"Udržovací práce - Stoka PVC DN250 nasunutá do ocelové chráničky mezi Š2 a Š3 km 0,152.00 až 0,179.67:27,67*1,10",null,30.437000000000001,null,null,null,null,null,null,null,"Udržovací práce - Stoka PVC DN250 nasunutá do ocelové chráničky mezi Š2 a Š3 km 0,152.00 až 0,179.67:27,67*1,10"]
[null,null,"Stoka \"B\" PVC DN250 Š2 až Š7 km 0,000 až 0,152.00:152,00*1,03",null,156.56,null,null,null,null,null,null,null,"Stoka \"B\" PVC DN250 Š2 až Š7 km 0,000 až 0,152.00:152,00*1,03"]
[61,"55244415.R","Poklop v litino-betonovém rámu KDB65 D400 SN600","kus",4,null,{"$f":"E412*F412","v":0},9.0999999999999998E-2,{"$f":"E412*H412","v":0.36399999999999999},null,{"$f":"E412*J412","v":0},null,null,null,2,null,null,null,null,null,null,null,null,null,null,null,3,1,"55244415.R",null,null,null,null,null,null,null,null,null,null,null,null,null,null,null,null,null,null,null,null,null,null,1,{"$f":"IF(AZ412=1,G412,0)","v":0},{"$f":"IF(AZ412=2,G412,0)","v":0},{"$f":"IF(AZ412=3,G412,0)","v":0},{"$f":"IF(AZ412=4,G412,0)","v":0},{"$f":"IF(AZ412=5,G412,0)","v":0},null,null,null,null,null,null,null,null,null,null,null,null,null,null,null,null,null,null,null,null,null,3,1]
[null,null,"Kanalizační kruhový poklop bez ventilace v litino-betonovém rámu, bez pantu,  horizontální PUR tlumící vložka na rámu, horizontální a vertikální  PUR tlumící vložka na víku, bez pružinového zajištění víka v rámu ",null,null,null,null,null,null,null,null,"Kanalizační kruhový poklop bez ventilace v litino-betonovém rámu, bez pantu,  horizontální PUR tlumící vložka na rámu, horizontální a vertikální  PUR tlumící vložka na víku, bez pružinového zajištění víka v rámu ",null,null,3]
[null,null,"KDB65 bez ventilace dle TS VHS Turnov",null,null,null,null,null,null,null,null,"KDB65 bez ventilace dle TS VHS Turnov",null,null,3]
[null,null,null,null,null,null,null,null,null,null,null,null,null,null,3]
[62,"55244416.R","Poklop v litino-betonovém rámu KDB98B D400 SN600","kus",3,null,{"$f":"E416*F416","v":0},0.124,{"$f":"E416*H416","v":0.372},null,{"$f":"E416*J416","v":0},null,null,null,2,null,null,null,null,null,null,null,null,null,null,null,3,1,"55244416.R",null,null,null,null,null,null,null,null,null,null,null,null,null,null,null,null,null,null,null,null,null,null,1,{"$f":"IF(AZ416=1,G416,0)","v":0},{"$f":"IF(AZ416=2,G416,0)","v":0},{"$f":"IF(AZ416=3,G416,0)","v":0},{"$f":"IF(AZ416=4,G416,0)","v":0},{"$f":"IF(AZ416=5,G416,0)","v":0},null,null,null,null,null,null,null,null,null,null,null,null,null,null,null,null,null,null,null,null,null,3,1]
[null,null,"Kanalizační kruhový poklop s ventilací v litino-betonovém rámu, bez pantu,  horizontální PUR tlumící vložka na rámu, horizontální a vertikální  PUR tlumící vložka na víku, s pružinovým zajištění víka v rámu ",null,null,null,null,null,null,null,null,"Kanalizační kruhový poklop s ventilací v litino-betonovém rámu, bez pantu,  horizontální PUR tlumící vložka na rámu, horizontální a vertikální  PUR tlumící vložka na víku, s pružinovým zajištění víka v rámu ",null,null,3]
[null,null,"KDB98B s ventilací dle TS VHS Turnov",null,null,null,null,null,null,null,null,"KDB98B s ventilací dle TS VHS Turnov",null,null,3]
[63,"592243593.R","Konus šachetní TBR-Q.1 1000x625/600/120SKP INTEGRO","kus",7.07,200,null,0.54900000000000004,{"$f":"E419*H419","v":3.8814300000000004},null,{"$f":"E419*J419","v":0},null,null,null,2,null,null,null,null,null,null,null,null,null,null,null,3,1,"592243593.R",null,null,null,null,null,null,null,null,null,null,null,null,null,null,null,null,null,null,null,null,null,null,1,{"$f":"IF(AZ419=1,G419,0)","v":0},{"$f":"IF(AZ419=2,G419,0)","v":0},{"$f":"IF(AZ419=3,G419,0)","v":0},{"$f":"IF(AZ419=4,G419,0)","v":0},{"$f":"IF(AZ419=5,G419,0)","v":0},null,null,null,null,null,null,null,null,null,null,null,null,null,null,null,null,null,null,null,null,null,3,1]
[null,null,"Stoka \"A\" PVC DN250 Š1 až Š2 km 0,179.67 až km 0,184.79:",null,0,null,null,null,null,null,null,null,"Stoka \"A\" PVC DN250 Š1 až Š2 km 0,179.67 až km 0,184.79:"]
[null,null,"Stoka \"B\" PVC DN250 Š2 až Š7 km 0,000 až 0,152.00:",null,0,null,null,null,null,null,null,null,"Stoka \"B\" PVC DN250 Š2 až Š7 km 0,000 až 0,152.00:"]
[null,null,"Kńus H600:7*1,01",null,7.07,null,null,null,null,null,null,null,"Kńus H600:7*1,01"]
[64,"592243594.R","Skruž šachetní TBS-Q.1 1000/250/120 SP INTEGRO","kus",2.02,null,{"$f":"E423*F423","v":0},0.254,{"$f":"E423*H423","v":0.51307999999999998},null,{"$f":"E423*J423","v":0},null,null,null,2,null,null,null,null,null,null,null,null,null,null,null,3,1,"592243594.R",null,null,null,null,null,null,null,null,null,null,null,null,null,null,null,null,null,null,null,null,null,null,1,{"$f":"IF(AZ423=1,G423,0)","v":0},{"$f":"IF(AZ423=2,G423,0)","v":0},{"$f":"IF(AZ423=3,G423,0)","v":0},{"$f":"IF(AZ423=4,G423,0)","v":0},{"$f":"IF(AZ423=5,G423,0)","v":0},null,null,null,null,null,null,null,null,null,null,null,null,null,null,null,null,null,null,null,null,null,3,1]
[null,null,"Stoka \"A\" PVC DN250 Š1 až Š2 km 0,179.67 až km 0,184.79:",null,0,null,null,null,null,null,null,null,"Stoka \"A\" PVC DN250 Š1 až Š2 km 0,179.67 až km 0,184.79:"]
[null,null,"Stoka \"B\" PVC DN250 Š2 až Š7 km 0,000 až 0,152.00:",null,0,null,null,null,null,null,null,null,"Stoka \"B\" PVC DN250 Š2 až Š7 km 0,000 až 0,152.00:"]
[null,null,"Skruž H250:2*1,01",null,2.02,null,null,null,null,null,null,null,"Skruž H250:2*1,01"]
[65,"592243595.R","Skruž šachetní TBS-Q.1 1000/500/120 SP INTEGRO","kus",5.05,null,{"$f":"E427*F427","v":0},0.50900000000000001,{"$f":"E427*H427","v":2.5704500000000001},null,{"$f":"E427*J427","v":0},null,null,null,2,null,null,null,null,null,null,null,null,null,null,null,3,1,"592243595.R",null,null,null,null,null,null,null,null,null,null,null,null,null,null,null,null,null,null,null,null,null,null,1,{"$f":"IF(AZ427=1,G427,0)","v":0},{"$f":"IF(AZ427=2,G427,0)","v":0},{"$f":"IF(AZ427=3,G427,0)","v":0},{"$f":"IF(AZ427=4,G427,0)","v":0},{"$f":"IF(AZ427=5,G427,0)","v":0},null,null,null,null,null,null,null,null,null,null,null,null,null,null,null,null,null,null,null,null,null,3,1]
[null,null,"Stoka \"A\" PVC DN250 Š1 až Š2 km 0,179.67 až km 0,184.79:",null,0,null,null,null,null,null,null,null,"Stoka \"A\" PVC DN250 Š1 až Š2 km 0,179.67 až km 0,184.79:"]
[null,null,"Stoka \"B\" PVC DN250 Š2 až Š7 km 0,000 až 0,152.00:",null,0,null,null,null,null,null,null,null,"Stoka \"B\" PVC DN250 Š2 až Š7 km 0,000 až 0,152.00:"]
[null,null,"Skruž H500:5*1,01",null,5.05,null,null,null,null,null,null,null,"Skruž H500:5*1,01"]
[66,"592243696.R","Skruž šachetní TBS-Q.1 1000/1000/120 SP INTEGRO","kus",3.03,null,{"$f":"E431*F431","v":0},1.0189999999999999,{"$f":"E431*H431","v":3.0875699999999995},null,{"$f":"E431*J431","v":0},null,null,null,2,null,null,null,null,null,null,null,null,null,null,null,3,1,"592243696.R",null,null,null,null,null,null,null,null,null,null,null,null,null,null,null,null,null,null,null,null,null,null,1,{"$f":"IF(AZ431=1,G431,0)","v":0},{"$f":"IF(AZ431=2,G431,0)","v":0},{"$f":"IF(AZ431=3,G431,0)","v":0},{"$f":"IF(AZ431=4,G431,0)","v":0},{"$f":"IF(AZ431=5,G431,0)","v":0},null,null,null,null,null,null,null,null,null,null,null,null,null,null,null,null,null,null,null,null,null,3,1]
[null,null,"Stoka \"A\" PVC DN250 Š1 až Š2 km 0,179.67 až km 0,184.79:",null,0,null,null,null,null,null,null,null,"Stoka \"A\" PVC DN250 Š1 až Š2 km 0,179.67 až km 0,184.79:"]
[null,null,"Stoka \"B\" PVC DN250 Š2 až Š7 km 0,000 až 0,152.00:",null,0,null,null,null,null,null,null,null,"Stoka \"B\" PVC DN250 Š2 až Š7 km 0,000 až 0,152.00:"]
[null,null,"Skruž H1000:3*1,01",null,3.03,null,null,null,null,null,null,null,"Skruž H1000:3*1,01"]
[67,"592243714.R","Dno šachetní pro PVC DN250 Provedení dle PD","kus",7.07,null,{"$f":"E435*F435","v":0},1.43,{"$f":"E435*H435","v":10.110099999999999},null,{"$f":"E435*J435","v":0},null,null,null,2,null,null,null,null,null,null,null,null,null,null,null,3,1,"592243714.R",null,null,null,null,null,null,null,null,null,null,null,null,null,null,null,null,null,null,null,null,null,null,1,{"$f":"IF(AZ435=1,G435,0)","v":0},{"$f":"IF(AZ435=2,G435,0)","v":0},{"$f":"IF(AZ435=3,G435,0)","v":0},{"$f":"IF(AZ435=4,G435,0)","v":0},{"$f":"IF(AZ435=5,G435,0)","v":0},null,null,null,null,null,null,null,null,null,null,null,null,null,null,null,null,null,null,null,null,null,3,1]
[null,null,"Včetně kynety a vstupů dle PD",null,null,null,null,null,null,null,null,"Včetně kynety a vstupů dle PD",null,null,3]
[null,null,"Stoka \"A\" PVC DN250 Š1 až Š2 km 0,179.67 až km 0,184.79:",null,0,null,null,null,null,null,null,null,"Stoka \"A\" PVC DN250 Š1 až Š2 km 0,179.67 až km 0,184.79:"]
[null,null,"Stoka \"B\" PVC DN250 Š2 až Š7 km 0,000 až 0,152.00:",null,0,null,null,null,null,null,null,null,"Stoka \"B\" PVC DN250 Š2 až Š7 km 0,000 až 0,152.00:"]
[null,null,"ŠD pro PVC DN250:7*1,01",null,7.07,null,null,null,null,null,null,null,"ŠD pro PVC DN250:7*1,01"]
[null,"Celkem za","8 Trubní vedení",null,null,null,{"$f":"SUM(G334:G439)","v":0},null,{"$f":"SUM(I334:I439)","v":22.61261352},null,{"$f":"SUM(K334:K439)","v":0},null,null,null,4,null,null,null,null,null,null,null,null,null,null,null,null,null,null,null,null,null,null,null,null,null,null,null,null,null,null,null,null,null,null,null,null,null,null,null,null,null,{"$f":"SUM(BA334:BA439)","v":0},{"$f":"SUM(BB334:BB439)","v":0},{"$f":"SUM(BC334:BC439)","v":0},{"$f":"SUM(BD334:BD439)","v":0},{"$f":"SUM(BE334:BE439)","v":0}]
["Díl:","99","Staveništní přesun hmot",null,null,null,null,null,null,null,null,null,null,null,1]
[68,"998276101R00","Přesun hmot, trubní vedení plastová, otevř. výkop ","t",416.93018666199998,null,{"$f":"E442*F442","v":0},0,{"$f":"E442*H442","v":0},null,{"$f":"E442*J442","v":0},null,null,null,2,null,null,null,null,null,null,null,null,null,null,null,7,1,2,null,null,null,null,null,null,null,null,null,null,null,null,null,null,null,null,null,null,null,null,null,null,1,{"$f":"IF(AZ442=1,G442,0)","v":0},{"$f":"IF(AZ442=2,G442,0)","v":0},{"$f":"IF(AZ442=3,G442,0)","v":0},{"$f":"IF(AZ442=4,G442,0)","v":0},{"$f":"IF(AZ442=5,G442,0)","v":0},null,null,null,null,null,null,null,null,null,null,null,null,null,null,null,null,null,null,null,null,null,7,1]
[null,"Celkem za","99 Staveništní přesun hmot",null,null,null,{"$f":"SUM(G441:G442)","v":0},null,{"$f":"SUM(I441:I442)","v":0},null,{"$f":"SUM(K441:K442)","v":0},null,null,null,4,null,null,null,null,null,null,null,null,null,null,null,null,null,null,null,null,null,null,null,null,null,null,null,null,null,null,null,null,null,null,null,null,null,null,null,null,null,{"$f":"SUM(BA441:BA442)","v":0},{"$f":"SUM(BB441:BB442)","v":0},{"$f":"SUM(BC441:BC442)","v":0},{"$f":"SUM(BD441:BD442)","v":0},{"$f":"SUM(BE441:BE442)","v":0}]

{"sheet":"02 334102 KL","index":4,"n_rows":45,"n_cols":8,"rows_kept":45,"cut":false,"hidden":false,"merged":[[22,0,22,1],[7,2,7,4],[8,2,8,4],[9,2,9,4],[10,2,10,4],[11,2,11,4],[50,1,50,6],[29,5,29,6],[30,5,30,6],[31,5,31,6],[32,5,32,6],[33,5,33,6],[36,1,44,6],[45,1,45,6],[46,1,46,6],[47,1,47,6],[48,1,48,6],[49,1,49,6]]}
["POLOŽKOVÝ ROZPOČET"]
["Rozpočet",null,"3341/02","Podružný kanalizační řád B-1",null,"JKSO ","827.21.A2"]
[]
["Objekt",null,null,null,null,"SKP "]
["02",null,"Podružný kanalizační řád B-1",null,null,"Měrná jednotka","m"]
["Stavba",null,null,null,null,"Počet jednotek",47.26]
["3341",null,"Přepojení ČSOV Hančova bouda Benecko",null,null,"Náklady na m.j.",{"$f":"IF(G6=0,,ROUND((F30+F32)/G6,1))","v":0}]
["Projektant",null,"Vodohospodářské inženýrské služby a.s.",null,null,"Typ rozpočtu"]
["Zpracovatel projektu"]
["Objednatel",null,"Vodohospodářské sdružení Turnov"]
["Dodavatel",null,".",null,null,"Zakázkové číslo "]
["Rozpočtoval",null,null,null,null,"Počet listů"]
["ROZPOČTOVÉ NÁKLADY"]
["Základní rozpočtové náklady"]
[null,"HSV celkem",{"$f":"'02 334102 Rek'!E12","v":0}]
["Z","PSV celkem",{"$f":"'02 334102 Rek'!F12","v":0}]
["R","M práce celkem",{"$f":"'02 334102 Rek'!H12","v":0}]
["N","M dodávky celkem",{"$f":"'02 334102 Rek'!G12","v":0}]
["ZRN celkem",null,{"$f":"SUM(C15:C18)","v":0}]
[]
["HZS",null,{"$f":"'02 334102 Rek'!I12","v":0}]
["ZRN+HZS",null,{"$f":"C19+C21","v":0}]
["ZRN+ost.náklady+HZS",null,{"$f":"C22+G23","v":0}]
["Vypracoval",null,null,"Za zhotovitele",null,"Za objednatele"]
["Jméno :",null,null,"Jméno :",null,"Jméno :"]
["Datum :",null,null,"Datum :",null,"Datum :"]
[]
["Podpis :",null,null,"Podpis:",null,"Podpis:"]
[]
["Základ pro DPH",null,21,"%  ",null,{"$f":"C23-F32","v":0}]
["DPH",null,{"$f":"C30","v":21},"% ",null,{"$f":"ROUND(PRODUCT(F30,C31/100),0)","v":0}]
["Základ pro DPH",null,0,"% ",null,0]
["DPH",null,{"$f":"C32","v":0},"% ",null,{"$f":"ROUND(PRODUCT(F32,C33/100),0)","v":0}]
["CENA ZA OBJEKT CELKEM",null,null,null,null,{"$f":"ROUND(SUM(F30:F33),0)","v":0}]
[]
["Poznámka :",null,null,null,null,null,null," "]
[null,null,null,null,null,null,null," "]
[null,null,null,null,null,null,null," "]
[null,null,null,null,null,null,null," "]
[null,null,null,null,null,null,null," "]
[null,null,null,null,null,null,null," "]
[null,null,null,null,null,null,null," "]
[null,null,null,null,null,null,null," "]
[null,null,null,null,null,null,null," "]
[null,null,null,null,null,null,null," "]

{"sheet":"02 334102 Rek","index":5,"n_rows":12,"n_cols":9,"rows_kept":12,"cut":false,"hidden":false,"merged":[[0,0,0,1],[1,0,1,1],[1,6,1,8]]}
["Stavba :",null,"3341 Přepojení ČSOV Hančova bouda Benecko",null,null,null,"Rozpočet :","3341/02"]
["Objekt :",null,"02 Podružný kanalizační řád B-1",null,null,null,"Podružný kanalizační řád B-1"]
[]
["REKAPITULACE  STAVEBNÍCH  DÍLŮ"]
[]
[null,"Stavební díl",null,null,"HSV","PSV","Dodávka","Montáž","HZS"]
[{"$f":"'02 334102 Pol'!B7","v":"1"},{"$f":"'02 334102 Pol'!C7","v":"Zemní práce"},null,null,{"$f":"'02 334102 Pol'!BA113","v":0},{"$f":"'02 334102 Pol'!BB113","v":0},{"$f":"'02 334102 Pol'!BC113","v":0},{"$f":"'02 334102 Pol'!BD113","v":0},{"$f":"'02 334102 Pol'!BE113","v":0}]
[{"$f":"'02 334102 Pol'!B114","v":"2"},{"$f":"'02 334102 Pol'!C114","v":"Základy a zvláštní zakládání"},null,null,{"$f":"'02 334102 Pol'!BA122","v":0},{"$f":"'02 334102 Pol'!BB122","v":0},{"$f":"'02 334102 Pol'!BC122","v":0},{"$f":"'02 334102 Pol'!BD122","v":0},{"$f":"'02 334102 Pol'!BE122","v":0}]
[{"$f":"'02 334102 Pol'!B123","v":"45"},{"$f":"'02 334102 Pol'!C123","v":"Podkladní a vedlejší konstrukce"},null,null,{"$f":"'02 334102 Pol'!BA126","v":0},{"$f":"'02 334102 Pol'!BB126","v":0},{"$f":"'02 334102 Pol'!BC126","v":0},{"$f":"'02 334102 Pol'!BD126","v":0},{"$f":"'02 334102 Pol'!BE126","v":0}]
[{"$f":"'02 334102 Pol'!B127","v":"8"},{"$f":"'02 334102 Pol'!C127","v":"Trubní vedení"},null,null,{"$f":"'02 334102 Pol'!BA155","v":0},{"$f":"'02 334102 Pol'!BB155","v":0},{"$f":"'02 334102 Pol'!BC155","v":0},{"$f":"'02 334102 Pol'!BD155","v":0},{"$f":"'02 334102 Pol'!BE155","v":0}]
[{"$f":"'02 334102 Pol'!B156","v":"99"},{"$f":"'02 334102 Pol'!C156","v":"Staveništní přesun hmot"},null,null,{"$f":"'02 334102 Pol'!BA158","v":0},{"$f":"'02 334102 Pol'!BB158","v":0},{"$f":"'02 334102 Pol'!BC158","v":0},{"$f":"'02 334102 Pol'!BD158","v":0},{"$f":"'02 334102 Pol'!BE158","v":0}]
[null,"CELKEM  OBJEKT",null,null,{"$f":"SUM(E7:E11)","v":0},{"$f":"SUM(F7:F11)","v":0},{"$f":"SUM(G7:G11)","v":0},{"$f":"SUM(H7:H11)","v":0},{"$f":"SUM(I7:I11)","v":0}]

{"sheet":"02 334102 Pol","index":6,"n_rows":158,"n_cols":80,"rows_kept":158,"cut":false,"hidden":false,"merged":[[15,2,15,3],[16,2,16,3],[17,2,17,3],[18,2,18,3],[19,2,19,3],[20,2,20,3],[0,0,0,6],[2,0,2,1],[3,0,3,1],[3,4,3,6],[10,2,10,3],[12,2,12,6],[13,2,13,3],[14,2,14,3],[28,2,28,3],[29,2,29,3],[30,2,30,3],[32,2,32,3],[33,2,33,3],[34,2,34,3],[22,2,22,6],[23,2,23,3],[24,2,24,3],[25,2,25,3],[26,2,26,3],[27,2,27,3],[42,2,42,3],[43,2,43,3],[44,2,44,3],[45,2,45,3],[46,2,46,3],[47,2,47,3],[35,2,35,3],[36,2,36,3],[37,2,37,3],[38,2,38,3],[39,2,39,3],[41,2,41,6],[55,2,55,3],[56,2,56,3],[57,2,57,3],[58,2,58,3],[60,2,60,6],[61,2,61,3],[48,2,48,3],[49,2,49,3],[51,2,51,3],[52,2,52,3],[53,2,53,3],[54,2,54,3],[68,2,68,3],[70,2,70,3],[71,2,71,3],[72,2,72,3],[73,2,73,3],[75,2,75,3],[62,2,62,3],[63,2,63,3],[64,2,64,3],[65,2,65,3],[66,2,66,3],[67,2,67,3],[83,2,83,3],[84,2,84,3],[85,2,85,3],[86,2,86,3],[87,2,87,3],[88,2,88,3],[76,2,76,3],[77,2,77,3],[78,2,78,3],[80,2,80,3],[81,2,81,3],[82,2,82,3],[95,2,95,3],[96,2,96,3],[98,2,98,3],[100,2,100,3],[101,2,101,3],[102,2,102,3],[89,2,89,3],[91,2,91,6],[92,2,92,3],[93,2,93,3],[94,2,94,3],[109,2,109,3],[111,2,111,3],[115,2,115,6],[116,2,116,3],[118,2,118,3],[120,2,120,3],[103,2,103,3],[104,2,104,3],[105,2,105,3],[106,2,106,3],[107,2,107,3],[108,2,108,3],[135,2,135,6],[136,2,136,6],[137,2,137,6],[138,2,138,6],[139,2,139,3],[141,2,141,3],[124,2,124,3],[128,2,128,6],[129,2,129,6],[130,2,130,3],[132,2,132,6],[133,2,133,6],[150,2,150,6],[151,2,151,6],[152,2,152,6],[153,2,153,3],[143,2,143,6],[144,2,144,3],[145,2,145,3],[147,2,147,6],[148,2,148,6],[149,2,149,6]]}
["Položkový rozpočet "]
[]
["Stavba :",null,"3341 Přepojení ČSOV Hančova bouda Benecko",null,"Rozpočet:",{"$f":"'02 334102 Rek'!H1","v":"3341/02"}]
["Objekt :",null,"02 Podružný kanalizační řád B-1",null,{"$f":"'02 334102 Rek'!G2","v":"Podružný kanalizační řád B-1"}]
[]
["P.č.","Číslo položky","Název položky","MJ","množství","cena / MJ","celkem (Kč)","Jednotková hmotnost","Celková hmotnost","Jednotková dem.hmot.","Celková dem.hmot."]
["Díl:","1","Zemní práce",null,null,null,null,null,null,null,null,null,null,null,1]
[1,"115101201R00","Čerpání vody na výšku do 10 m, přítok do 500 l/min ","h",25,null,{"$f":"E8*F8","v":0},0,{"$f":"E8*H8","v":0},0,{"$f":"E8*J8","v":0},null,null,null,2,null,null,null,null,null,null,null,null,null,null,null,1,1,1,null,null,null,null,null,null,null,null,null,null,null,null,null,null,null,null,null,null,null,null,null,null,1,{"$f":"IF(AZ8=1,G8,0)","v":0},{"$f":"IF(AZ8=2,G8,0)","v":0},{"$f":"IF(AZ8=3,G8,0)","v":0},{"$f":"IF(AZ8=4,G8,0)","v":0},{"$f":"IF(AZ8=5,G8,0)","v":0},null,null,null,null,null,null,null,null,null,null,null,null,null,null,null,null,null,null,null,null,null,1,1]
[2,"119001401R00","Dočasné zajištění ocelového potrubí do DN 200 mm ","m",1,null,{"$f":"E9*F9","v":0},8.6899999999999998E-3,{"$f":"E9*H9","v":8.6899999999999998E-3},0,{"$f":"E9*J9","v":0},null,null,null,2,null,null,null,null,null,null,null,null,null,null,null,1,1,1,null,null,null,null,null,null,null,null,null,null,null,null,null,null,null,null,null,null,null,null,null,null,1,{"$f":"IF(AZ9=1,G9,0)","v":0},{"$f":"IF(AZ9=2,G9,0)","v":0},{"$f":"IF(AZ9=3,G9,0)","v":0},{"$f":"IF(AZ9=4,G9,0)","v":0},{"$f":"IF(AZ9=5,G9,0)","v":0},null,null,null,null,null,null,null,null,null,null,null,null,null,null,null,null,null,null,null,null,null,1,1]
[3,"121100002RAA","Sejmutí ornice a uložení na deponii zpětný přesun, rozprostření v tl. 20 cm, osetí","m3",28.356000000000002,null,{"$f":"E10*F10","v":0},0,{"$f":"E10*H10","v":0},0,{"$f":"E10*J10","v":0},null,null,null,2,null,null,null,null,null,null,null,null,null,null,null,1,1,1,null,null,null,null,null,null,null,null,null,null,null,null,null,null,null,null,null,null,null,null,null,null,1,{"$f":"IF(AZ10=1,G10,0)","v":0},{"$f":"IF(AZ10=2,G10,0)","v":0},{"$f":"IF(AZ10=3,G10,0)","v":0},{"$f":"IF(AZ10=4,G10,0)","v":0},{"$f":"IF(AZ10=5,G10,0)","v":0},null,null,null,null,null,null,null,null,null,null,null,null,null,null,null,null,null,null,null,null,null,1,1]
[null,null,"Stoka B-1 PVC DN150:47,26*3,00*0,20",null,28.356000000000002,null,null,null,null,null,null,null,"Stoka B-1 PVC DN150:47,26*3,00*0,20"]
[4,"130001101RRX","Příplatek za ztížené hloubení v blízkosti vedení ","m3",6.2472000000000003,null,{"$f":"E12*F12","v":0},0,{"$f":"E12*H12","v":0},0,{"$f":"E12*J12","v":0},null,null,null,2,null,null,null,null,null,null,null,null,null,null,null,1,1,1,null,null,null,null,null,null,null,null,null,null,null,null,null,null,null,null,null,null,null,null,null,null,1,{"$f":"IF(AZ12=1,G12,0)","v":0},{"$f":"IF(AZ12=2,G12,0)","v":0},{"$f":"IF(AZ12=3,G12,0)","v":0},{"$f":"IF(AZ12=4,G12,0)","v":0},{"$f":"IF(AZ12=5,G12,0)","v":0},null,null,null,null,null,null,null,null,null,null,null,null,null,null,null,null,null,null,null,null,null,1,1]
[null,null,"Včetně případných nutných dokopávem a ručního výkopu podél sousedících inženýrských sítí",null,null,null,null,null,null,null,null,"Včetně případných nutných dokopávem a ručního výkopu podél sousedících inženýrských sítí",null,null,3]
[null,null,"Začátek provozního součtu",null,0,null,null,null,null,null,null,null,"Začátek provozního součtu"]
[null,null,"Stoka B-1 PVC DN150:5,62*1,00*(2,25+2,60)/2",null,13.628500000000001,null,null,null,null,null,null,null,"Stoka B-1 PVC DN150:5,62*1,00*(2,25+2,60)/2"]
[null,null,"(16,41-5,62)*1,00*(2,60+2,51)/2",null,27.5684,null,null,null,null,null,null,null,"(16,41-5,62)*1,00*(2,60+2,51)/2"]
[null,null,"(21,48-16,41)*1,00*(2,51+2,65)/2",null,13.0806,null,null,null,null,null,null,null,"(21,48-16,41)*1,00*(2,51+2,65)/2"]
[null,null,"(47,26-21,48)*1,00*(2,65+1,95)/2",null,59.293999999999997,null,null,null,null,null,null,null,"(47,26-21,48)*1,00*(2,65+1,95)/2"]
[null,null,"Odpočet objemu ornice:-47,26*1,00*0,20",null,-9.452,null,null,null,null,null,null,null,"Odpočet objemu ornice:-47,26*1,00*0,20"]
[null,null,"Konec provozního součtu",null,104.1195,null,null,null,null,null,null,null,"Konec provozního součtu"]
[null,null,"V hornině tř. 3 - 5 - 6%:104,1195*0,06",null,6.2472000000000003,null,null,null,null,null,null,null,"V hornině tř. 3 - 5 - 6%:104,1195*0,06"]
[5,"132201212R00","Hloubení rýh š.do 200 cm hor.3 do 1000m3,STROJNĚ ","m3",46.8538,null,{"$f":"E22*F22","v":0},0,{"$f":"E22*H22","v":0},0,{"$f":"E22*J22","v":0},null,null,null,2,null,null,null,null,null,null,null,null,null,null,null,1,1,1,null,null,null,null,null,null,null,null,null,null,null,null,null,null,null,null,null,null,null,null,null,null,1,{"$f":"IF(AZ22=1,G22,0)","v":0},{"$f":"IF(AZ22=2,G22,0)","v":0},{"$f":"IF(AZ22=3,G22,0)","v":0},{"$f":"IF(AZ22=4,G22,0)","v":0},{"$f":"IF(AZ22=5,G22,0)","v":0},null,null,null,null,null,null,null,null,null,null,null,null,null,null,null,null,null,null,null,null,null,1,1]
[null,null,"Položka obsahuje hloubení rýh traktorbagrem, naložení výkopku na dopravní prostředek pro svislé, nebo vodorovné přemístění, popř. přemístění výkopku do 3 m (po povrchu území), případné zajištění rypadel polštáři, udržování pracoviště a ochranu výkopiště proti stékání srážkové vody z okolního terénu i s jejím odvodněním, nebo odvedením, přesekání a odstranění kořenů ve výkopišti, odstranění napadávek, urovnání dna výkopu.",null,null,null,null,null,null,null,null,"Položka obsahuje hloubení rýh traktorbagrem, naložení výkopku na dopravní prostředek pro svislé, nebo vodorovné přemístění, popř. přemístění výkopku do 3 m (po povrchu území), případné zajištění rypadel polštáři, udržování pracoviště a ochranu výkopiště proti stékání srážkové vody z okolního terénu i s jejím odvodněním, nebo odvedením, přesekání a odstranění kořenů ve výkopišti, odstranění napadávek, urovnání dna výkopu.",null,null,3]
[null,null,"Začátek provozního součtu",null,0,null,null,null,null,null,null,null,"Začátek provozního součtu"]
[null,null,"Stoka B-1 PVC DN150:5,62*1,00*(2,25+2,60)/2",null,13.628500000000001,null,null,null,null,null,null,null,"Stoka B-1 PVC DN150:5,62*1,00*(2,25+2,60)/2"]
[null,null,"(16,41-5,62)*1,00*(2,60+2,51)/2",null,27.5684,null,null,null,null,null,null,null,"(16,41-5,62)*1,00*(2,60+2,51)/2"]
[null,null,"(21,48-16,41)*1,00*(2,51+2,65)/2",null,13.0806,null,null,null,null,null,null,null,"(21,48-16,41)*1,00*(2,51+2,65)/2"]
[null,null,"(47,26-21,48)*1,00*(2,65+1,95)/2",null,59.293999999999997,null,null,null,null,null,null,null,"(47,26-21,48)*1,00*(2,65+1,95)/2"]
[null,null,"Odpočet objemu ornice:-47,26*1,00*0,20",null,-9.452,null,null,null,null,null,null,null,"Odpočet objemu ornice:-47,26*1,00*0,20"]
[null,null,"Konec provozního součtu",null,104.1195,null,null,null,null,null,null,null,"Konec provozního součtu"]
[null,null,"V hornině tř. 3 - 45%:104,1195*0,45",null,46.8538,null,null,null,null,null,null,null,"V hornině tř. 3 - 45%:104,1195*0,45"]
[6,"132201219R00","Přípl.za lepivost,hloubení rýh 200cm,hor.3,STROJNĚ ","m3",23.4269,null,{"$f":"E32*F32","v":0},0,{"$f":"E32*H32","v":0},0,{"$f":"E32*J32","v":0},null,null,null,2,null,null,null,null,null,null,null,null,null,null,null,1,1,1,null,null,null,null,null,null,null,null,null,null,null,null,null,null,null,null,null,null,null,null,null,null,1,{"$f":"IF(AZ32=1,G32,0)","v":0},{"$f":"IF(AZ32=2,G32,0)","v":0},{"$f":"IF(AZ32=3,G32,0)","v":0},{"$f":"IF(AZ32=4,G32,0)","v":0},{"$f":"IF(AZ32=5,G32,0)","v":0},null,null,null,null,null,null,null,null,null,null,null,null,null,null,null,null,null,null,null,null,null,1,1]
[null,null,"Začátek provozního součtu",null,0,null,null,null,null,null,null,null,"Začátek provozního součtu"]
[null,null,"Stoka B-1 PVC DN150:5,62*1,00*(2,25+2,60)/2",null,13.628500000000001,null,null,null,null,null,null,null,"Stoka B-1 PVC DN150:5,62*1,00*(2,25+2,60)/2"]
[null,null,"(16,41-5,62)*1,00*(2,60+2,51)/2",null,27.5684,null,null,null,null,null,null,null,"(16,41-5,62)*1,00*(2,60+2,51)/2"]
[null,null,"(21,48-16,41)*1,00*(2,51+2,65)/2",null,13.0806,null,null,null,null,null,null,null,"(21,48-16,41)*1,00*(2,51+2,65)/2"]
[null,null,"(47,26-21,48)*1,00*(2,65+1,95)/2",null,59.293999999999997,null,null,null,null,null,null,null,"(47,26-21,48)*1,00*(2,65+1,95)/2"]
[null,null,"Odpočet objemu ornice:-47,26*1,00*0,20",null,-9.452,null,null,null,null,null,null,null,"Odpočet objemu ornice:-47,26*1,00*0,20"]
[null,null,"Konec provozního součtu",null,104.1195,null,null,null,null,null,null,null,"Konec provozního součtu"]
[null,null,"V hornině tř. 3 - 45%:104,1195*0,45*0,5",null,23.4269,null,null,null,null,null,null,null,"V hornině tř. 3 - 45%:104,1195*0,45*0,5"]
[7,"132301212R00","Hloubení rýh š.do 200 cm hor.4 do 1000 m3, STROJNĚ ","m3",46.8538,null,{"$f":"E41*F41","v":0},0,{"$f":"E41*H41","v":0},0,{"$f":"E41*J41","v":0},null,null,null,2,null,null,null,null,null,null,null,null,null,null,null,1,1,1,null,null,null,null,null,null,null,null,null,null,null,null,null,null,null,null,null,null,null,null,null,null,1,{"$f":"IF(AZ41=1,G41,0)","v":0},{"$f":"IF(AZ41=2,G41,0)","v":0},{"$f":"IF(AZ41=3,G41,0)","v":0},{"$f":"IF(AZ41=4,G41,0)","v":0},{"$f":"IF(AZ41=5,G41,0)","v":0},null,null,null,null,null,null,null,null,null,null,null,null,null,null,null,null,null,null,null,null,null,1,1]
[null,null,"Položka obsahuje hloubení rýh traktorbagrem, naložení výkopku na dopravní prostředek pro svislé, nebo vodorovné přemístění, popř. přemístění výkopku do 3 m (po povrchu území), případné zajištění rypadel polštáři, udržování pracoviště a ochranu výkopiště proti stékání srážkové vody z okolního terénu i s jejím odvodněním, nebo odvedením, přesekání a odstranění kořenů ve výkopišti, odstranění napadávek, urovnání dna výkopu.",null,null,null,null,null,null,null,null,"Položka obsahuje hloubení rýh traktorbagrem, naložení výkopku na dopravní prostředek pro svislé, nebo vodorovné přemístění, popř. přemístění výkopku do 3 m (po povrchu území), případné zajištění rypadel polštáři, udržování pracoviště a ochranu výkopiště proti stékání srážkové vody z okolního terénu i s jejím odvodněním, nebo odvedením, přesekání a odstranění kořenů ve výkopišti, odstranění napadávek, urovnání dna výkopu.",null,null,3]
[null,null,"Začátek provozního součtu",null,0,null,null,null,null,null,null,null,"Začátek provozního součtu"]
[null,null,"Stoka B-1 PVC DN150:5,62*1,00*(2,25+2,60)/2",null,13.628500000000001,null,null,null,null,null,null,null,"Stoka B-1 PVC DN150:5,62*1,00*(2,25+2,60)/2"]
[null,null,"(16,41-5,62)*1,00*(2,60+2,51)/2",null,27.5684,null,null,null,null,null,null,null,"(16,41-5,62)*1,00*(2,60+2,51)/2"]
[null,null,"(21,48-16,41)*1,00*(2,51+2,65)/2",null,13.0806,null,null,null,null,null,null,null,"(21,48-16,41)*1,00*(2,51+2,65)/2"]
[null,null,"(47,26-21,48)*1,00*(2,65+1,95)/2",null,59.293999999999997,null,null,null,null,null,null,null,"(47,26-21,48)*1,00*(2,65+1,95)/2"]
[null,null,"Odpočet objemu ornice:-47,26*1,00*0,20",null,-9.452,null,null,null,null,null,null,null,"Odpočet objemu ornice:-47,26*1,00*0,20"]
[null,null,"Konec provozního součtu",null,104.1195,null,null,null,null,null,null,null,"Konec provozního součtu"]
[null,null,"V hornině tř. 4 - 45%:104,1195*0,45",null,46.8538,null,null,null,null,null,null,null,"V hornině tř. 4 - 45%:104,1195*0,45"]
[8,"132301219R00","Přípl.za lepivost,hloubení rýh 200cm,hor.4,STROJNĚ ","m3",23.4269,null,{"$f":"E51*F51","v":0},0,{"$f":"E51*H51","v":0},0,{"$f":"E51*J51","v":0},null,null,null,2,null,null,null,null,null,null,null,null,null,null,null,1,1,1,null,null,null,null,null,null,null,null,null,null,null,null,null,null,null,null,null,null,null,null,null,null,1,{"$f":"IF(AZ51=1,G51,0)","v":0},{"$f":"IF(AZ51=2,G51,0)","v":0},{"$f":"IF(AZ51=3,G51,0)","v":0},{"$f":"IF(AZ51=4,G51,0)","v":0},{"$f":"IF(AZ51=5,G51,0)","v":0},null,null,null,null,null,null,null,null,null,null,null,null,null,null,null,null,null,null,null,null,null,1,1]
[null,null,"Začátek provozního součtu",null,0,null,null,null,null,null,null,null,"Začátek provozního součtu"]
[null,null,"Stoka B-1 PVC DN150:5,62*1,00*(2,25+2,60)/2",null,13.628500000000001,null,null,null,null,null,null,null,"Stoka B-1 PVC DN150:5,62*1,00*(2,25+2,60)/2"]
[null,null,"(16,41-5,62)*1,00*(2,60+2,51)/2",null,27.5684,null,null,null,null,null,null,null,"(16,41-5,62)*1,00*(2,60+2,51)/2"]
[null,null,"(21,48-16,41)*1,00*(2,51+2,65)/2",null,13.0806,null,null,null,null,null,null,null,"(21,48-16,41)*1,00*(2,51+2,65)/2"]
[null,null,"(47,26-21,48)*1,00*(2,65+1,95)/2",null,59.293999999999997,null,null,null,null,null,null,null,"(47,26-21,48)*1,00*(2,65+1,95)/2"]
[null,null,"Odpočet objemu ornice:-47,26*1,00*0,20",null,-9.452,null,null,null,null,null,null,null,"Odpočet objemu ornice:-47,26*1,00*0,20"]
[null,null,"Konec provozního součtu",null,104.1195,null,null,null,null,null,null,null,"Konec provozního součtu"]
[null,null,"V hornině tř. 4 - 45%:104,1195*0,45*0,5",null,23.4269,null,null,null,null,null,null,null,"V hornině tř. 4 - 45%:104,1195*0,45*0,5"]
[9,"132401211R00","Hloubení rýh šířky do 200 cm v hor.5, STROJNĚ ","m3",10.412000000000001,null,{"$f":"E60*F60","v":0},0,{"$f":"E60*H60","v":0},0,{"$f":"E60*J60","v":0},null,null,null,2,null,null,null,null,null,null,null,null,null,null,null,1,1,1,null,null,null,null,null,null,null,null,null,null,null,null,null,null,null,null,null,null,null,null,null,null,1,{"$f":"IF(AZ60=1,G60,0)","v":0},{"$f":"IF(AZ60=2,G60,0)","v":0},{"$f":"IF(AZ60=3,G60,0)","v":0},{"$f":"IF(AZ60=4,G60,0)","v":0},{"$f":"IF(AZ60=5,G60,0)","v":0},null,null,null,null,null,null,null,null,null,null,null,null,null,null,null,null,null,null,null,null,null,1,1]
[null,null,"Položka obsahuje hloubení jámy kolovým rypadlem s rozrývacím zubem, naložení výkopku na dopravní prostředek pro svislé, nebo vodorovné přemístění, popř. přemístění výkopku do 3 m (po povrchu území), případné zajištění rypadel polštáři, udržování pracoviště a ochranu výkopiště proti stékání srážkové vody z okolního terénu i s jejím odvodněním, nebo odvedením, přesekání a odstranění kořenů ve výkopišti, odstranění napadávek, urovnání dna výkopu. Položka se používá bez ohledu na těžené množství.",null,null,null,null,null,null,null,null,"Položka obsahuje hloubení jámy kolovým rypadlem s rozrývacím zubem, naložení výkopku na dopravní prostředek pro svislé, nebo vodorovné přemístění, popř. přemístění výkopku do 3 m (po povrchu území), případné zajištění rypadel polštáři, udržování pracoviště a ochranu výkopiště proti stékání srážkové vody z okolního terénu i s jejím odvodněním, nebo odvedením, přesekání a odstranění kořenů ve výkopišti, odstranění napadávek, urovnání dna výkopu. Položka se používá bez ohledu na těžené množství.",null,null,3]
[null,null,"Začátek provozního součtu",null,0,null,null,null,null,null,null,null,"Začátek provozního součtu"]
[null,null,"Stoka B-1 PVC DN150:5,62*1,00*(2,25+2,60)/2",null,13.628500000000001,null,null,null,null,null,null,null,"Stoka B-1 PVC DN150:5,62*1,00*(2,25+2,60)/2"]
[null,null,"(16,41-5,62)*1,00*(2,60+2,51)/2",null,27.5684,null,null,null,null,null,null,null,"(16,41-5,62)*1,00*(2,60+2,51)/2"]
[null,null,"(21,48-16,41)*1,00*(2,51+2,65)/2",null,13.0806,null,null,null,null,null,null,null,"(21,48-16,41)*1,00*(2,51+2,65)/2"]
[null,null,"(47,26-21,48)*1,00*(2,65+1,95)/2",null,59.293999999999997,null,null,null,null,null,null,null,"(47,26-21,48)*1,00*(2,65+1,95)/2"]
[null,null,"Odpočet objemu ornice:-47,26*1,00*0,20",null,-9.452,null,null,null,null,null,null,null,"Odpočet objemu ornice:-47,26*1,00*0,20"]
[null,null,"Konec provozního součtu",null,104.1195,null,null,null,null,null,null,null,"Konec provozního součtu"]
[null,null,"V hornině tř. 5 - 10%:104,1195*0,1",null,10.412000000000001,null,null,null,null,null,null,null,"V hornině tř. 5 - 10%:104,1195*0,1"]
[10,"151101102R00","Pažení a rozepření stěn rýh - příložné - hl.do 4 m ","m2",227.1431,null,{"$f":"E70*F70","v":0},8.5999999999999998E-4,{"$f":"E70*H70","v":0.19534306600000001},0,{"$f":"E70*J70","v":0},null,null,null,2,null,null,null,null,null,null,null,null,null,null,null,1,1,1,null,null,null,null,null,null,null,null,null,null,null,null,null,null,null,null,null,null,null,null,null,null,1,{"$f":"IF(AZ70=1,G70,0)","v":0},{"$f":"IF(AZ70=2,G70,0)","v":0},{"$f":"IF(AZ70=3,G70,0)","v":0},{"$f":"IF(AZ70=4,G70,0)","v":0},{"$f":"IF(AZ70=5,G70,0)","v":0},null,null,null,null,null,null,null,null,null,null,null,null,null,null,null,null,null,null,null,null,null,1,1]
[null,null,"Stoka B-1 PVC DN150:5,62*(2,25+2,60)/2*2",null,27.257000000000001,null,null,null,null,null,null,null,"Stoka B-1 PVC DN150:5,62*(2,25+2,60)/2*2"]
[null,null,"(16,41-5,62)*(2,60+2,51)/2*2",null,55.136899999999997,null,null,null,null,null,null,null,"(16,41-5,62)*(2,60+2,51)/2*2"]
[null,null,"(21,48-16,41)*(2,51+2,65)/2*2",null,26.161200000000001,null,null,null,null,null,null,null,"(21,48-16,41)*(2,51+2,65)/2*2"]
[null,null,"(47,26-21,48)*(2,65+1,95)/2*2",null,118.58799999999999,null,null,null,null,null,null,null,"(47,26-21,48)*(2,65+1,95)/2*2"]
[11,"151101112R00","Odstranění pažení stěn rýh - příložné - hl. do 4 m ","m2",227.1431,null,{"$f":"E75*F75","v":0},0,{"$f":"E75*H75","v":0},0,{"$f":"E75*J75","v":0},null,null,null,2,null,null,null,null,null,null,null,null,null,null,null,1,1,1,null,null,null,null,null,null,null,null,null,null,null,null,null,null,null,null,null,null,null,null,null,null,1,{"$f":"IF(AZ75=1,G75,0)","v":0},{"$f":"IF(AZ75=2,G75,0)","v":0},{"$f":"IF(AZ75=3,G75,0)","v":0},{"$f":"IF(AZ75=4,G75,0)","v":0},{"$f":"IF(AZ75=5,G75,0)","v":0},null,null,null,null,null,null,null,null,null,null,null,null,null,null,null,null,null,null,null,null,null,1,1]
[null,null,"Stoka B-1 PVC DN150:5,62*(2,25+2,60)/2*2",null,27.257000000000001,null,null,null,null,null,null,null,"Stoka B-1 PVC DN150:5,62*(2,25+2,60)/2*2"]
[null,null,"(16,41-5,62)*(2,60+2,51)/2*2",null,55.136899999999997,null,null,null,null,null,null,null,"(16,41-5,62)*(2,60+2,51)/2*2"]
[null,null,"(21,48-16,41)*(2,51+2,65)/2*2",null,26.161200000000001,null,null,null,null,null,null,null,"(21,48-16,41)*(2,51+2,65)/2*2"]
[null,null,"(47,26-21,48)*(2,65+1,95)/2*2",null,118.58799999999999,null,null,null,null,null,null,null,"(47,26-21,48)*(2,65+1,95)/2*2"]
[12,"162701105RSZ","Vodorovné přemístění výkopku z hor.1-7 na skládku zhotovitele","m3",26.685400000000001,null,{"$f":"E80*F80","v":0},0,{"$f":"E80*H80","v":0},0,{"$f":"E80*J80","v":0},null,null,null,2,null,null,null,null,null,null,null,null,null,null,null,1,1,1,null,null,null,null,null,null,null,null,null,null,null,null,null,null,null,null,null,null,null,null,null,null,1,{"$f":"IF(AZ80=1,G80,0)","v":0},{"$f":"IF(AZ80=2,G80,0)","v":0},{"$f":"IF(AZ80=3,G80,0)","v":0},{"$f":"IF(AZ80=4,G80,0)","v":0},{"$f":"IF(AZ80=5,G80,0)","v":0},null,null,null,null,null,null,null,null,null,null,null,null,null,null,null,null,null,null,null,null,null,1,1]
[null,null,"Výkopy:",null,0,null,null,null,null,null,null,null,"Výkopy:"]
[null,null,"Začátek provozního součtu",null,0,null,null,null,null,null,null,null,"Začátek provozního součtu"]
[null,null,"Stoka B-1 PVC DN150:5,62*1,00*(2,25+2,60)/2",null,13.628500000000001,null,null,null,null,null,null,null,"Stoka B-1 PVC DN150:5,62*1,00*(2,25+2,60)/2"]
[null,null,"(16,41-5,62)*1,00*(2,60+2,51)/2",null,27.5684,null,null,null,null,null,null,null,"(16,41-5,62)*1,00*(2,60+2,51)/2"]
[null,null,"(21,48-16,41)*1,00*(2,51+2,65)/2",null,13.0806,null,null,null,null,null,null,null,"(21,48-16,41)*1,00*(2,51+2,65)/2"]
[null,null,"(47,26-21,48)*1,00*(2,65+1,95)/2",null,59.293999999999997,null,null,null,null,null,null,null,"(47,26-21,48)*1,00*(2,65+1,95)/2"]
[null,null,"Odpočet objemu ornice:-47,26*1,00*0,20",null,-9.452,null,null,null,null,null,null,null,"Odpočet objemu ornice:-47,26*1,00*0,20"]
[null,null,"Konec provozního součtu",null,104.1195,null,null,null,null,null,null,null,"Konec provozního součtu"]
[null,null,"V hornině tř. 3 - 5 :104,1195",null,104.1195,null,null,null,null,null,null,null,"V hornině tř. 3 - 5 :104,1195"]
[null,null,"Odpočet zásypů zeminou:-77,4341",null,-77.434100000000001,null,null,null,null,null,null,null,"Odpočet zásypů zeminou:-77,4341"]
[13,"174101101R00","Zásyp jam, rýh, šachet se zhutněním ","m3",77.434100000000001,null,{"$f":"E91*F91","v":0},0,{"$f":"E91*H91","v":0},0,{"$f":"E91*J91","v":0},null,null,null,2,null,null,null,null,null,null,null,null,null,null,null,1,1,1,null,null,null,null,null,null,null,null,null,null,null,null,null,null,null,null,null,null,null,null,null,null,1,{"$f":"IF(AZ91=1,G91,0)","v":0},{"$f":"IF(AZ91=2,G91,0)","v":0},{"$f":"IF(AZ91=3,G91,0)","v":0},{"$f":"IF(AZ91=4,G91,0)","v":0},{"$f":"IF(AZ91=5,G91,0)","v":0},null,null,null,null,null,null,null,null,null,null,null,null,null,null,null,null,null,null,null,null,null,1,1]
[null,null,"Položka obsahuje strojní přemístění materiálu pro zásyp ze vzdálenosti do 10 m od okraje zásypu.",null,null,null,null,null,null,null,null,"Položka obsahuje strojní přemístění materiálu pro zásyp ze vzdálenosti do 10 m od okraje zásypu.",null,null,3]
[null,null,"Zásypy zeminou:",null,0,null,null,null,null,null,null,null,"Zásypy zeminou:"]
[null,null,"Výkopy:",null,0,null,null,null,null,null,null,null,"Výkopy:"]
[null,null,"V hornině tř. 3 - 5 :104,1195",null,104.1195,null,null,null,null,null,null,null,"V hornině tř. 3 - 5 :104,1195"]
[null,null,"Odpoče lože, potrubí a obsypů:-47,26*1,00*(0,10+0,15+0,30)",null,-25.992999999999999,null,null,null,null,null,null,null,"Odpoče lože, potrubí a obsypů:-47,26*1,00*(0,10+0,15+0,30)"]
[null,null,"Odpočet objemu RŠ:-0,6924",null,-0.69240000000000002,null,null,null,null,null,null,null,"Odpočet objemu RŠ:-0,6924"]
[14,"175101101R00","Obsyp potrubí bez prohození sypaniny ","m3",20.431799999999999,null,{"$f":"E98*F98","v":0},0,{"$f":"E98*H98","v":0},0,{"$f":"E98*J98","v":0},null,null,null,2,null,null,null,null,null,null,null,null,null,null,null,1,1,1,null,null,null,null,null,null,null,null,null,null,null,null,null,null,null,null,null,null,null,null,null,null,1,{"$f":"IF(AZ98=1,G98,0)","v":0},{"$f":"IF(AZ98=2,G98,0)","v":0},{"$f":"IF(AZ98=3,G98,0)","v":0},{"$f":"IF(AZ98=4,G98,0)","v":0},{"$f":"IF(AZ98=5,G98,0)","v":0},null,null,null,null,null,null,null,null,null,null,null,null,null,null,null,null,null,null,null,null,null,1,1]
[null,null,"Stoka B-1 PVC DN150:47,26*(1,00*(0,15+0,30)-0,075^2*Pi)",null,20.431799999999999,null,null,null,null,null,null,null,"Stoka B-1 PVC DN150:47,26*(1,00*(0,15+0,30)-0,075^2*Pi)"]
[15,"199000002R00","Poplatek za skládku horniny 1- 7 č. dle katal. odpadů 17 05 04","m3",26.685400000000001,null,{"$f":"E100*F100","v":0},0,{"$f":"E100*H100","v":0},0,{"$f":"E100*J100","v":0},null,null,null,2,null,null,null,null,null,null,null,null,null,null,null,1,1,1,null,null,null,null,null,null,null,null,null,null,null,null,null,null,null,null,null,null,null,null,null,null,1,{"$f":"IF(AZ100=1,G100,0)","v":0},{"$f":"IF(AZ100=2,G100,0)","v":0},{"$f":"IF(AZ100=3,G100,0)","v":0},{"$f":"IF(AZ100=4,G100,0)","v":0},{"$f":"IF(AZ100=5,G100,0)","v":0},null,null,null,null,null,null,null,null,null,null,null,null,null,null,null,null,null,null,null,null,null,1,1]
[null,null,"Výkopy:",null,0,null,null,null,null,null,null,null,"Výkopy:"]
[null,null,"Začátek provozního součtu",null,0,null,null,null,null,null,null,null,"Začátek provozního součtu"]
[null,null,"Stoka B-1 PVC DN150:5,62*1,00*(2,25+2,60)/2",null,13.628500000000001,null,null,null,null,null,null,null,"Stoka B-1 PVC DN150:5,62*1,00*(2,25+2,60)/2"]
[null,null,"(16,41-5,62)*1,00*(2,60+2,51)/2",null,27.5684,null,null,null,null,null,null,null,"(16,41-5,62)*1,00*(2,60+2,51)/2"]
[null,null,"(21,48-16,41)*1,00*(2,51+2,65)/2",null,13.0806,null,null,null,null,null,null,null,"(21,48-16,41)*1,00*(2,51+2,65)/2"]
[null,null,"(47,26-21,48)*1,00*(2,65+1,95)/2",null,59.293999999999997,null,null,null,null,null,null,null,"(47,26-21,48)*1,00*(2,65+1,95)/2"]
[null,null,"Odpočet objemu ornice:-47,26*1,00*0,20",null,-9.452,null,null,null,null,null,null,null,"Odpočet objemu ornice:-47,26*1,00*0,20"]
[null,null,"Konec provozního součtu",null,104.1195,null,null,null,null,null,null,null,"Konec provozního součtu"]
[null,null,"V hornině tř. 3 - 5 :104,1195",null,104.1195,null,null,null,null,null,null,null,"V hornině tř. 3 - 5 :104,1195"]
[null,null,"Odpočet zásypů zeminou:-77,4341",null,-77.434100000000001,null,null,null,null,null,null,null,"Odpočet zásypů zeminou:-77,4341"]
[16,"58337330.R","Štěrkopísek frakce 0-22 A","t",40.715200000000003,null,{"$f":"E111*F111","v":0},1,{"$f":"E111*H111","v":40.715200000000003},null,{"$f":"E111*J111","v":0},null,null,null,2,null,null,null,null,null,null,null,null,null,null,null,3,1,"58337330.R",null,null,null,null,null,null,null,null,null,null,null,null,null,null,null,null,null,null,null,null,null,null,1,{"$f":"IF(AZ111=1,G111,0)","v":0},{"$f":"IF(AZ111=2,G111,0)","v":0},{"$f":"IF(AZ111=3,G111,0)","v":0},{"$f":"IF(AZ111=4,G111,0)","v":0},{"$f":"IF(AZ111=5,G111,0)","v":0},null,null,null,null,null,null,null,null,null,null,null,null,null,null,null,null,null,null,null,null,null,3,1]
[null,null,"Stoka B-1 PVC DN150:47,26*(1,00*(0,15+0,30)-0,075^2*Pi)*1,973*1,01",null,40.715200000000003,null,null,null,null,null,null,null,"Stoka B-1 PVC DN150:47,26*(1,00*(0,15+0,30)-0,075^2*Pi)*1,973*1,01"]
[null,"Celkem za","1 Zemní práce",null,null,null,{"$f":"SUM(G7:G112)","v":0},null,{"$f":"SUM(I7:I112)","v":40.919233066000004},null,{"$f":"SUM(K7:K112)","v":0},null,null,null,4,null,null,null,null,null,null,null,null,null,null,null,null,null,null,null,null,null,null,null,null,null,null,null,null,null,null,null,null,null,null,null,null,null,null,null,null,null,{"$f":"SUM(BA7:BA112)","v":0},{"$f":"SUM(BB7:BB112)","v":0},{"$f":"SUM(BC7:BC112)","v":0},{"$f":"SUM(BD7:BD112)","v":0},{"$f":"SUM(BE7:BE112)","v":0}]
["Díl:","2","Základy a zvláštní zakládání",null,null,null,null,null,null,null,null,null,null,null,1]
[17,"212810010RAC","Trativody z PVC drenážních flexibilních trubek lože štěrkopísek a obsyp kamenivo, trubky d 100 mm","m",47.26,null,{"$f":"E115*F115","v":0},0.43651000000000001,{"$f":"E115*H115","v":20.6294626},0,{"$f":"E115*J115","v":0},null,null,null,2,null,null,null,null,null,null,null,null,null,null,null,1,1,1,null,null,null,null,null,null,null,null,null,null,null,null,null,null,null,null,null,null,null,null,null,null,1,{"$f":"IF(AZ115=1,G115,0)","v":0},{"$f":"IF(AZ115=2,G115,0)","v":0},{"$f":"IF(AZ115=3,G115,0)","v":0},{"$f":"IF(AZ115=4,G115,0)","v":0},{"$f":"IF(AZ115=5,G115,0)","v":0},null,null,null,null,null,null,null,null,null,null,null,null,null,null,null,null,null,null,null,null,null,1,1]
[null,null,"Součástí položky je i výkop pro drenáž včetně odvozu zeminy na skládku a poplatku za skládku zeminy.",null,null,null,null,null,null,null,null,"Součástí položky je i výkop pro drenáž včetně odvozu zeminy na skládku a poplatku za skládku zeminy.",null,null,3]
[null,null,"Stoka B-1 PVC DN150:47,26",null,47.26,null,null,null,null,null,null,null,"Stoka B-1 PVC DN150:47,26"]
[18,"212971110R00","Opláštění trativodů z geotext., do sklonu 1:2,5 ","m2",47.26,null,{"$f":"E118*F118","v":0},1.8000000000000001E-4,{"$f":"E118*H118","v":8.5068000000000001E-3},0,{"$f":"E118*J118","v":0},null,null,null,2,null,null,null,null,null,null,null,null,null,null,null,1,1,1,null,null,null,null,null,null,null,null,null,null,null,null,null,null,null,null,null,null,null,null,null,null,1,{"$f":"IF(AZ118=1,G118,0)","v":0},{"$f":"IF(AZ118=2,G118,0)","v":0},{"$f":"IF(AZ118=3,G118,0)","v":0},{"$f":"IF(AZ118=4,G118,0)","v":0},{"$f":"IF(AZ118=5,G118,0)","v":0},null,null,null,null,null,null,null,null,null,null,null,null,null,null,null,null,null,null,null,null,null,1,1]
[null,null,"Stoka B-1 PVC DN150:47,26*1,00",null,47.26,null,null,null,null,null,null,null,"Stoka B-1 PVC DN150:47,26*1,00"]
[19,"67390503.R","Geotextilie netkaná 300 g/m2","m2",56.712000000000003,null,{"$f":"E120*F120","v":0},2.9999999999999997E-4,{"$f":"E120*H120","v":1.70136E-2},null,{"$f":"E120*J120","v":0},null,null,null,2,null,null,null,null,null,null,null,null,null,null,null,3,1,"67390503.R",null,null,null,null,null,null,null,null,null,null,null,null,null,null,null,null,null,null,null,null,null,null,1,{"$f":"IF(AZ120=1,G120,0)","v":0},{"$f":"IF(AZ120=2,G120,0)","v":0},{"$f":"IF(AZ120=3,G120,0)","v":0},{"$f":"IF(AZ120=4,G120,0)","v":0},{"$f":"IF(AZ120=5,G120,0)","v":0},null,null,null,null,null,null,null,null,null,null,null,null,null,null,null,null,null,null,null,null,null,3,1]
[null,null,"Stoka B-1 PVC DN150:47,26*1,00*1,2",null,56.712000000000003,null,null,null,null,null,null,null,"Stoka B-1 PVC DN150:47,26*1,00*1,2"]
[null,"Celkem za","2 Základy a zvláštní zakládání",null,null,null,{"$f":"SUM(G114:G121)","v":0},null,{"$f":"SUM(I114:I121)","v":20.654982999999998},null,{"$f":"SUM(K114:K121)","v":0},null,null,null,4,null,null,null,null,null,null,null,null,null,null,null,null,null,null,null,null,null,null,null,null,null,null,null,null,null,null,null,null,null,null,null,null,null,null,null,null,null,{"$f":"SUM(BA114:BA121)","v":0},{"$f":"SUM(BB114:BB121)","v":0},{"$f":"SUM(BC114:BC121)","v":0},{"$f":"SUM(BD114:BD121)","v":0},{"$f":"SUM(BE114:BE121)","v":0}]
["Díl:","45","Podkladní a vedlejší konstrukce",null,null,null,null,null,null,null,null,null,null,null,1]
[20,"451572111R00","Lože pod potrubí z kameniva těženého 0 - 4 mm ","m3",4.726,null,{"$f":"E124*F124","v":0},0.43051,{"$f":"E124*H124","v":2.0345902599999999},0,{"$f":"E124*J124","v":0},null,null,null,2,null,null,null,null,null,null,null,null,null,null,null,1,1,1,null,null,null,null,null,null,null,null,null,null,null,null,null,null,null,null,null,null,null,null,null,null,1,{"$f":"IF(AZ124=1,G124,0)","v":0},{"$f":"IF(AZ124=2,G124,0)","v":0},{"$f":"IF(AZ124=3,G124,0)","v":0},{"$f":"IF(AZ124=4,G124,0)","v":0},{"$f":"IF(AZ124=5,G124,0)","v":0},null,null,null,null,null,null,null,null,null,null,null,null,null,null,null,null,null,null,null,null,null,1,1]
[null,null,"Stoka B-1 PVC DN150:47,26*1,00*0,10",null,4.726,null,null,null,null,null,null,null,"Stoka B-1 PVC DN150:47,26*1,00*0,10"]
[null,"Celkem za","45 Podkladní a vedlejší konstrukce",null,null,null,{"$f":"SUM(G123:G125)","v":0},null,{"$f":"SUM(I123:I125)","v":2.0345902599999999},null,{"$f":"SUM(K123:K125)","v":0},null,null,null,4,null,null,null,null,null,null,null,null,null,null,null,null,null,null,null,null,null,null,null,null,null,null,null,null,null,null,null,null,null,null,null,null,null,null,null,null,null,{"$f":"SUM(BA123:BA125)","v":0},{"$f":"SUM(BB123:BB125)","v":0},{"$f":"SUM(BC123:BC125)","v":0},{"$f":"SUM(BD123:BD125)","v":0},{"$f":"SUM(BE123:BE125)","v":0}]
["Díl:","8","Trubní vedení",null,null,null,null,null,null,null,null,null,null,null,1]
[21,"871313121R00","Montáž trub z plastu, gumový kroužek, DN 150 ","m",47.26,null,{"$f":"E128*F128","v":0},0,{"$f":"E128*H128","v":0},0,{"$f":"E128*J128","v":0},null,null,null,2,null,null,null,null,null,null,null,null,null,null,null,1,1,1,null,null,null,null,null,null,null,null,null,null,null,null,null,null,null,null,null,null,null,null,null,null,1,{"$f":"IF(AZ128=1,G128,0)","v":0},{"$f":"IF(AZ128=2,G128,0)","v":0},{"$f":"IF(AZ128=3,G128,0)","v":0},{"$f":"IF(AZ128=4,G128,0)","v":0},{"$f":"IF(AZ128=5,G128,0)","v":0},null,null,null,null,null,null,null,null,null,null,null,null,null,null,null,null,null,null,null,null,null,1,1]
[null,null,"V položce je uvažováno s jedním spojem na 6 m potrubí. Položka je určena pro montáž potrubí z kanalizačních trub z plastu těsněných gumovým kroužkem v otevřeném výkopu ve sklonu do 20 %.",null,null,null,null,null,null,null,null,"V položce je uvažováno s jedním spojem na 6 m potrubí. Položka je určena pro montáž potrubí z kanalizačních trub z plastu těsněných gumovým kroužkem v otevřeném výkopu ve sklonu do 20 %.",null,null,3]
[null,null,"V položce montáže potrubí nejsou zakalkulovány náklady na dodání trub; tyto náklady se oceňují ve specifikaci.",null,null,null,null,null,null,null,null,"V položce montáže potrubí nejsou zakalkulovány náklady na dodání trub; tyto náklady se oceňují ve specifikaci.",null,null,3]
[null,null,"Stoka B-1 PVC DN150:47,26",null,47.26,null,null,null,null,null,null,null,"Stoka B-1 PVC DN150:47,26"]
[22,"877375175RRR","Propojení nového potrubí na stávající RŠ vč. dodávky propojovacích tvarovek","kus",1,null,{"$f":"E132*F132","v":0},1.435E-2,{"$f":"E132*H132","v":1.435E-2},0,{"$f":"E132*J132","v":0},null,null,null,2,null,null,null,null,null,null,null,null,null,null,null,1,1,1,null,null,null,null,null,null,null,null,null,null,null,null,null,null,null,null,null,null,null,null,null,null,1,{"$f":"IF(AZ132=1,G132,0)","v":0},{"$f":"IF(AZ132=2,G132,0)","v":0},{"$f":"IF(AZ132=3,G132,0)","v":0},{"$f":"IF(AZ132=4,G132,0)","v":0},{"$f":"IF(AZ132=5,G132,0)","v":0},null,null,null,null,null,null,null,null,null,null,null,null,null,null,null,null,null,null,null,null,null,1,1]
[null,null,"Položka je určena pro napojení nového potrubí DN150 na stávající RŠ.",null,null,null,null,null,null,null,null,"Položka je určena pro napojení nového potrubí DN150 na stávající RŠ.",null,null,3]
[null,null,"V položce jsou zakalkulovány i náklady na dodání propojovacích tvarovek a případné vyvrtání otvorů do betonových skruží nebo dna stávající RŠ.",null,null,null,null,null,null,null,null,"V položce jsou zakalkulovány i náklady na dodání propojovacích tvarovek a případné vyvrtání otvorů do betonových skruží nebo dna stávající RŠ.",null,null,3]
[23,"892601122R00","Čištění kanalizační stoky do DN 200, do 50 m ","m",47.26,null,{"$f":"E135*F135","v":0},0,{"$f":"E135*H135","v":0},0,{"$f":"E135*J135","v":0},null,null,null,2,null,null,null,null,null,null,null,null,null,null,null,1,1,1,null,null,null,null,null,null,null,null,null,null,null,null,null,null,null,null,null,null,null,null,null,null,1,{"$f":"IF(AZ135=1,G135,0)","v":0},{"$f":"IF(AZ135=2,G135,0)","v":0},{"$f":"IF(AZ135=3,G135,0)","v":0},{"$f":"IF(AZ135=4,G135,0)","v":0},{"$f":"IF(AZ135=5,G135,0)","v":0},null,null,null,null,null,null,null,null,null,null,null,null,null,null,null,null,null,null,null,null,null,1,1]
[null,null,"V položce je zakalkulováno:",null,null,null,null,null,null,null,null,"V položce je zakalkulováno:",null,null,3]
[null,null,"a) otevření a uzavření revizních šachet a čisticích kusů",null,null,null,null,null,null,null,null,"a) otevření a uzavření revizních šachet a čisticích kusů",null,null,3]
[null,null,"b) natažení vysokotlakých hadic k místu odkud se bude kanalizace čistit",null,null,null,null,null,null,null,null,"b) natažení vysokotlakých hadic k místu odkud se bude kanalizace čistit",null,null,3]
[null,null,"c) vyčištění potrubí tlakovou vodou nebo motorovým pérem.",null,null,null,null,null,null,null,null,"c) vyčištění potrubí tlakovou vodou nebo motorovým pérem.",null,null,3]
[null,null,"Stoka B-1 PVC DN150:47,26",null,47.26,null,null,null,null,null,null,null,"Stoka B-1 PVC DN150:47,26"]
[24,"892855112R00","Kontrola kanalizace TV kamerou do 50 m ","m",47.26,null,{"$f":"E141*F141","v":0},0,{"$f":"E141*H141","v":0},0,{"$f":"E141*J141","v":0},null,null,null,2,null,null,null,null,null,null,null,null,null,null,null,1,1,1,null,null,null,null,null,null,null,null,null,null,null,null,null,null,null,null,null,null,null,null,null,null,1,{"$f":"IF(AZ141=1,G141,0)","v":0},{"$f":"IF(AZ141=2,G141,0)","v":0},{"$f":"IF(AZ141=3,G141,0)","v":0},{"$f":"IF(AZ141=4,G141,0)","v":0},{"$f":"IF(AZ141=5,G141,0)","v":0},null,null,null,null,null,null,null,null,null,null,null,null,null,null,null,null,null,null,null,null,null,1,1]
[null,null,"Stoka B-1 PVC DN150:47,26",null,47.26,null,null,null,null,null,null,null,"Stoka B-1 PVC DN150:47,26"]
[25,"894431441RAA","Šachta D 600 mm, dl.šach.roury 3,00 m, přímá dno KG D 160 mm, poklop litina 12,5 t","kus",1,null,{"$f":"E143*F143","v":0},0.16732,{"$f":"E143*H143","v":0.16732},0,{"$f":"E143*J143","v":0},null,null,null,2,null,null,null,null,null,null,null,null,null,null,null,1,1,1,null,null,null,null,null,null,null,null,null,null,null,null,null,null,null,null,null,null,null,null,null,null,1,{"$f":"IF(AZ143=1,G143,0)","v":0},{"$f":"IF(AZ143=2,G143,0)","v":0},{"$f":"IF(AZ143=3,G143,0)","v":0},{"$f":"IF(AZ143=4,G143,0)","v":0},{"$f":"IF(AZ143=5,G143,0)","v":0},null,null,null,null,null,null,null,null,null,null,null,null,null,null,null,null,null,null,null,null,null,1,1]
[null,null,"Plastové dno, šachta z korugované trouby, těsnění, teleskopický adaptér, rám do teleskopu, poklop litinový.",null,null,null,null,null,null,null,null,"Plastové dno, šachta z korugované trouby, těsnění, teleskopický adaptér, rám do teleskopu, poklop litinový.",null,null,3]
[null,null,"Stoka B-1 PVC DN150:",null,0,null,null,null,null,null,null,null,"Stoka B-1 PVC DN150:"]
[null,null,"RŠ DN400:1",null,1,null,null,null,null,null,null,null,"RŠ DN400:1"]
[26,"286111904.R","Trubka kanalizační PVC QUANTUM SN 12 DN 150","m",48.677799999999998,null,{"$f":"E147*F147","v":0},5.1000000000000004E-3,{"$f":"E147*H147","v":0.24825678000000001},null,{"$f":"E147*J147","v":0},null,null,null,2,null,null,null,null,null,null,null,null,null,null,null,3,1,"286111904.R",null,null,null,null,null,null,null,null,null,null,null,null,null,null,null,null,null,null,null,null,null,null,1,{"$f":"IF(AZ147=1,G147,0)","v":0},{"$f":"IF(AZ147=2,G147,0)","v":0},{"$f":"IF(AZ147=3,G147,0)","v":0},{"$f":"IF(AZ147=4,G147,0)","v":0},{"$f":"IF(AZ147=5,G147,0)","v":0},null,null,null,null,null,null,null,null,null,null,null,null,null,null,null,null,null,null,null,null,null,3,1]
[null,null,"Jedná  se  o  plnostěnné kanalizační trubky DN 150 – DN 400, min. SN 12 kN/m2 , zvenčí  i  zevnitř  hladké. Jsou  opatřeny hrdlem,  v  němž  je  vložen vysoce  elastický  jazýčkový  kroužek.  konce  trubek  (dříků)  jsou opatřeny  zkosením  pod  úhlem  15°.  Způsob  použití  trubek  je  „U“  dle  normy  ČSN  EN  1401-1, tj. mimo budovy. Spolehlivá  funkce  těsnění  je  jištěna  výztužným  kroužkem  z  elastomeru.  Je  tak  zamezeno  vypad-nutí nebo vytlačení kroužku při manipulaci a montáži. Tento systém zaručuje při správné montáži ",null,null,null,null,null,null,null,null,"Jedná  se  o  plnostěnné kanalizační trubky DN 150 – DN 400, min. SN 12 kN/m2 , zvenčí  i  zevnitř  hladké. Jsou  opatřeny hrdlem,  v  němž  je  vložen vysoce  elastický  jazýčkový  kroužek.  konce  trubek  (dříků)  jsou opatřeny  zkosením  pod  úhlem  15°.  Způsob  použití  trubek  je  „U“  dle  normy  ČSN  EN  1401-1, tj. mimo budovy. Spolehlivá  funkce  těsnění  je  jištěna  výztužným  kroužkem  z  elastomeru.  Je  tak  zamezeno  vypad-nutí nebo vytlačení kroužku při manipulaci a montáži. Tento systém zaručuje při správné montáži ",null,null,3]
[null,null,"dokonalou  těsnost  do  výšky  vodního  sloupce  5  metrů.",null,null,null,null,null,null,null,null,"dokonalou  těsnost  do  výšky  vodního  sloupce  5  metrů.",null,null,3]
[null,null,"Teplota při pokládce: min. -10 °C, max. 50 °C",null,null,null,null,null,null,null,null,"Teplota při pokládce: min. -10 °C, max. 50 °C",null,null,3]
[null,null,"Max. teplota média: trvale do 40 °C, krátkodobě do 60 °C",null,null,null,null,null,null,null,null,"Max. teplota média: trvale do 40 °C, krátkodobě do 60 °C",null,null,3]
[null,null,"Orientační výška krytí: min. 0,5 m, max. 10 m",null,null,null,null,null,null,null,null,"Orientační výška krytí: min. 0,5 m, max. 10 m",null,null,3]
[null,null,"Max. rychlost média: 12 m/s",null,null,null,null,null,null,null,null,"Max. rychlost média: 12 m/s",null,null,3]
[null,null,"Stoka B-1 PVC DN150:47,26*1,03",null,48.677799999999998,null,null,null,null,null,null,null,"Stoka B-1 PVC DN150:47,26*1,03"]
[null,"Celkem za","8 Trubní vedení",null,null,null,{"$f":"SUM(G127:G154)","v":0},null,{"$f":"SUM(I127:I154)","v":0.42992678000000001},null,{"$f":"SUM(K127:K154)","v":0},null,null,null,4,null,null,null,null,null,null,null,null,null,null,null,null,null,null,null,null,null,null,null,null,null,null,null,null,null,null,null,null,null,null,null,null,null,null,null,null,null,{"$f":"SUM(BA127:BA154)","v":0},{"$f":"SUM(BB127:BB154)","v":0},{"$f":"SUM(BC127:BC154)","v":0},{"$f":"SUM(BD127:BD154)","v":0},{"$f":"SUM(BE127:BE154)","v":0}]
["Díl:","99","Staveništní přesun hmot",null,null,null,null,null,null,null,null,null,null,null,1]
[27,"998276101R00","Přesun hmot, trubní vedení plastová, otevř. výkop ","t",64.038733105999995,null,{"$f":"E157*F157","v":0},0,{"$f":"E157*H157","v":0},null,{"$f":"E157*J157","v":0},null,null,null,2,null,null,null,null,null,null,null,null,null,null,null,7,1,2,null,null,null,null,null,null,null,null,null,null,null,null,null,null,null,null,null,null,null,null,null,null,1,{"$f":"IF(AZ157=1,G157,0)","v":0},{"$f":"IF(AZ157=2,G157,0)","v":0},{"$f":"IF(AZ157=3,G157,0)","v":0},{"$f":"IF(AZ157=4,G157,0)","v":0},{"$f":"IF(AZ157=5,G157,0)","v":0},null,null,null,null,null,null,null,null,null,null,null,null,null,null,null,null,null,null,null,null,null,7,1]
[null,"Celkem za","99 Staveništní přesun hmot",null,null,null,{"$f":"SUM(G156:G157)","v":0},null,{"$f":"SUM(I156:I157)","v":0},null,{"$f":"SUM(K156:K157)","v":0},null,null,null,4,null,null,null,null,null,null,null,null,null,null,null,null,null,null,null,null,null,null,null,null,null,null,null,null,null,null,null,null,null,null,null,null,null,null,null,null,null,{"$f":"SUM(BA156:BA157)","v":0},{"$f":"SUM(BB156:BB157)","v":0},{"$f":"SUM(BC156:BC157)","v":0},{"$f":"SUM(BD156:BD157)","v":0},{"$f":"SUM(BE156:BE157)","v":0}]

{"sheet":"OaVNS","index":7,"n_rows":29,"n_cols":67,"rows_kept":29,"cut":false,"hidden":false,"merged":[[0,0,0,6],[2,0,2,1],[3,0,3,1],[3,4,3,6],[6,2,6,6]]}
["Položkový rozpočet "]
[]
["Stavba :",null,"3341 Přepojení ČSOV Hančova bouda Benecko",null,"Rozpočet:","OaVNS"]
["Objekt :",null,"OaVNS - Ostatní a vedlejší náklady stavby "]
[]
["P.č.","Číslo položky","Název položky","MJ","množství","cena / MJ","celkem (Kč)","Jednotková hmotnost","Celková hmotnost","Jednotková dem.hmot.","Celková dem.hmot."]
["Díl:","950","Ostatní náklady stavby"]
[1,"950 99-0001.ONS","Zajištění prostoru a vybudování zařízení staveniště včetně potřebných staveništních komunikací","soubor",1,null,{"$f":"SUM(E8*F8)","v":0},8.6899999999999998E-3,{"$f":"E8*H8","v":8.6899999999999998E-3},0,{"$f":"E8*J8","v":0},null,null,null,null,null,null,null,null,null,null,null,null,null,null,null,null,null,null,null,null,null,null,null,null,null,null,null,null,null,null,null,null,null,null,null,null,null,null,null,null,null,null,null,null,null,null,null,null,null,null,null,null,null,null,1,1]
[2,"950 99-0003.ONS","Zajištění bezpečnosti při provádění stavby ve smyslu bezpečnosti práce i ochrany životního prostředí a zeleně","soubor",1,null,{"$f":"SUM(E9*F9)","v":0}]
[3,"950 99-0005.ONS","Vytýčení stavby a hranic pozemků při provádění stavby ","soubor",1,null,0]
[4,"950 99-0006.ONS","Zajištění včasného oznámení o zahájení prací majitelům pozemků a správců sítí dotčených stavbou","soubor",1,null,0]
[5,"950 99-0007.ONS","Spolupráce s vlastníky pozemků při případném uvolnění pozemků pro stavbu (např. skládky osobního materiálu vlastníků)","soubor",1,null,0,2.478E-2,{"$f":"E12*H12","v":2.478E-2},0,{"$f":"E12*J12","v":0},null,null,null,null,null,null,null,null,null,null,null,null,null,null,null,null,null,null,null,null,null,null,null,null,null,null,null,null,null,null,null,null,null,null,null,null,null,null,null,null,null,null,null,null,null,null,null,null,null,null,null,null,null,null,1,1]
[6,"950 99-0008.ONS","Zajištění vytýčení podzemních zařízení, a v případě jejich křížení či souběhu v otevřeném výkopu, jejich písemné předání zpět jejich správcům před zásypem","soubor",1,null,0]
[7,"950 99-0009.ONS","Vypracování a projednání návrhu dočasných dopravních opatření (případně i po etapách dle zvoleného postupu prací zhotovitelem)","soubor",1,null,0]
[8,"950 99-0010.ONS","Zajištění povolení zvláštního užívání komunikací v souladu s postupem výstavby,včetně správních poplatků a povolení k užívání dalších, stavbou dotčených pozemků   (skládky materiálu, mezideponie atd.)","soubor",1,null,0]
[9,"950 99-0011.ONS","Zřízení, údržba a likvidace dopravního opatření po dobu realizace stavby (případně i po etapách dle zvoleného postupu prací zhotovitelem)","soubor",1,null,0,0,{"$f":"E16*H16","v":0},0,{"$f":"E16*J16","v":0},null,null,null,null,null,null,null,null,null,null,null,null,null,null,null,null,null,null,null,null,null,null,null,null,null,null,null,null,null,null,null,null,null,null,null,null,null,null,null,null,null,null,null,null,null,null,null,null,null,null,null,null,null,null,1,1]
[10,"950 99-0013.ONS","Zajištění činnosti odpovědného geodeta zhotovitele","soubor",1,null,0]
[11,"950 99-0014.ONS","Zajištění činnosti odpovědného geologa zhotovitele","soubor",1,null,0]
[12,"950 99-0015.ONS","Zajištění čistoty na staveništi a v jeho okolí, zajištění každodenního čištění komunikací dotčených provozem zhotovitele","soubor",1,null,0]
[13,"950 99-0016.ONS","Fotodokumentace průběhu díla; zhotovitel zajistí a předá objednateli průběžnou fotodokumentaci realizace díla. Fotodokumentace bude dokladovat průběh díla a bude zejména dokumentovat části stavby a konstrukce před jejich zakrytím","soubor",1,null,0]
[14,"950 99-0017.ONS","Péče o nepředané objekty nebo jejich části a konstrukce stavby, jejich ošetřování a nutný rozsah pojištění","soubor",1,null,0,0,{"$f":"E21*H21","v":0},0,{"$f":"E21*J21","v":0},null,null,null,null,null,null,null,null,null,null,null,null,null,null,null,null,null,null,null,null,null,null,null,null,null,null,null,null,null,null,null,null,null,null,null,null,null,null,null,null,null,null,null,null,null,null,null,null,null,null,null,null,null,null,1,1]
[15,"950 99-0018.ONS","Zkoušky hutnění komunikací a rýh dle ČSN a EN","soubor",1,null,0]
[16,"950 99-0021.ONS","Inženýrská a kompletační činnost zhotovitele  včetně koordinace prací na VH sítí a komunikace s realizací investiční akce ČEZu.","soubor",1,null,0]
[17,"950 99-0022.ONS","Zhotovení dokumentace skutečného provedení díla ","soubor",1,null,0]
[18,"950 99-0023.ONS","Geodetické zaměření stavby","soubor",1,null,0]
[19,"950 99-0024.ONS","Pasportizace objektů a komunikací před zahájením stavby včetně předání fotokokumentace investorovi stavby v digitální a tištěné podobě.","soubor",1,null,0]
[20,"950 99-0028.ONS","Ostatní činnosti nutné ke zdárnému provedení díla, které jsou vymezeny zejména v technické specifikaci stavby","soubor",1,null,0]
[]
[null,"ONS Celkem",null,null,null,null,{"$f":"SUM(G8:G27)","v":0}]